{"text_format":"3","workbook":"xlsx","n_sheets":8,"sheets":["优秀团队","先进工作者","先进个人","先进单位","优秀征文","十佳视频","十佳团队","十佳报告"],"not_rendered":{"external_links":1,"defined_names":1},"read":"whole","date_system":"1900"}

{"sheet":"优秀团队","index":0,"n_rows":121,"n_cols":9,"rows_kept":121}
["实践年份","项目名称","项目级别","主题类别","挂靠单位","学号","姓名","成员(学号姓名以,分割，如有多个请以/分割，例如：90000,李同学/90001,韩同学)","教师(工号姓名以,分割，如有多个请以/分割，例如：90000,李老师/90001,韩老师)"]
[2024,"“望山”社会实践之“连接南北振兴路 逐梦奋斗践初心”","一等奖","优秀实践团队评选","人工智能学院","2023011753","霍嘉宇","赵一行/202311590131,杨韵晗/2023012265,薛盛文/2023010733,刘磊/2022012260,王磊/2023010707,马锴/2023010084,徐鸣格/2023011394,徐诗月/2023011360,徐宁慧/2023011239,郜淼/2023011387,陈芝胜/2023011764,马媛/2022010993,李睿杰/2022011005,伍雨倩/2023011452","刘思航,马亚秋,周嘉璇"]
[2024,"古草新颜，香飘万家","一等奖","优秀实践团队评选","安全与海洋工程学院","2023011242","潘睿凯","应建翔/2023011230,刘俊松/2023011240,张婧雯/2023011233,康瑞/2023011245,姜子彧/2023011244,叶济源/2023011274,祝天朗/2023011231","李茂粟"]
[2024,"绿源探航:产教研融合的新能源未来","一等奖","优秀实践团队评选","新能源与材料学院","2023011449","齐豪","张虔嘉/2021011383,杨颜如/2023011527,吴思玮/2023011434,余昀展/2023011450,徐诗月/2023011360,谭雪/2023011422,翟乘汉/2023011445,宫明辉/2023011446","刘峰,李田放"]
[2024,"“薪火传承，青志领航”——能源科创先锋行","一等奖","优秀实践团队评选","马克思主义学院","2023012203","乔琳舒","桑松涛/2023010554,喻治坤/2022011451,马梓宸/2022011416,杨欣悦/2022012154,邱绮慧/2022010399,杨轶涵/2023012208,李鑫/2023012171,闫杨奇昊/2022010425,李轶莹/2023011016,李子涵/2022010602,王心雨/2023012224,王嘉雨/2023012049","刘彤彤,贾庆超,方百会"]
[2024,"五载弦歌擎爱构图“贵州缩影” 千里筑梦用心共绘“七彩假期”","一等奖","优秀实践团队评选","机械与储运工程学院","2022010872","师海熙","庞金龙/2020010852,殷迪/2022210703,王文超/2022210760,陈佳璐/2022010879,林雪仪/2022010796,于秀洋/2022010846,陈腊梅/2022010706,杨睿/2022010932,祁家宝/2022010718,李炜/2022010712,龚佳星/2022010803,柳韵涵/2023010955,宗源/2023010746,张浩然/2023210729","刘晔,鞠斌杰"]
[2024,"丝路青春行·疆海情缘","一等奖","优秀实践团队评选","安全与海洋工程学院","2022011202","刘帅","郭雅贤/2022011181,张萱/2022011189,赵杨娟/2022011190,彭美林/2022011188,梁一宁/2022011187,张美旭/2022011204,张云起/2022011275,曹赞/2022011284,林才涵/2022011237","李茂粟,赵思源"]
[2024,"石油先锋成长营-先锋探源·西气东输万里行 新质生产·工匠楷模薪火传","一等奖","优秀实践团队评选","机械与储运工程学院","2022010713","雷宇乐","王钰翔/2022010716,马向怡/2022010701,李欣潼/2022010708,宁书奇/2022011024,张健宇/2020010978,何知乐/2022010707,郭晨熙/2022010724,邱炫捷/2022010687,昆给依·赛勒克/2020010988,金鑫/2022010648,宋清爽/2022010639,张宏旭/2022010134,祁家宝/2022010718,王佳乐/2022010664","鞠斌杰,刘晔,王文超"]
[2024,"读懂中国式现代化暑期社会实践团","一等奖","优秀实践团队评选","理学院","2022211333","刘希","何洁玉/2022211338,曹可滢/2020011804,叶和樽/2023216112,张泽凯/2021211353,龚卓洋/2022011856,陈启伟/2021011842,蔡贤治/2021011776,范晓璐/2021011854,任泽鹏/2021011811,韩俊雄/2021011805,王娜娜/2021011760,尹畅/2021011798,巨博雅/2022011806,吴炅/2022011767,张书妍/2022011782","王天,张乐,吴双"]
[2024,"“青村”共进、“普话”发展，助力少年逐梦未来","一等奖","优秀实践团队评选","石油工程学院","2023210270","陈永恒","马梦琪/2022310132,哈森/2021290029,丁甲磊/2022210286,李佳沐/2022215137,崔韫淇/2023310185,管昱棋/2022215139,董丽蓉/2022215138,李云松/2023210272,程思远/2023210271,游苏扬/2023216507,李洋洋/2023215133,朱盈昊/2023215135,张家琛/2023210394","王伟,陈楠,刘东东"]
[2024,"解锁“千万工程”密码，擘画南华振兴蓝图","一等奖","优秀实践团队评选","地球物理学院","2022010997","徐滢滢","姚嘉乐/2022011128,骆雨珊/2022011029,李星原/2022011082,李秀澍/2022011074,谢佳欣/2022011056,舒希愉/2023011049,李炳初/2023011070,熊悦彤/2023011110,吕欣蔓/2023011084,任烨/2022011747,张曼若/2023011010,孙乙轩/2021011108,董佳锜/2023010651,马野/2022011071,张力/2022011062","陆杭波,付强,钟嘉雯"]
[2024,"遍访边关英雄志，全国共绘卫国情——基于卫国老兵的访谈实录","一等奖","优秀实践团队评选","团委","2021010642","罗楚龙","王瑛璠/2023210654,蒲铭泽/2023010295,孙一铭/2021010090,张清爽/2021010711,戴昀珊/2021010130,孙润祺/2022010138,段雨杨/2022010039,巨博雅/2022011806,张润霞/2022010470,邹怀墨/2022011723,黄乐/2022011494,罗语涵/2022012194,于闿歌/2022010730,宋暑寒/2022010758,杨杭/2022011184,刘紫颖/2022012120","周学智,韩瑾,邵炜涛"]
[2024,"“心怀能源报国志，心心相印“湘”里情”","一等奖","优秀实践团队评选","石油工程学院","2023010303","田玉婷","张春阳/2021010302,罗备/2023010294,喻程/2023012355,金嘉望/2023010291,李昭祎/2023012259,顾师文/2023010290,张通/2023010206,史安月/2023012204,蒲铭泽/2023010295,韩俊雄/2021011805,高露茜/2022010221,徐正强/2020011269,邓鑫/2022210310,华晓航/2022210217,刘胜/2023210303,任书衡/2022010215","刘衡升,周学智,刘东东"]
[2024,"科技助力乡村振兴  打造绿色能源小镇","一等奖","优秀实践团队评选","新能源与材料学院","2022011360","陈锐","张虔嘉/2021011383,郭霁霄/2022012275,佟维泽/2022012299,姜轶超/2022011331,黄允恩/2022011342,任晴/2022011322,刘嘉豪/2022011405,王芳芸/2022010591,王昊桢/2023211149,付玉/2023215936,谭雪/2023011422,杨颜如/2023011527,翁汇铠/2023011483,徐润仪/2023011495","刘峰,李田放,赵艺"]
[2024,"烽火青春 红梦引航","一等奖","优秀实践团队评选","化学工程与环境学院","2023211430","胡浩然","全震/2022010601,尚文波/2023210568,吴芷璇/2022010461,马雪儿/2022010588,杨仁杰/2023010576,白智渊/2023010631,苏鑫亮/2020010586,陈龙/2023010583","梁硕,苏鑫亮"]
[2024,"“红绿融合”唱好乡村振兴征途上的长征组歌","一等奖","优秀实践团队评选","团委","2022011943","李慧琳","雷宇乐/2022010713,潘盈伊/2022010996,崔文慧/2023011144,康岚婷/2022012177,李宇骞/2022011277,黄锐恒/2023010645,徐可欣/2023012244,郭柔伽/2022012176,褚雨欣/2023011587,夏小迪/2022011888,李梦莹/2022011421,焦智宽/2023216074,荆体瑞/2023210676","徐驰翀,赵浩钦,周学智"]
[2024,"共研山海经 同谋未来路","一等奖","优秀实践团队评选","安全与海洋工程学院","2023211010","王志浩","李文琴/2023011294,郭黎巍/2023011215,梁雨轩/2023011314,韦思贤/2023011276,张文璐/2023011173,黎子琪/2023011296,陈弈真/2023011310,杨振铎/2023011200,刘金朋/2023011257,徐宁慧/2023011239,赵艺涵/2023011295","徐云飞"]
[2024,"绘梦南华——非遗助力乡村振兴行",{"$f":"'[1]1.优秀团队汇总表'!$L$6","v":"二等奖"},"优秀实践团队评选","新能源与材料学院","2023011393","李云芯","屈佳钰/2023011493,刘芮萌/2023011359,李炳初/2023011070,马霄南/2023011867,刘新阳/2021011405,杨斯童/2023011395,陈肖冰/2023011521,李可/2023011524,陈茹楠/2021011762,杨璐榕/2023010304","李田放"]
[2024,"研访油海绿意，踏勘生态守望","二等奖","优秀实践团队评选","石油工程学院","2023010226","董书赫","王雨蕊/2023010247,刘继谦/2023010239,李欣/2023010248,刘林/2023010240,罗浩/2023010234,马琪琪/2023010221,许岿龙龙/2023010194,仇婧涵/2023010220,夏晟博/2023010243,徐盛馨/2024210964","李杰,刘东东,肖亚楠"]
[2024,"助还生态之清嘉 青访津冀为绿行","二等奖","优秀实践团队评选","新能源与材料学院","2023011528","赵冰心","常胜凯/2023011477,杨颜如/2023011527,袁紫嫣/2023011456,任羿冰/2023011525,赵庆波/2023011533,楚赛赛/2023011532","李田放"]
[2024,"迎豹回家——发挥生态廊道沿途资源禀赋优势助力京郊美丽乡村建设","二等奖","优秀实践团队评选","团委","2022011260","刘佳铭","王江帆/2023012207,杜奕成/2022012159,李欣怡/2022010824,张建航/2023010712,苏珂璇/2022011392,李慧/2022010534","贾庆超"]
[2024,"青春聚力正当时，乡村振兴谱新篇","二等奖","优秀实践团队评选","理学院","2022011752","张子怡","钱崇悦/2022011772,娄心纳/2022011743,崔灿/2022011742,何展蔚/2023012169,汪博/2023011508","刘希"]
[2024,"经行筑梦—经润合肥，“乡”遇青苗",{"$f":"'[1]1.优秀团队汇总表'!$L$6","v":"二等奖"},"优秀实践团队评选","经济管理学院","2022011948","韦欣宜","车弘元/2023012114,刘红爽/2022011993,崔博翔/2022012035,唐舞/2022012217,刘力瑗/2022012172,吴嘉怡/2022012031,刘宇婷/2022012018,李慧琳/2022011943,田珂菁/2022011992,王派儿/2023012079,韦辰昊/2023011940,龚彩怡/2023012044","吴楠,向晶,纪爽"]
[2024,"承回信精神之卓然风采，绘中亚文明之璀璨蓝图","二等奖","优秀实践团队评选","化学工程与环境学院","2022010422","江锦欣","朱紫橙/2023215335,谭语诗/2023010382,张敬楠/2023010427,窦闰龙/2023010396,陈葆泉/2023010520,冀宬润/2023010545,张永亮/2023010480","马雯,倪鹏磊,何祉桥"]
[2024,"聚光琼州“支教+——作梦想之光的点亮者","二等奖","优秀实践团队评选","经济管理学院","2023012046","李卓益","黄晓宛/2023012075,黄鑫宇/2023011997,赵鹏辉/2023012033,王嘉雨/2023012049,王传瑞/2022011147,顾书艺/2023012073,曾波/2022011294,凌小根/2023010086","王春蕾,舒伟康"]
[2024,"经世碳寻——沿习之路，青行“浙”里","二等奖","优秀实践团队评选","经济管理学院","2023012023","郑佳琼","曾雅菲/2023011962,魏星辰/2023012021,林家怡/2023011955,甘先翔/2021011951,白玉冰/2022011881,刘雨霏/2023011956,郭欣怡/2022012352","舒伟康,王春蕾,纪爽"]
[2024,"深蓝征程，“海”“油”筑梦","二等奖","优秀实践团队评选","安全与海洋工程学院","2023211027","张智栋","王宁/2023215809,马铭骏/2023211071,沈明雨/2023310516,刘尧/2019011220,张颢宸/2023215869,李志明/2021011254,刘通/2023215808,杜启飞/2023215807,王以静/2021011818,李易恒/2023215818","李茂粟,周学智"]
[2024,"石油先锋成长营-青少年手拉手心聚石油魂，端牢能源饭碗共筑中国梦--中国石油大学（北京）大学生胜利油田“心梦之旅”实践团",{"$f":"'[1]1.优秀团队汇总表'!$L$6","v":"二等奖"},"优秀实践团队评选","地球物理学院","2023011071","刘柏彦","王禹/2023011062,赵艺/2023010162,乔祎菲/2023012173,赵东山/2023011043,郑井泉/2023011066,班明浩/2023011067,刘家松/2023011072,王一同/2023011037,郑航/2023011059","曹培强,陆杭波,付强"]
[2024,"汇聚青春新力量，助力乡村新发展","二等奖","优秀实践团队评选","机械与储运工程学院","2023010914","姜宇嘉","侯锐/2023010847,朱婧怡/2023010897,赵云/2023010845,林星翰/2023010916,范嘉恒/2023010911,邴宇/2023010997,严涓/2023010896,董兴权/2023010910,吴文英/2023010982,张益萱/2022215570,殷迪/2022210703,周芷名/2023210822,贾彦坤/2023210708,王文超/2022210760","冯俊达,鞠斌杰,刘晔"]
[2024,"凝聚校企“核”力，共创核能“碳”路","二等奖","优秀实践团队评选","新能源与材料学院","2022011355","周熠","韩士绅/2022011347,林诺/2022011361,张锦慧/2022011366,权鹏/2022011333,李傲冰/2022011326,王一铭/2022010568,曹添齐/2022010055,张子强/2022011354,黄俊东/2022011330,刘莲舟/2022011477,任友桐/2022011422,刘晨/2022011383,蒲春羽/2022011359,张纯懿/2022011485","金玮,周凌希"]
[2024,"石油先锋成长营 西行记：溯源黑金根基，播种能源初芽","二等奖","优秀实践团队评选","地球科学学院","2023010068","柴怡曼","邹杨康/2023010115,王震/2023010116,张靖宇/2023011151,郑欣阳/2023010305,杜佳漪/2023010529,巩睿婷/2023010302,黄凯琳/2023010276,陈研/2023010117","马文龙"]
[2024,"循声觅道--以龙江“新质生产力”解锁乡村新生振兴力","二等奖","优秀实践团队评选","马克思主义学院","2022012144","包娅琪","刘语灿/2020012152,郭昱莹/2022012110,刘铭钰/2022011906,陶雪琪/2023012155,涂其惠/2022012108,江雨函/2023012188","方百会,刘韵秋,刘彤彤"]
[2024,"红色金融社会实践青年团",{"$f":"'[1]1.优秀团队汇总表'!$L$6","v":"二等奖"},"优秀实践团队评选","经济管理学院","2022012057","菅璞","闵思沅/2022011916,章姝/2022012184,白玉冰/2022011881,王露羲/2022012073,符文俊/2022012094,郑威/2022011930","李京阳"]
[2024,"情系南华支教行，携手守护双亲情","二等奖","优秀实践团队评选","化学工程与环境学院","2022010470","张润霞","彭莎莎/2022010406,张志彬/2022010491,曹炜曼/2022010499,孙琪桐/2022010454","倪鹏磊,李文倩"]
[2024,"青春之姿砥砺太行山水 铁人精神播种青春希望","二等奖","优秀实践团队评选","石油工程学院","2023210210","李祖亮","张子悦/2023215177,杨竣麟/2023010230,常淼轩/2022010337,王麟杰/2022010244,杨璨宇/2022010207,成浩瑾/2020010237,刘瑞恒/2020010208,苏剑超/2020010203","肖亚楠,刘东东,曹洋涛"]
[2024,"青燃希望萤火，童汇万里星河","二等奖","优秀实践团队评选","石油工程学院","2023215179","张梦圆","李力/2023010293,周林夕/2022010363,董书鑫/2023215164,傅雅琪/2022012175,张凯/2021010280,钱春龙/2022215211,何仕俊/2022010238,胥涛/2022210295,王天云/2022012225,郭雪/2023310146,梁政/2022010240,王霄/2023210215,姚为杰/2022011465","刘衡升,刘东东,肖亚楠"]
[2024,"降碳减污、协同增效-绿色餐饮助力武汉长江经济带高质量发展","二等奖","优秀实践团队评选","团委","2023012228","陈欣玥","孙僮/2023012226,李千卉/2022012117,黄睿/2022011989,张澍宇/2022010942,宋钰楦/2021010002,杨振宇/2022011876,曹炜曼/2022010499,王栋/2021010020,李梦莹/2022011421,谢毅立/2022011978,陈雨萌/2022012276,任江珊/2022011918,丁彬/2022010838","王瑛璠"]
[2024,"大地之光-圆梦\"沐光草原儿童，筑梦多彩假期”",{"$f":"'[1]1.优秀团队汇总表'!$L$7","v":"二等奖"},"优秀实践团队评选","地球科学学院","2023010004","孙衍冰","于嘉豪/2023010059,宣昂/2023010137,胡婉婷/2023010003,许翔/2023010057,张亦杨/2023010063,朱书齐/2023010103","马文龙,姚梦竹"]
[2024,"探寻生态环保之路","二等奖","优秀实践团队评选","化学工程与环境学院","2023210634","张乘慧","胡浩然/2023211430,杨仁杰/2023010576,白智渊/2023010631,全震/2022010601,孟婧涵/2022010589,李伊文/2022010577,李娜/2023010565,李子涵/2022010602,安佳怡/2023210643","李文倩,梁硕,马杰"]
[2024,"香韵乡村，助农“油”我","二等奖","优秀实践团队评选","马克思主义学院","2023012204","史安月","张彩乐/2023011428,张世珍/2023012178,何展蔚/2023012169,郭皓东/2022011726,邵子涵/2023012284,张同蕾/2023011746","刘彤彤,谢静,方百会"]
[2024,"习思躬行乡村兴，青春同系北疆情","二等奖","优秀实践团队评选","机械与储运工程学院","2022010920","付明林","丁彬/2022010838,包雅睿/2022010671,宋轶/2022010911,董佳锜/2023010651,朱洪泽/2023010659,赵佳谊/2023010647,谢书涵/2023010652,李卓钦/2023010696,王彦童/2023010699,王磊/2023010707,董一明/2020011004,王文超/2022210760,殷迪/2022210703","李健,鞠斌杰,高雪"]
[2024,"“社区成长伙伴计划”——大学生赋能探索城市社区治理创新路径","二等奖","优秀实践团队评选","地球物理学院","2022010993","马媛","李睿杰/2022011005,张力/2022011062,林心悦/2022011122,张嵘庆/2022011041,张男/2022011072,高金阳/2023011034,任鸣鸾/2023011012,班明浩/2023011067,王美寰/2023011051,陈好/2023011082,徐涛/2023011058,毛鸿旭/2023011124,王一同/2023011037,孙傲雪/2023011017","叶鹏,付强,王帅"]
[2024,"药农星链——助力药农散户中药材交易","二等奖","优秀实践团队评选","团委","2022012295","蒋子明","廖沛沛/2023012200,肖涵/2023012343,冯书琴/2023011553,马进荣/2022012261,吴万锦/2023011368,蔡涵妃/2022012201,孙彤/2022012068,肖俊亮/2023012339,王智华/2023010249,杨越/2022012236,王宇诠/2022010332,孙启哲/2022010114,刘昱言/2022012178,张潮/2023010326","贾庆超"]
[2024,"青寻西北金滩能源新篇，梦绘乡村振兴斑斓画卷","二等奖","优秀实践团队评选","石油工程学院","2022215102","孙钰颖","王心雨/2022215109,任晁辰/2023210224,黄凯琳/2023010276,张天予/2023010250,巩睿婷/2023010302,叶慧菁/2023215101,王智华/2023010249,刘帮丹/2023210259,陈志昊/2023010266,周嘉烁/2023215102","刘思辰,刘东东,肖亚楠"]
[2024,"让红色曙光在田埂上跳跃-沉浸式理想信念教育探索者","二等奖","优秀实践团队评选","新能源与材料学院","2022011326","李傲冰","康萧冰/2022011411,陈锐/2022011360,刘新阳/2021011405,林诺/2022011361,蒲春羽/2022011359,陈志旺/2022011475,黎洋/2023011488,邓子欣/2023011378","王荣亮,金玮,刘峰"]
[2024,"大地之光——踏古道， “勘”地质——京西古道地质文化领学人","二等奖","优秀实践团队评选","地球科学学院","2022010123","刘简凡","杜健/2022010017,段雨杨/2022010039,李宁/2022010117,闫璟驰/2023210156,杨荣彬/2021010152,陶润泽/2023210091,徐清岩/2021010132,吴霞/2023210074,董明祥/2023210097,李普一/2021010165,金世贵/2020010012","姚梦竹,孟笑"]
[2024,"“语”向未来，践行回信精神，讲好中国故事","二等奖","优秀实践团队评选","外国语学院","2023012224","王心雨","塞尔威娜孜·阿不都热西提/2023012249,安昕怡/2023012101,蒋艺萌/2023012252,郗一郎/2023012292,鲍梦潇/2023012254,徐磊/2023011687,韩羽丰/2023012119,廖杰/2023012148,江小勇/2023011596,李莉/2023216413,周群/2023216418,茹莎娜/2023030153,倪雨凡/2023030162,董泽方/2023012147","谌丛,贾庆超,李滨"]
[2024,"洛阳烟雨，信践古韵","二等奖","优秀实践团队评选","人工智能学院","2023011558","李小孟","段锦汶/2023011556,于世隆/2021011699,张晨阳/2023011567,吴鑫洁/2023012305,郭宇博/2023011635,吕虹瑶/2023011557,李焕锟/2023011624,侯梦蕊/2023011615,郑庆博/2023011642,熊雨霏/2023011614","周嘉璇,马亚秋"]
[2024,"“8新”模式，打造向“网”生活，“小萝卜”撑起“大产业”","二等奖","优秀实践团队评选","机械与储运工程学院","2020010852","庞金龙","张超/2022010805,张孝全/2022010877,师海熙/2022010872,王硕/2022010988,蒲春羽/2022011359,吴万锦/2023011368,丛逸飞/2023011413,范家麟/2022011510,贾彦坤/2023210708,钱明成/2022210712,周芷名/2023210822,董一明/2020011004,朱婧怡/2023010897,马洁/2022010734,杨睿/2022010932","刘晔,殷迪,鞠斌杰"]
[2024,"情暖童心，相伴前行——助力残障儿童健康成长","二等奖","优秀实践团队评选","理学院","2023011790","尹诗琪","李南霓/2023011814,杨芷耀/2023011813,代智宇/2023011826,洪浪/2023011823,彭宇/2023011812,肖圣泽/2023011796,鲍彩运/2023011784,马冀/2023011894","张乐,叶和樽"]
[2024,"油子筑梦育蜀南未来，科教“惠民”绘振兴画卷","二等奖","优秀实践团队评选","地球科学学院","2021210038","鲜国彦","胡春雨/2022011910,郭妍晶/2021010006,高文月/2022011914,刘杰维/2023010036,赵海雯/2023010160,孙润祺/2022010138,李彤辉/2022011946,何语欣/2022012026,顾源远/2022011873,雷壮壮/2019011345,陈树旺/2022012063","姚梦竹,党宁,马勇"]
[2024,"大地之光·圆梦--共赴云岭之南，助力民族团结","二等奖","优秀实践团队评选","地球科学学院","2023010150","储思航","段雨杨/2022010039,李元杰/2023010027,刘畅/2023010006","姚梦竹,刘俊鑫"]
[2024,"“走进平谷农业中关村 服务首都乡村振兴”首都高校“千人百村”暑期社会实践活动","二等奖","优秀实践团队评选","新能源与材料学院","2022011989","黄睿","刘诗淼/2022010618,谢毅立/2022011978,刘洪翔/2022010078,高文月/2022011914","于富海,韩瑾,阎亭琳"]
[2024,"追寻革命踪迹，建设红色乡村",{"$f":"'[1]1.优秀团队汇总表'!$L$12","v":"三等奖"},"优秀实践团队评选","安全与海洋工程学院","2022011245","王颖哲","邢路易/2022011246,汤为/2022011270,陈奕如/2024216319","赵思源"]
[2024,"青韵梅林·生态行",{"$f":"'[1]1.优秀团队汇总表'!$L$12","v":"三等奖"},"优秀实践团队评选","机械与储运工程学院","2022010736","王佳颖","陆菲凡/2022010735,赵露露/2022010737,徐筱冉/2022010763,张佳妍/2022010767","何土凤"]
[2024,"《“豫”电于锂、华韵“新”行：中石大以文化与技术双轮驱动新乡新质生产力》",{"$f":"'[1]1.优秀团队汇总表'!$L$12","v":"三等奖"},"优秀实践团队评选","新能源与材料学院","2022011978","谢毅立","黄睿/2022011989,林勇涛/2022011166,邱文斌/2022012067,齐浩宇/2023010664,王毅松/2022011717,刘畅/2022011941,郭欣婷/2023012299,郭康星/2023011995,程杨/2023011464,田嘉康/2023012306,栾笑哲/2021010283","许崇,赵艺"]
[2024,"“赤心铭刻回信精神，青春助力草原振兴”——寻迹牧梦社会实践团",{"$f":"'[1]1.优秀团队汇总表'!$L$12","v":"三等奖"},"优秀实践团队评选","机械与储运工程学院","2023010870","李金涛","马腾/2023010844,张苇/2023010842,张浩然/2023010841,曹张羽/2023010843,孜克茹拉·亚克甫江/2023010846","冯俊达"]
[2024,"“全国首个坐拥双抽水蓄能电站之村”-宁国市霞西镇石河村的工业旅游致富之路",{"$f":"'[1]1.优秀团队汇总表'!$L$12","v":"三等奖"},"优秀实践团队评选","人工智能学院","2023012326","周恺","周飞扬/2023012325,龚昶文/2023011576,王云博/2023010832,方浩宇/2023012314,张驰誉/2023012324","姜林宏"]
[2024,"滇边共舞 丹心筑梦",{"$f":"'[1]1.优秀团队汇总表'!$L$12","v":"三等奖"},"优秀实践团队评选","团委","2022011321","陈雨薇","夏柳钦/2022011909,范晓璐/2021011854,乔淑君/2022211072,黄思微/2022011391,刘青澈/2023010472,吴亦杰/2022012023,陈佳怡/2023012255,李若男/2023210208,赵媛媛/2022211420,武玫玉/2023315902,刘靳鑫/2023010166,赵梓琪/2023012137,刘昕阳/2023011926","周学智,韩瑾"]
[2024,"“石”心“石”意，“油”你“油”我--湘籍学子返“湘”志愿服务1队",{"$f":"'[1]1.优秀团队汇总表'!$L$12","v":"三等奖"},"优秀实践团队评选","石油工程学院","2023010294","罗备","李昆熹/2022012259,田玉婷/2023010303,唐豪/2023011259,肖圳雯/2023010071,童彦坤/2023010088,尹宸杰/2023011973,杨文砚/2023010945","刘思辰,肖亚楠,刘东东"]
[2024,"科技赋能产业振兴的实践与启示——杨凌示范区借助科技优势打造乡村产业振兴新样板",{"$f":"'[1]1.优秀团队汇总表'!$L$12","v":"三等奖"},"优秀实践团队评选","安全与海洋工程学院","2023011264","韩嘉宜","马欣彤/2023011263,刘佳琛/2023011262,黄静岚/2023011523,王梓欣/2023011238,王梓梦/2023011266,董红冉/2023011265,杨越/2022012236,李勇骏/2022010784,张依明/2022012224","李茂粟"]
[2024,"助力涧沟村乡村振兴：打造红绿品牌，促进乡村发展",{"$f":"'[1]1.优秀团队汇总表'!$L$12","v":"三等奖"},"优秀实践团队评选","经济管理学院","2022011870","钱呈","智玉轩/2022010100,张亚亚/2022011875,梁塽/2022011871,李越/2022010369,王鹏琪/2021010378,沈继宇/2023011795,李安然/2022010397","李京阳"]
[2024,"石油先锋成长营“身处青海心油田，铸就西北石油魂”",{"$f":"'[1]1.优秀团队汇总表'!$L$12","v":"三等奖"},"优秀实践团队评选","机械与储运工程学院","2023010699","王彦童","罗骏辉/2023010654,黄智杰/2023011023,靖裕祺/2023010697,穆玖平/2023010688,吕景能/2023010689","李健"]
[2024,"”星扶计划“孤独症儿童关爱计划",{"$f":"'[1]1.优秀团队汇总表'!$L$12","v":"三等奖"},"优秀实践团队评选","机械与储运工程学院","2023210822","周芷名","张新运/2021010685,贾彦坤/2023210708,董一明/2020011004,庞金龙/2020010852,张益萱/2022215570,殷迪/2022210703,权静茹/2021010848,张妍/2020010965,王文超/2022210760,李则彤/2023010868,朱诣涵/2023010956,郭佳凝/2023010925,邢其昌/2022010728","鞠斌杰,刘晔,周芷名"]
[2024,"星火接力，筑梦乡村",{"$f":"'[1]1.优秀团队汇总表'!$L$12","v":"三等奖"},"优秀实践团队评选","机械与储运工程学院","2023010748","许婧婕","李宗举、伊丽努尔·依力哈木江、王润心、旦增多吉、苏怡玥","李健"]
[2024,"农为邦本 青振乡村",{"$f":"'[1]1.优秀团队汇总表'!$L$12","v":"三等奖"},"优秀实践团队评选","理学院","2023011874","邓宁","王萌/2023011877,张丽鑫/2023011876,崔竣恺/2023011900,赵一丹/2023011875,付宇昊/2023011901,胡奕羽/2023011903,钮教韧/2023011904,朱佰松/2023011892,何逸波/2023011902","吴双"]
[2024,"小”数”苗·向阳生志愿服务队",{"$f":"'[1]1.优秀团队汇总表'!$L$12","v":"三等奖"},"优秀实践团队评选","人工智能学院","2022011601","吕琛","袁开伟/2022011575,段锦汶/2023011556,李焕锟/2023011624,王晓芳/2023011592,丁昊宇/2022011725,黄文慧/2023216008,高煜/2023011728,王顺/2021011206,陈子婧/2023216011","霍佳锐,于迎辉"]
[2024,"青砺基层 胸怀热血持心恒 为民扶弱 关注聋哑声难默",{"$f":"'[1]1.优秀团队汇总表'!$L$12","v":"三等奖"},"优秀实践团队评选","安全与海洋工程学院","2023011271","徐向前","冯姝雅/2023010837,秦泽源/2023011286,胡浩然/2023011281,李丰桦/2023011283,黄信惟/2023011282,闫文博/2023011272,李硕/2023010851","王志浩"]
[2024,"崔村新篇共筑梦",{"$f":"'[1]1.优秀团队汇总表'!$L$12","v":"三等奖"},"优秀实践团队评选","经济管理学院","2023012104","谭晶","林锦瑶/2023012102,王佳雨/2023012105,袁懿/2023012099,关念/2023012027,吴嘉易/2023012123,贾子豪/2023012120,刘欣耀/2023012108,周思彤/2023012107,易灵茜/2023012106","何土凤"]
[2024,"艺术对话自然 文创赋能乡村旅游",{"$f":"'[1]1.优秀团队汇总表'!$L$12","v":"三等奖"},"优秀实践团队评选","化学工程与环境学院","2023010601","孙佳璐","马可/2023010600,辛名博/2023010572,刘佳蓉/2023010599,洪轶蓝/2023010598","胡浩然"]
[2024,"青护明陵生态，共创绿色未来",{"$f":"'[1]1.优秀团队汇总表'!$L$12","v":"三等奖"},"优秀实践团队评选","地球物理学院","2023011147","王丽梦","陈杰/2023011145,郭可萌/2023011146,徐徐晓羽/2023011143,武周杰/2023011142,孙晓宇/2023012134,韦婧/2023012135,李澄皓/2023011048,蔡嘉怡/2023011081,程昊/2023011055","付强"]
[2024,"石油先锋成长营+游田“油”学记，石践“实”真理",{"$f":"'[1]1.优秀团队汇总表'!$L$12","v":"三等奖"},"优秀实践团队评选","地球物理学院","2023011116","温景惜","白哲溢/2023011057,王宏越/2023011094,骆鹏亮/2023011103,倪梓淏/2023011092,贾得龙/2023011061,李彤辉/2022011946,王禹桐/2023011106,孙智伟/2023011135,张贻峙/2023011138,郑宇/2023010679,刘宇/2023010663,胡朝宇/2023010669,李浩/2023010667,刘洪基/2023011133","李晓夏"]
[2024,"青行社区展风采 同心协力强基层",{"$f":"'[1]1.优秀团队汇总表'!$L$12","v":"三等奖"},"优秀实践团队评选","机械与储运工程学院","2023010736","何江涛","李震泽/2023010704,陈雨旸/2023010716,谢书涵/2023010652,陈睿/2023010715,阿合叶尔克·吾尔列吾别克/2023010650,赵海/2023010745,李少庆/2023010734,齐国曦/2023010686,孙雅琪/2023010687,吾米提努尔·吐尔逊/2023010732,楼听雨/2023010648,程书瑞/2023010717","杨晓锋"]
[2024,"石油先锋成长营–‘化’语石油，‘工’论大庆”",{"$f":"'[1]1.优秀团队汇总表'!$L$12","v":"三等奖"},"优秀实践团队评选","化学工程与环境学院","2023010497","傅新雨","陈葆泉/2023010520,刘翔/2023010519,高佳瑶/2023010500,陈鸿/2023010496,林露茜/2023010503,姚奕如/2023010506,王丹玥/2023010475,杜鑫悦/2023010495,毛诗语/2023010473","马雯,李文倩"]
[2024,"青春与乡村共舞：青振乡村行动",{"$f":"'[1]1.优秀团队汇总表'!$L$12","v":"三等奖"},"优秀实践团队评选","地球物理学院","2023011047","王文瑞","高建国/2023011118,徐诗玥/2023011019,舒希愉/2023011049,姚嘉乐/2022011128,张怡乐/2023011120,杨启瑞/2023011269,李浩/2023011064,马华/2023012100","钟嘉雯,王帅"]
[2024,"石油先锋成长营-传承铁人精神，再绘时代新篇",{"$f":"'[1]1.优秀团队汇总表'!$L$12","v":"三等奖"},"优秀实践团队评选","机械与储运工程学院","2023010882","孟令喆","陶雪琪/2023012155,孙一宸/2023010693,王筱淇/2023012277,朱洪泽/2023010659,毛鸿旭/2023011124,葛树峰/2023012111,张耘熙/2023012337,黄思涵/2022011137,戚壹焯/2021011138,李昊昕/2023011155","刘晔,冯俊达"]
[2024,"”天下无孤“—与星星的孩子击掌",{"$f":"'[1]1.优秀团队汇总表'!$L$12","v":"三等奖"},"优秀实践团队评选","地球物理学院","2023011051","王美寰","汪汶宇/2023010741,孙傲雪/2023011017,陈好/2023011082,刘金城/2023011073,陆馨怡/2023010751,吕欣蔓/2023011084,熊悦彤/2023011110,梁媛/2023011113,杨成昊/2023010710,张建烁/2023011042,徐涛/2023011058,穆湛博/2023011258,胡正晖/2023011164,李婧雨/2023011112","王帅,钟嘉雯"]
[2024,"壁语新章：北石槽青年行动",{"$f":"'[1]1.优秀团队汇总表'!$L$12","v":"三等奖"},"优秀实践团队评选","团委","2023010404","姜曼妮","袁玟李佳/2023011267,仝贻云/2023011176,张伊萌/2022012280,徐嘉惠/2023012275,何霁轩/2023011822","韩瑾"]
[2024,"粮心守望，粮安为先",{"$f":"'[1]1.优秀团队汇总表'!$L$12","v":"三等奖"},"优秀实践团队评选","经济管理学院","2023011916","齐艺潞","罗欣馨/2023012078,孙乐怡/2023011915,丁佳璐/2023012015,张启航/2023012056,周子辰/2023011602,陈美璇/2023012043,曾雅菲/2023011962,李元丰/2023011914,徐敏哲/2023011374,谷振华/2023012028,孙涵/2023012012,常竟文/2023011942,肖荷/2023012080,郭浩翔/2023011969","舒伟康,王春蕾"]
[2024,"九州武韵传四海，一带一路谱新篇",{"$f":"'[1]1.优秀团队汇总表'!$L$12","v":"三等奖"},"优秀实践团队评选","机械与储运工程学院","2023010764","李超凡","林诺/2022011361,张帅/2022010477,赵欣怡/2023010747,欧施施/2023010591,杨超/2022010626,王畅/2023010777,周彩梦/2022012020,陈睿/2023010715,张昊/2023010060,叶海宇/2022010407,程书瑞/2023010717,许一寒/2021010772","郑茗芥,李健"]
[2024,"石油先锋成长营+“同窗同心，共筑未来”——首都校友寻访暑期社会实践团",{"$f":"'[1]1.优秀团队汇总表'!$L$12","v":"三等奖"},"优秀实践团队评选","化学工程与环境学院","2023210676","荆体瑞","刘程程/2023210665,祁润宇/2023210649,张旭/2023210675,牛泽琳/2023210666,李秋实/2023210659,甘意群/2023210639,薛世博/2023215389,肖心语/2023210633,李烁/2023215390,耿小蝶/2023215406,祖思雅/2023210631,斯潮湧/2023210629","王一迪,梁硕"]
[2024,"以绿为底绘经彩 零碳转型创未来",{"$f":"'[1]1.优秀团队汇总表'!$L$12","v":"三等奖"},"优秀实践团队评选","经济管理学院","2022011969","孙静静","苏玥方/2022011977,赵若凡/2022011988,洪木英/2022011973,纪玟/2022011975,王龙伟/2022011636,蔡莹姗/2023012195,胡艺佳/2023012170,贡钰淋/2022011972","李文亮"]
[2024,"出京务实策 入陕振乡村",{"$f":"'[1]1.优秀团队汇总表'!$L$12","v":"三等奖"},"优秀实践团队评选","化学工程与环境学院","2022010540","齐明睿","王文紫瑶/2022010529,杨哲/2023011774,刘思雨/2022010557,赵显颖/2022010580,吴泽奇/2022010563,陈其勇/2022010541,李思睿/2022010548,张博瑞/2022010542,王晨阳/2022010620","亢华旭"]
[2024,"碧海探秘共寻“清洁能” 低碳实践同筑“绿色港”",{"$f":"'[1]1.优秀团队汇总表'!$L$12","v":"三等奖"},"优秀实践团队评选","石油工程学院","2023010195","杨京京","李宗举/2023010213,伊丽努尔·依力哈木江/2023010219,王润心/2023012050,旦增多吉/2023010197,苏怡玥/2023012048","李杰,刘东东"]
[2024,"“丝竹润南，古韵筑梦”民乐团南华支教暑期社会实践",{"$f":"'[1]1.优秀团队汇总表'!$L$12","v":"三等奖"},"优秀实践团队评选","团委","2022011319","郑暄严","黄巍/2022210758,王学佳/2022012055,徐梦骞/2022211609,马薪蕊/2023012234,杨舒淇/2023010587,王祎婧/2023012175,万子晗/2023012174,傅苧羽/2023011111,张瀚月/2022011397,魏溦/2023481463","周学智,韩瑾"]
[2024,"“京遇南华”团队——“以先进思想引领后辈航向，以青春学识启迪幼小梦想”",{"$f":"'[1]1.优秀团队汇总表'!$L$12","v":"三等奖"},"优秀实践团队评选","安全与海洋工程学院","2023011193","邓景仁","魏轩/2023011192,宋相远/2023011191,魏晋铭/2023011189,干润东/2023011188,储思航/2023010150","方百会,王志浩"]
[2024,"油润桑榆，阳暖花城",{"$f":"'[1]1.优秀团队汇总表'!$L$12","v":"三等奖"},"优秀实践团队评选","外国语学院","2023012289","叶芷晴","叶炜婧/2023012288,罗天旸/202311580207,杨金美/2023012287,邵子涵/2023012284,申怡文/2023012285,苏欣瑜/2023012286,何颖华/2023012257,姜赫/2023011375,刘延芹/2023012047,陈阳/2023216223","刘春阳,王芃月"]
[2024,"园中青茶，新安江水琉璃画",{"$f":"'[1]1.优秀团队汇总表'!$L$12","v":"三等奖"},"优秀实践团队评选","化学工程与环境学院","2022010461","吴芷璇","张支铭/2022010471,孙涵/2022010436,张涵婷/2022010438,陈语/2022012316,金立民/2022010446,张心怡/2022010439,余曼妮/2023012166,努尔斯巴·买提库尔班/2022010460,王一伊/2022010400,王晓弘/2022010437","何晨,倪鹏磊"]
[2024,"储梦新乡——共绘多维振兴画卷",{"$f":"'[1]1.优秀团队汇总表'!$L$12","v":"三等奖"},"优秀实践团队评选","新能源与材料学院","2023011433","王春絮","祁卓琳/2023011432,李忻悦/2023011431,吴思玮/2023011434,丛逸飞/2023011413,侯康辉/2023011436,刘芯彤/2023011925","李田放"]
[2024,"青心播种社区希望，基层砺就青年力量",{"$f":"'[1]1.优秀团队汇总表'!$L$12","v":"三等奖"},"优秀实践团队评选","石油工程学院","2023010216","王艺涵","张通/2023010206,王文睿/2023010215,刘沛佟/2023010214,黄天翔/2023010211,南兴一/2023010369,程文俊/2023010360,刁云飞/2023010210,井策/2023010212,武鑫岐/2023010217,姚子涵/2023010253,李亚昕/2023010202","李杰,刘东东,肖亚楠"]
[2024,"机运匠心探石油，岁月深耕润未来",{"$f":"'[1]1.优秀团队汇总表'!$L$12","v":"三等奖"},"优秀实践团队评选","新能源与材料学院","2022011325","霍宇欣","张田慧/2021011408,王一杰/2021011397,张晨曦/2022011418,陈锐/2022011360,黎洋/2023011488,杨颜如/2023011527,吴万锦/2023011368,张天宁/2023011361,罗禹涵/2023011423","李田放"]
[2024,"聚“焦”美丽乡村，刻“画”多彩非遗",{"$f":"'[1]1.优秀团队汇总表'!$L$12","v":"三等奖"},"优秀实践团队评选","石油工程学院","2023010279","李秋果","曹博霖/2023010224,曹露/2023011978,李宁/2023011980,徐昕悦/2023010277,郑凯/2023010275,熊翘楚/2023012037,王瀚轩/2023010241,代卓昕/2023012036,季子昂/2023011797,严昊/2023010244","李杰,杨卫东,肖亚楠"]
[2024,"青幼同行，圆梦乡村",{"$f":"'[1]1.优秀团队汇总表'!$L$12","v":"三等奖"},"优秀实践团队评选","地球科学学院","2023010087","潘俊明","董家炎/2023010085,吴经纬/2023010089,张艺函/2023010039,吴宇昂/2023010090,伊依/2023010072","马文龙"]
[2024,"党员领航，青年逐梦——学习二十大精神，寻访红色印记",{"$f":"'[1]1.优秀团队汇总表'!$L$12","v":"三等奖"},"优秀实践团队评选","地球科学学院","2022010072","钟盈盈","彭赫/2022010009,孙天薇/2022010070,张笑琴/2022010005,能爽/2022010164,刘文贤/2022010160","孟笑"]
[2024,"“两弹护一星，一曲东方红”志愿服务团队",{"$f":"'[1]1.优秀团队汇总表'!$L$12","v":"三等奖"},"优秀实践团队评选","新能源与材料学院","2022011326","李傲冰","张虔嘉/2021011383,陈锐/2022011360,王昊桢/2023211149,高曾博洋/2023215959,薛颖珊/2023211153,林诺/2022011361,苏珂璇/2022011392,谭雪/2023011422,罗禹涵/2023011423","李田放,刘峰"]
[2024,"冀地青春派：红色领航，乡村振兴新风采",{"$f":"'[1]1.优秀团队汇总表'!$L$12","v":"三等奖"},"优秀实践团队评选","马克思主义学院","2023012202","刘阳","廖沛沛/2023012200,宋燕/2023012205,侯禹畅/2023012199,刘天一/2023012201,张美湘/2023012177","杨关玲子,刘彤彤"]
[2024,"石油先锋成长营，研产融合探索行",{"$f":"'[1]1.优秀团队汇总表'!$L$12","v":"三等奖"},"优秀实践团队评选","化学工程与环境学院","2021310232","王源丰","包若凝/2022310214,李瑞/2022310217,孔繁格/2021210625,杨若宸/2022310253,刘继坤/2021310212,解凌远/2021310230,王亚琦/2022215370,李奕菲/2021310242,胡浩杰/2020310236,陈俊阳/2023310235,李硕凡/2022310234,李东璇/2023315208,李玉果/2021310231,王婧/2022210593","李明,武苏翔"]
[2024,"青春奉献换绿洲，民勤治沙在青年",{"$f":"'[1]1.优秀团队汇总表'!$L$12","v":"三等奖"},"优秀实践团队评选","地球科学学院","2023010076","刘弘毅","郧曦卓/2023010075,司润/2023010073,袁登辉/2023010093","马文龙"]
[2024,"让青春在云南的火热实践中绽放绚丽之花",{"$f":"'[1]1.优秀团队汇总表'!$L$12","v":"三等奖"},"优秀实践团队评选","机械与储运工程学院","2023210708","贾彦坤","殷迪/2022210703,王文超/2022210760,庞金龙/2020010852,朱千瑞/2024216493,张孝全/2022010877,杨崧林/2022010875,柳韵涵/2023010955,宗源/2023010746,马雪莹/2022010938,张浩然/2023210729,黄伶俐/2022010854,史郭芮/2022010964,杨睿/2022010932,张宏旭/2022010134,宋桂龙/2023210773,周芷名/2023210822,董一明/2020011004","刘晔,贾彦坤"]
[2024,"三叶萌芽——沧海桑田的故事我们讲给你听",{"$f":"'[1]1.优秀团队汇总表'!$L$12","v":"三等奖"},"优秀实践团队评选","经济管理学院","2022011876","杨振宇","董俊楠/2022011913,孙嘉璐/2021012142,闫佳敏/2022012143,沈雪情/2022012106,季思源/2023012002,江煜/2022012046,牟镱/2022011952,刘镇贤/2023012063,陈镕/2023012092","纪爽,李正福,王春蕾"]
[2024,"石油先锋成长营“辽河风吹动五彩油田 青年梦献给崭新时代”",{"$f":"'[1]1.优秀团队汇总表'!$L$12","v":"三等奖"},"优秀实践团队评选","石油工程学院","2023010332","吴桐琳","李静怡/2023010331,鄂佳林/2023011100,朱鹏文/2023010328,张潮/2023010326,杨浩平/2023010325","刘思辰,刘东东,肖亚楠"]
[2024,"文化振阡陌，古道“油”新生——以水峪嘴村为例解锁农文旅振兴“新密码”",{"$f":"'[1]1.优秀团队汇总表'!$L$12","v":"三等奖"},"优秀实践团队评选","马克思主义学院","2022012151","亓宸玥","闫佳敏/2022012143,李佳宁/2022012148,滕华鑫/2022012029,程若桐/2023012168,江雨函/2023012188,王江帆/2023012207","赵亮,方百会"]
[2024,"平西红韵，绿野流金——汇聚红绿双动力，助力涧沟乡村振兴",{"$f":"'[1]1.优秀团队汇总表'!$L$12","v":"三等奖"},"优秀实践团队评选","新能源与材料学院","2022011411","康萧冰","高瑞/2022011393,孙朝阳/2022011404,张鹤滨/2023011472,刘雨欣/2023011520","刘峰"]
[2024,"青砺基层·共筑未来",{"$f":"'[1]1.优秀团队汇总表'!$L$12","v":"三等奖"},"优秀实践团队评选","石油工程学院","2023210245","田昊","申宇琦/2023210247,张彤烁/2023210244,向锐/2023210243,化晚晴/2022012146,刘捷/2023210242,王心雨/2023012224","肖亚楠,董雪林"]
[2024,"用民族团结之水，浇昌盛和谐之花",{"$f":"'[1]1.优秀团队汇总表'!$L$12","v":"三等奖"},"优秀实践团队评选","地球科学学院","2023010066","艾柯代·艾尼瓦尔","姜雨彤/2021010037,王思聪/2021210085","姚梦竹,鲜国彦,马文龙"]
[2024,"石油先锋成长营 寻大庆记忆 探老兵足迹",{"$f":"'[1]1.优秀团队汇总表'!$L$12","v":"三等奖"},"优秀实践团队评选","人工智能学院","2023011658","唐梓洋","刘宇航/2023011685,史佳俊美/2023011710,艾子涵/2023011656,于茗旭/2022011721,刘世璋/2023011670,刘一坤/2023011657,马美越/2023011585,牛浩楠/2023011660,张雅伦/2023011661,岳万乐/2023011659,李颖楠/2023011655,高蓉/2022011710,戴祥文/2022011714,郭欣悦/2022011711","刘思航,苏星源"]
[2024,"大地之光-华韵同心",{"$f":"'[1]1.优秀团队汇总表'!$L$12","v":"三等奖"},"优秀实践团队评选","地球科学学院","2022010049","刘佳旺","杨炼石/2022010148,周美辰/2022012213,简正康/2022010152,孙谞/2022010155,罗语涵/2022012194,李璐/2023400055","孟笑,姚梦竹"]
[2024,"智启绿程研石化，材汇燕化绘未来",{"$f":"'[1]1.优秀团队汇总表'!$L$12","v":"三等奖"},"优秀实践团队评选","新能源与材料学院","2022011325","霍宇欣","周晓光/2022011338,陶丽达/2022011363,佟潇/2021011493,李梓瑞/2022011323,黎洋/2023011488","李叶青"]
[2024,"昌平区滨河公园抗洪后生态恢复",{"$f":"'[1]1.优秀团队汇总表'!$L$12","v":"三等奖"},"优秀实践团队评选","地球科学学院","2023010040","张雨佳","冯姣婷/2023010037,李思彤/2023010065,尹文飚/2023010051,郭颖雯/2023010038","刘俊鑫"]
[2024,"启航未来支教行",{"$f":"'[1]1.优秀团队汇总表'!$L$12","v":"三等奖"},"优秀实践团队评选","石油工程学院","2023215195","李家豪","李家豪/2023215195,胡思伟/2023215160,任俊帆/2022210382,宋振雨/2023210299,常淼轩/2022010337,马斯维/2022010293,张安迪/2021010217","薛亮,刘月田,李杰"]
[2024,"青力助重建，青为扶振兴————基于北京河北地区的地质汛期防治实践团",{"$f":"'[1]1.优秀团队汇总表'!$L$12","v":"三等奖"},"优秀实践团队评选","非常规油气科学技术研究院","2023311203","李世昌","朱福玉/2023311205,高静怡/2023216637","刘诗语,杨磊磊"]
[2024,"泉涌新商潮，温启未来梦",{"$f":"'[1]1.优秀团队汇总表'!$L$12","v":"三等奖"},"优秀实践团队评选","机械与储运工程学院","2020010852","庞金龙","祁家宝/2022010718,陈腊梅/2022010706,林雪仪/2022010796,杨睿/2022010932,陈佳璐/2022010879,于秀洋/2022010846,师海熙/2022010872,李炜/2022010712,朱婧怡/2023010897,宋桂龙/2023210773","刘晔,殷迪,鞠斌杰"]
[2024,"大地之光•圆梦——“豫”耕“周”韵，“乡”约青春",{"$f":"'[1]1.优秀团队汇总表'!$L$12","v":"三等奖"},"优秀实践团队评选","地球科学学院","2022010017","杜健","李普一/2021010165,闫璟驰/2023210156,陶润泽/2023210091,刘奕辰/2023215023,杨荣彬/2021010152,段雨杨/2022010039,张依明/2022012224,谌启玥/2022011942,徐清岩/2021010132,白一涵/2023010133","王茹,姚梦竹"]
[2024,"“石油传烽，井冈新声”井冈山精神志愿宣讲",{"$f":"'[1]1.优秀团队汇总表'!$L$12","v":"三等奖"},"优秀实践团队评选","人工智能学院","2022011721","于茗旭","高蓉/2022011710,戴祥文/2022011714,李星逸/2022011730,王毅松/2022011717,郭皓东/2022011726,张桓铭/2022011718,郭欣悦/2022011711,缪云楚/2022011183,李欣怡/2022010824","苏星源"]
[2024,"“大漠砺剑”航空航天精神探寻研学之旅",{"$f":"'[1]1.优秀团队汇总表'!$L$12","v":"三等奖"},"优秀实践团队评选","化学工程与环境学院","2023010631","白智渊","杨仁杰/2023010576,胡浩然/2023211430,张乘慧/2023210634,孙佳璐/2023010601,辛名博/2023010572,戴铭萱/2023010624,盛蓉/2022010553,薛鹏展/2023010479,李娜/2023010565,姚晟旺/2023010632","李文倩,梁硕"]
[2024,"青马筑梦启新程，产学研融振新乡",{"$f":"'[1]1.优秀团队汇总表'!$L$12","v":"三等奖"},"优秀实践团队评选","马克思主义学院","2022012141","曲家彤","江岚/2022012116,曲梓嫣/2022012122,李羽铭/2022012119,刘文静/2022012149,李沁芸/2022012118,戴铭萱/2023010624,化晚晴/2022012146,亓宸玥/2022012151,陶雪琪/2023012155,张泽欣/2023012072","刘彤彤,刘韵秋"]
[2024,"弘扬践行丝路精神，传承一带一路新荣光",{"$f":"'[1]1.优秀团队汇总表'!$L$12","v":"三等奖"},"优秀实践团队评选","地球科学学院","2021010065","郭泽慧","李普一/2021010165,李梓阳/2021010171,宋翔羽/2021010156,王一杰/2021010142,赵洋/2021010081","王茹,姚梦竹,孟笑"]
[2024,"服务计算本硕博联合党支部",{"$f":"'[1]1.优秀团队汇总表'!$L$12","v":"三等奖"},"优秀实践团队评选","人工智能学院","2022211244","冯子涵","董颖/2023211253,任杰/2023216019,卢晓丹/2023216018","代莉莎"]
[2024,"文化引擎彰史韵、乡村振兴绘新章———探寻中华优秀传统文化融入乡村振兴新路径",{"$f":"'[1]1.优秀团队汇总表'!$L$12","v":"三等奖"},"优秀实践团队评选","马克思主义学院","2022012142","米家乐","亓宸玥/2022012151,李千卉/2022012117,闫佳敏/2022012143,宫子淇/2022012145,曲家彤/2022012141,包娅琪/2022012144,齐思淼/2022012121,程玉夏冰/2022012140,凌晨/2023011480","张明明"]
[2024,"文化赋魂 山海偕行",{"$f":"'[1]1.优秀团队汇总表'!$L$12","v":"三等奖"},"优秀实践团队评选","安全与海洋工程学院","2023211010","王志浩","刘金朋/2023011257,徐宁慧/2023011239,杨振铎/2023011200,陈弈真/2023011310,黎子琪/2023011296,张文璐/2023011173,韦思贤/2023011276,梁雨轩/2023011314,郭黎巍/2023011215,李文琴/2023011294,赵艺涵/2023011295","徐云飞"]
[2024,"石油先锋成长营+学习能源知识，开展能源科普",{"$f":"'[1]1.优秀团队汇总表'!$L$12","v":"三等奖"},"优秀实践团队评选","新能源与材料学院","2023011495","徐润仪","宋建豪/2023011499,刘清舟/2023010319,田梓阳/2023011514,杨耀杰/2023011516,汪天赋/2023011497,彭子懿/2022012027,付可欣/2023011491,王禹桐/2023011106,佟潇/2021011493","李田放"]

{"sheet":"先进工作者","index":1,"n_rows":41,"n_cols":10,"rows_kept":41}
["排序","获得奖项","挂靠单位","实践主题","团队名称","负责人","联系方式","指导教师","先进工作者姓名","先进工作者工号"]
[1,"一等奖","校团委","青振乡村","“红绿融合”唱好乡村振兴征途上的长征组歌实践团","李慧琳",15510559500,"徐驰翀、周学智、赵浩钦","赵浩钦",2023211616]
[2,"一等奖","人工智能学院","青振乡村","“兴文逐梦 石子担当”社会实践团队","霍嘉宇",15210919227,"刘思航、马亚秋、周嘉璇","马亚秋",2020881005]
[3,"一等奖","校团委","青学践悟","遍访边关英雄志，戍卫山河家国情","罗楚龙",13574104196,"周学智、韩瑾、邵炜涛","韩瑾",2015880028]
[4,"一等奖","石油工程学院","青护生态","青“石”助湘行实践团","邓鑫",18515220679,"刘衡升、周学智、刘东东","刘衡升",2022880046]
[5,"一等奖","安全与海洋工程学院","青砺基层","丝路青春行·疆海情缘","刘帅",13992150488,"赵思源，李茂粟，赵凯","解庆莹",2024211335]
[6,"一等奖","安全与海洋工程学院","青振乡村","“共研山海经·同谋未来路”","王志浩",18340607081,"徐云飞，李茂粟，赵凯","王志浩",2023211010]
[7,"一等奖","石油工程学院","青振乡村","“油Young青年“志愿服务队","陈永恒",18048682368,"陈楠、刘东东、王伟","王伟",2016880025]
[8,"一等奖","新能源与材料学院","青振乡村","科技助力乡村振兴，打造绿色能源小镇","陈锐",18008169668,"刘峰，李田放，赵艺","赵艺",2023911009]
[9,"一等奖","机械与储运工程学院","石油先锋成长营","石油先锋成长营：先锋探源·西气东输万里行，新质生产·工匠楷模薪火传","雷宇乐",13892931029,"鞠斌杰、刘晔、王文超","王文辉",2024880027]
[10,"一等奖","理学院","青系四海","读懂中国式现代化暑期社会实践团","刘希",19967804768,"王天,张乐,吴双","吴双",2022880052]
[11,"一等奖","安全与海洋工程学院","青系四海","“润疆筑梦，丝路悠扬”","张智栋",13120037899,"李茂粟，徐云飞，赵凯","许浩桢",2024880035]
[12,"一等奖","机械与储运工程学院","青砺基层","弦歌不辍筑章汉模式，继往开来谱云贵新篇","庞金龙",18701649594,"刘晔，贾彦坤，冯俊达","冯俊达",2023880015]
[13,"一等奖","马克思主义学院","青志生产","“薪火传承，青志领航”——能源科创先锋行","乔琳舒",18920091676,"刘彤彤、贾庆超、方百会","刘彤彤",2018880010]
[14,"一等奖","新能源与材料学院","青志生产","绿源探航-产教研融合的新能源未来","齐豪",16651295666,"李田放、于富海","于富海",2022880050]
[15,"一等奖","化学工程与环境学院","青学践悟","“烽火青春 红梦引航”红色实践团","胡浩然",18201015051,"梁硕 苏鑫亮","苏鑫亮",2024911003]
[16,"一等奖","地球物理学院","青振乡村","石子筑梦实践团","徐滢滢",13373146213,"陆杭波、付强、钟嘉雯","陆杭波",2012880030]
[17,"二等奖","化学工程与环境学院","青振乡村","“筑梦南华”萤火志愿服务队","张润霞",13170513176,"倪鹏磊 李文倩","倪鹏磊",2022911006]
[18,"二等奖","校团委","青护生态","迎豹回家——发挥生态廊道沿途资源禀赋优势助力京郊美丽乡村建设","刘佳铭",15040132155,"赵盛旭","赵盛旭",2024911005]
[19,"二等奖","机械与储运工程学院","青振乡村","首善农残实践团","王畅",15543228266,"王文辉，殷迪，周芷名","周芷名",2023210822]
[20,"二等奖","新能源与材料学院","青护生态","助还生态之清嘉，青访津冀为绿行","赵冰心",13581170220,"李田放、周凌希","周凌希",2020880013]
[21,"二等奖","地球科学学院","青砺基层","古道星火，乐韵新生","闫璟驰",15048732459,"姚梦竹","姚梦竹",2016880020]
[22,"二等奖","石油工程学院","青振乡村","青寻西北金滩能源新篇，梦绘乡村振兴斑斓画卷","孙钰颖",15231621337,"刘思辰、刘东东、肖亚楠","刘思辰",2022911003]
[23,"二等奖","马克思主义学院","青振乡村","香韵山村，助农油我实践团","史安月",18923769982,"方百会、谢静、刘彤彤","方百会",2015880031]
[24,"二等奖","新能源与材料学院","青学践悟","凝聚校企“核”力，共创核能“碳”路","周熠",18922853212,"刘峰，金玮，周凌希","金玮",2022911011]
[25,"二等奖","机械与储运工程学院","青振乡村","青系油缘，筑梦乡振","付明林",15247605079,"李健，鞠斌杰，高雪","李健",2022880048]
[26,"二等奖","经济管理学院","青振乡村","经行筑梦 乡遇青苗","韦欣宜",13332925202,"吴楠 向晶","吴楠",2022216370]
[27,"二等奖","校团委","青振乡村","药农星链——助力药农散户中药材交易","蒋子明",13439842265,"贾庆超","贾庆超",2017881007]
[28,"二等奖","石油工程学院","青振乡村","青燃希望萤火，童汇万里星河","张梦圆",15198252881,"刘衡升、刘东东、肖亚楠","李文豪",2024880026]
[29,"二等奖","地球科学学院","青学践悟","共圆华夏复兴梦，同筑边疆民族情","郭妍晶",17801250716,"刘俊鑫、姚梦竹","刘俊鑫",2020880012]
[30,"二等奖","校团委","青护生态","降碳减污、协同增效——绿色餐饮助力武汉长江经济带高质量发展","陈欣玥",19972117428,"周学智、韩瑾、王瑛璠","王瑛璠",2023910016]
[31,"二等奖","石油工程学院","青砺基层","铁人先锋入社区，青春智慧助治理","李祖亮",18809726017,"刘瑞恒、李季龙、肖亚楠","刘瑞恒",2024911001]
[32,"二等奖","经济管理学院","青护生态","经世碳寻——沿习之路，青行“浙”里","郑佳琼",18395804241,"纪爽、舒伟康、王春蕾","舒伟康",2023911013]
[33,"二等奖","地球科学学院","青振乡村","油子筑梦育蜀南未来，科教惠民绘振兴画卷","鲜国彦",17778166045,"马勇、党宁、姚梦竹","马勇",2016880024]
[34,"二等奖","化学工程与环境学院","青系四海","“丝行融绘”实践队","江锦欣",18272260189,"马雯、倪鹏磊","马雯",2023911002]
[35,"二等奖","地球物理学院","青砺基层","“社区成长伙伴计划”——大学生赋能探索城市社区治理创新路径","马媛",13260315488,"叶鹏、付强、王帅","叶鹏",2022880049]
[36,"二等奖","经济管理学院","青振乡村","聚光琼州“支教+”——作梦想之光的守护者","李卓益",17788419931,"纪爽 王春蕾 舒伟康","王春蕾",2023911012]
[37,"二等奖","地球科学学院","青振乡村","沐光草原儿童，筑梦亮丽北疆","孙衍冰",13204798292,"马文龙、姚梦竹、史燕青","马文龙",2023210140]
[38,"二等奖","新能源与材料学院","青振乡村","绘梦南华——非遗助力乡村振兴行","李云芯",15987636995,"李田放、王荣亮","王荣亮",2021911009]
[39,"二等奖","外国语学院","青系四海","“语”向未来文化宣传大使团","王心雨",17792272012,"谌丛，贾庆超，李滨","谌丛",2363]
[40,"二等奖","理学院","青振乡村","青春聚力正当时，乡村振兴谱新篇","张子怡",17367953629,"刘希","刘希",2022911015]

{"sheet":"先进个人","index":2,"n_rows":216,"n_cols":10,"rows_kept":216,"merged":[[0,0,0,7]]}
["先进个人推荐汇总表"]
["排序","学院","项目名称","姓名","个人所在学院","学号","联系方式","个人实践事迹（300字）"]
[1,"地球科学学院","油子筑梦育蜀南未来，科教‘惠民’绘振兴画卷","刘杰维","地球科学学院",2023010036,13320670728,"我是中国石油大学（北京）地球科学学院“油子筑梦育蜀南未来，科教‘惠民’绘振兴画卷”实践团的刘杰维。我全程参与实践活动，利用自身专业知识，在教授们的带领下对四川宜宾珙县的地质构造进行了细致考察，为当地页岩气资源开发提供了重要数据，并普及了地质防灾知识。同时，我特别关注留守儿童教育，通过课业辅导和心理教育，帮助他们建立自信，拓展视野，并为高中生提供一对一辅导以及教授高考应试技巧指导。我还参与了入户调研，收集数据，撰写报告，为当地政府提供决策支持。实践活动结束后，和成员们积极交流并总结经验，完成最终的总结报告，并再与团队成员配合下完成答辩PPT，以期未来能继续为乡村振兴贡献力量。"]
[2,"地球科学学院","油子筑梦育蜀南未来，科教‘惠民’绘振兴画卷","张安洋","机械与储运工程学院",2023210721,18663971618,"我是中国石油大学（北京）地球科学学院“油子筑梦育蜀南未来，科教‘惠民’绘振兴画卷”实践团的张安洋。我全程参与本次实践活动，积极联系与当地驻村负责干部联系，组织筹备本次社会实践活动，在指导老师和教授们的带领下对四川宜宾珙县的经济、产业、教育等方面进行了调研工作。同时，我和实践团成员特别关注乡村教育，为乡村儿童开展课业辅导、心理辅导，为强化留守儿童课业知识，提高学习成绩；为乡村儿童开展漆扇、太极等文化拓展类课程，扩宽孩子们的视野。我还参与了乡村调研，统计样本情况，撰写实践报告，为当地政策施行提供参考。此外，我还赴成都与四川校友会及长宁页岩气公司校友开展座谈交流，分享乡村情况，建立乡村与校友沟通的桥梁，发挥中石大人的力量助力乡村振兴。"]
[3,"地球科学学院","沐光草原儿童","孙衍冰","地球科学学院",2023010004,13204798292,"我是中国石油大学（北京）地球科学学院“沐光草原儿童 筑梦亮丽北疆”实践团的孙衍冰。在实践开始前，本人积极与当地农村小学和村委会对接，向其讲明我们实践团的来意与活动内容，并确保落实实践团实践期间的住宿饮食问题，同时确保实践团的出行安全。同时组织策划前期的宣传工作与物资准备，向家长和小朋友们宣传介绍我们的实践活动，吸引孩子们参与，扩大实践的影响力，并和队员们协商统计进行物资的购买与课程的准备，确保实践活动的正常进行。实践期间，在辅导员马文龙老师的指导下，本人与实践团围绕“沐光草原儿童，筑梦亮丽北疆”乡村振兴主题，开展留守儿童支教、农村产业调研、基层党员寻访、草原生态保护等社会实践活动。实践团队成员通过为期七天的实践活动，行走在农村田间地头，深入了解内蒙西部地区农村发展现状，为当地农村发展建言献策。"]
[4,"地球科学学院","沐光草原儿童","朱书齐","地球科学学院",2023010103,13061266071,"我是中国石油大学（北京）地球科学学院“沐光草原儿童，筑梦靓丽北疆”实践团的朱书齐。全程参与实践活动，期间本人承担起了解生物多样性、水资源保护、心理小课堂等多项课程的教学工作，通过生动有趣的教学方式，激发孩子们对知识的渴望。除了支教服务项目，还积极参与环保公益活动。实地考察草场环境，入户宣传禁牧畜养政策和垃圾分类政策。与其他成员一起通过走访农户、进行政校座谈会、采访村支书等活动，深入了解到当地农民面临的问题，共同完成当地留守儿童教育现状调研报告一份。在社会实践中，与团队成员沟通顺畅互相配合，完成多份实践报告，将实践活动宣传给各大平台，位列校级重点队伍，并且代表团队进行校级评比答辩。"]
[5,"地球科学学院","同圆华夏复兴梦 共筑边疆民族魂","郭妍晶","地球科学学院",2021010006,17801250716,"作为实践团队长，前期我积极与黑龙江省鸡西市委对接，向他们讲明本次实践活动的来意与活动内容，并落实实践团实践期间的住宿饮食问题，确保实践团的出行安全。实践期间，在指导老师的带领下，我和实践团成员联合团鸡西市委、团陇川县委，围绕“助力民族团结、弘扬红色精神、保护绿水青山、关爱留守儿童”等主题，分两支小队分别前往祖国最东北和最西南地区共同开展为期10天的暑期社会实践活动，开展实践调研，以实际行动弘扬非遗文化，助力乡村振兴。同时，我将队员合理分工，策划实践宣传文案和推送的制作以及实践视频的剪辑，并投稿到各大新闻网站，积极组织评优答辩PPT及实践总结报告的撰写并进行汇总。"]
[6,"地球科学学院","同圆华夏复兴梦 共筑边疆民族魂","刘畅","地球科学学院",2023010006,18511072005,"我是“共赴云岭之南，助力民族团结”社会实践团成员刘畅，在本次实践活动中担任宣传负责人，主要负责制作推送、剪辑视频，并参与各项宣传相关任务。活动内容包括前期宣传策划与推送准备，中期参与陇川县龙安村的民族团结调研、非遗文化传承活动、边防巡逻体验、留守儿童关爱活动等内容的影像记录与整理，后期负责推送总结、宣传视频的剪辑制作。为确保活动的顺利进行和宣传效果的最大化，在团队活动结束后，积极整理素材，剪辑制作实践宣传视频，并撰写相关推送，总结此次实践活动的经验与成果。"]
[7,"地球科学学院","古道星火·乐韵新生","闫璟驰","地球科学学院",2023210156,15048732459,"作为实践团负责人，实践活动中的每一个环节都需要认真对待，反复推敲。实践过程中不仅要与实践地点对接活动细节，也要及时安排实践团的相关工作。“干在实处”是对自己做好实践工作的鞭策，也是此次实践活动前设立的目标，杜绝走马观花式，将实践工作干在实处。七月初组建实践团，到九月初带领50余位青年师生走进水峪嘴村，不仅通过我们的专业知识和技能，为乡村注入新的活力与希望，也为学生们提供了一个展示自己的平台，让更多的人可以为水峪嘴村乡村振兴贡献青年力量。"]
[8,"地球科学学院","古道星火·乐韵新生","刘简凡","地球科学学院",2022010123,13730449663,"我是中国石油大学（北京）地球科学学院“古道星火，乐韵新生”社会实践团刘简凡，在本次社会实践中，我全方位、全身心的投入到过程中，担任团队负责人，进行了社会实践策划案撰写、作为导演参与水峪嘴村村晚设计、村晚PPT视频剪辑、村晚当天现场工作安排、社会实践院、校两级PPT制作及答辩汇报人等等工作。本次共建活动创新性地采用了“四方共建”模式，即校地共建、社团与地方共建、院村支部共建、科普文化共建，中国石油大学（北京）地球科学学院党委带领地研23-6党支部、大学生艺术团、民乐团、陶笛社等众多学生组织和社团，与水峪嘴村党支部紧密合作，共同推动红色文化和古道文化的传承与发展，为乡村振兴注入新活力。"]
[9,"地球科学学院","西北行：溯源黑金根基，播种能源出芽","柴怡曼","地球科学学院",2023010068,18395212771,"我是西北行：溯源黑金根基，播种能源初芽实践团成员柴怡曼，在本次实践团队活动中担任队长，负责组织并参与各项任务。活动内容包括有前期问卷调查，中期包括长庆历史馆参观，作业区实地调研，石油工人采访，“能源进初中”宣讲等多项活动，后期内容包括推送总结、调研报告撰写。本人除组织及监督团队成员分工外，参与有问卷撰写与发放、与油田工作人员及老师对接沟通、实地调研油田作业区工作环境、采访及调研报告撰写等工作。"]
[10,"地球科学学院","西北行：溯源黑金根基，播种能源出芽","陈研","地球科学学院",2023010117,18012128011,"我是西北行：溯源黑金根基，播种能源初芽实践团成员陈研，在本次实践团队活动中担任队员，负责组织并参与各项任务。活动内容包括有前期问卷调查，中期包括长庆历史馆参观，作业区实地调研，石油工人采访，“能源进初中”宣讲等多项活动，后期内容包括推送总结、调研报告撰写。本人主要负责实践项目的策划与安排，实践内容的总结以及新闻稿的撰写，编写整理采访报告等工作。"]
[11,"地球科学学院","豫耕周韵，乡约青春","杜健","地球科学学院",2022010017,15809648832,"我是中国石油大学（北京）地球科学学院“豫”耕“周”韵，乡约青春社会实践团的杜健，在此次社会实践中，我全程参与并深度贡献，作为团队的核心成员，我负责了座谈会的前期筹备工作，成功完成河南省沈丘县纸店镇党委书记刘雪华进行了一次深入的交流座谈。在此基础上，完成相关筹划，文字稿工作，帮助实践团依托地球科学学院的思政教育平台，在去年成功打造商水县第一高中的“文化育人实践基地暨大学生实习实践基地”，以及周口市“智慧型”高标准农田示范区的“劳动教育基地暨乡村振兴研学基地”的基础上，进一步推进了“1＋N”大学生系列优质实践基地的建设。成功签约授予沈丘县第一高级中学“优质生源基地”的称号，并将孟凡章烈士纪念馆设立为“思想政治教育基地”。"]
[12,"地球科学学院","豫耕周韵，乡约青春","白一涵","地球科学学院",2023010133,13285070561,"我是中国石油大学（北京）地球科学学院“豫”耕“周”韵，乡约青春社会实践团的白一涵。我全程参与此次实践活动，期间本人主要负责前期活动的对接和准备工作，后期的文稿工作以及活动中的录音和拍摄工作。在实践活动中，我全程参与了周口青甜小镇负责人李总的深度采访，细致聆听并总结了李总对于亲子互动与能耕文化融合的创新路径，为乡村经济的多元化发展提出了新颖见解。同时，我有幸协助团队完成与沈丘县第一高级中学的合作签约，成功授予其\"优质生源地\"的荣誉。在筹备阶段，我精心策划，细致打磨文稿，确保了活动的圆满成功。在实践过程中，我与线上线下团队成员沟通交流，互相协作，共同完成此次实践活动，并代表团队进行了院级答辩。"]
[13,"地球科学学院","弘扬践行丝路精神，传承一带一路新荣光","王紫路","地球科学学院",2023010031,15801165782,"我是中国石油大学（北京）地球科学学院弘扬践行丝路精神，传承一带一路新荣光实践团的王紫路，我在我们社会实践团队中承担媒体任务，并深感荣幸能深入丝路探索，见证青年学子与丝路的紧密连接。通过与孩子们踢足球，为他们上课以及共同劳动等活动，我看到了知识的力量如何为乡村儿童点亮希望之光。我还探索当地特色文化，如饮食、历史以及铁路等，让我对这片丝路上富饶与美丽有了更深的理解。实践活动让我认识到乡村振兴的深远意义，即为广大农村人民的生活品质与精神富足添砖加瓦。我们青年人必须在其中的关键作用，将科技与文化的融合，让红色精神与绿色发展的并进。我坚信，青年人的奋斗与梦想正丝路注入新的活力。"]
[14,"地球科学学院","情系四海 华韵同心","刘佳旺","地球科学学院",2022010049,13080285788,"我是情系四海，华韵同心实践团队的刘佳旺，在本次实践中担任队长，负责组织策划并参与各项任务。活动内容包括与外国友人参观博物馆，亲自体验非遗文化。本人积极联系外国友人，相互交流，促进本次活动完成。接着寻找附近的非遗文化，深入了解外国友人对中国的兴趣方向，让他们更好的融入团队之中，同时积极完成调研报告与PPT制作。"]
[15,"地球科学学院","党员领航，青年逐梦——学习二十大精神，寻访红色印记","钟盈盈","地球科学学院",2022010072,17830827580,"我是中国石油大学（北京）地球科学学院“党员领航，青年逐梦——学习二十大精神，寻访红色印记”社会实践团钟盈盈。作为本次社会实践的组织者以及团队负责人，我在实践前期进行了活动策划，包括实践内容、任务分工等，在实践期间组织并带领整个团队进行三条红色路线的实践参观、联系并采访了家乡的一位优秀党员并撰写访谈记录、调研家乡森林防火禁火防护措施并针对问题提出一版方案提议、为宣传森林防火制作了两张海报，在后期我还负责剪辑实践宣传视频、宣传推送排版、撰写实践报告的部分内容，参与社会实践PPT制作并进行了答辩。本次社会实践从党的二十大精神的感悟，到党员优秀品质的学习，再到尽吾所能为社区做实事，从心灵到身体都是一次深刻体验，通过我们的力量将红色文化精神传播出去，加深对党的认识理解。"]
[16,"地球科学学院","石油红推动绿发展—给沙漠点“颜色”看看","艾柯代·艾尼瓦尔","地球科学学院",2023010066,13345337505]
[17,"地球科学学院","青幼同行圆梦乡村","潘俊明","地球科学学院",2023010087,15866632786,"我是中国石油大学（北京）地球科学学院潘俊明，在本次社会实践中担任队长，主要负责前期工作对接、物资准备，过程中实施的统筹。最后完成结项报告，剪辑社会实践视频，做社会实践推送。在本次社会实践中，我带领团队成员前往了济南华清园学校进行支教、为孩子们带来了有趣的科普课程，进行了心里拓展活动，开展了有趣的篮球赛，最后还去了一名同学家中家访，让我们对留守儿童问题理解更加深刻。"]
[18,"地球科学学院","溯源——滨河公园洪水调蓄与生态修复","张雨佳","地球科学学院",2023010040,13693381873,"我是中国石油大学（北京）地球科学学院“溯源--滨河公园洪水调蓄与生态修复”实践项目的队长。在这个活动中，我前期主动联系了指导老师，及时与相关公园负责人取得了联系。在实地考察活动开始之前，收集队友的基本信息，进行汇总。随后，我制定了7月1日到8月1日的详细实践计划，对于组内成员进行了分工。7月初，我组织了队员统一外出的活动，在实地考察中，我负责摄影与记录，尽可能捕捉活动中的重要时刻和现场的自然风光。这些记录不仅为后续的总结提供了宝贵素材，也为队员们留下了美好的回忆。此外，我还整理了采访材料，收集了每位队员的感想与见解。在报告撰写中，我积极参与，将这些珍贵的意见汇总到一起，确保每位队员的声音都能被传达。在总结成果时，我主导了PPT的制作和宣传视频的编辑工作。利用现代技术，我尝试将我们的成果生动地呈现出来，使观众能够更好地理解我们的工作与付出。此外，我将相关视频发布到社交媒体上，并将总结的相关数据交予公园相关负责人。"]
[19,"地球科学学院","沙漠奇迹，绿荫守望","刘弘毅","地球科学学院",2023010076,15609315959,"我是中国石油大学（北京地球科学学院）“沙漠奇迹，绿荫守望”实践团队的队长刘弘毅，负责团队前期实践地点联系，计划实践日程和安排实践内容，同时也负责实践中摄影摄像记录和后期记录视频制作以及推送的制作。为了确保实践活动的顺利进行，我提前做了大量的准备工作。我查阅了大量的资料，了解了民勤县的基本情况和治沙的相关知识。同时，我还准备了必要的生活和工作用品，以便能够在实践中保持良好的状态。我和相对应的治沙志愿者组织从前期对接联系，了解他们的活动范围和种类，再到定主题，我积极推进团队间的交流合作。在民勤县，我亲身参与了治沙工作。我们和当地的工作人员一起，在沙漠中植树、种草，巡护林场，亲眼看到了去沙漠化的趋势，同时我们也调查了民勤治沙的周遭环境和基础设施，我们走访调查了水库，纪念馆，尽管工作辛苦，但我从未感到疲惫，因为我知道，在民勤的每一棵树、每一株草都是人们对沙漠化的抵抗，都是人定胜天的证明。"]
[20,"地球科学学院","绿水青山-水质检测","冶晓瑞","地球科学学院",2023010081,13519754104,"我是中国石油大学（北京）地球科学学院“绿水青山-水质检测”这一社会实践项目的组织者及负责人，地球科学学院资源23-3冶晓瑞。在此次活动中我负责策划这次活动，负责对水质检测实践过程的策划，实践报告制作，实践视频制作，参与PPT的制作。在最后的汇总过程中我完成了此次实践活动的最终汇总，并在二课提交了此次活动的成果"]
[21,"地球科学学院","对于铁人精神的认识与感悟","张智涵","地球科学学院",2023010043,16645405292,"我是中国石油大学（北京）地球科学学院23级的张智涵，作为“对于铁人精神的认识与感悟”这一社会实践项目的重要参与成员。我深入了大庆精神，铁人精神的发源地，前往了铁人精神纪念馆，油田历史陈列馆，大庆市第八采油厂这些地点。在讲解员和石油工作者们的帮助下，我和团队各成员完成了认识铁人精神、理解铁人精神、传播铁人精神的过程。我在实践期间，积极组织实践成员参与到对参观地区的认识和讲解中来、落实到以服务社会为核心思想的社会实践中去。在完成计划内的社会实践内容之外，我还组织了团队成员在社会实践的同时进行一定的志愿服务和好人好事。身体力行的践行铁人精神，以自身为旗帜树立中石大学子的优秀道德素养。"]
[22,"地球科学学院","油子筑梦育蜀南未来，科教惠民绘振兴画卷","鲜国彦",null,2021210038,17778166045]
[23,"石油工程学院","“石”心“石”意，“油”你“油”我——湘籍学子返湘志愿服务1队","罗备","石油工程学院",2023010294,17873631200,"我带领由在京湘籍学子组成的社会实践队伍，深入基层，前往长沙市青竹湖社区、史家坡社区开展社会实践活动，为社区的小朋友们带来了以“防溺水安全知识”以及“非遗在童心，安全伴同行知识宣讲活动”等为主的支教课程。我们走进社区，将知识的种子播撒在每一位小朋友们的心田；我们以行动诠释责任，用热情点燃希望，让非遗文化在现代化进程中焕发新的生机与活力；同时，我们亦不忘历史，重走红色经典之路，参观湖南一师纪念馆、毛主席青年雕塑，追溯主席道路，让革命先辈的英勇事迹和崇高精神成为激励青年前行的不竭动力。"]
[24,"石油工程学院","聚”焦“美丽乡村，刻”画“多彩非遗","李秋果","石油工程学院",2023010279,19712778305,"自六月以来，本人作为团队负责人，全情投入到社会实践活动的筹备工作中。在项目启动之初，即刻展开与河南省开封市兰考县张庄村以及祥符区朱仙镇地方村委会的密切沟通与协商，确保了合作框架的顺利搭建，并为后续工作的开展奠定了坚实的基础。在此期间，还特别注重团队成员的知识储备建设，组织了多次线上专题学习会，深入解析两地的历史沿革、文化特色及社会发展现状，力求让每一位参与者都能带着充分的理解与尊重，投入到即将开展的社会实践中去。进入实践阶段后，一系列精心策划的活动如火如荼地展开，包括但不限于深度访谈、主题宣讲以及敬老助困等，每一项活动均指派专人负责，确保执行过程中的专业性和高效性。通过这些活动，不仅加深了我们对当地社区的认识，也促进了双方之间的情感交流与文化共鸣。最后，在活动告一段落之际，组织了全体成员进行成果分享与心得交流，鼓励大家从不同角度出发，总结经验教训，提炼实践精髓，制作调研报告，为整个项目画上了圆满的句号，并为进一步的研究与行动提供了宝贵的第一手资料。"]
[25,"石油工程学院","生态＋科技＋发展，关于密云水库保水护水举措的探究","陈凯杰","石油工程学院",2022010296,19932800175,"生态＋科技＋发展，关于密云水库保水护水举措的探究"]
[26,"石油工程学院","启航未来支教行","李家豪","石油工程学院",2023215195,13323402314,"从“共建党支部1+4”到“名师线下科普”，最后再是“开展多彩课程”，作为支教队长，我在整个支教过程中不仅承担了组织和管理的职责，更以实际行动践行了服务基层的初心。"]
[27,"石油工程学院","青励基层·共筑未来","张彤烁","石油工程学院",2023210244,18103199389,"在志愿活动期间我认真备课，我深知肩上的责任重大。在倪家桥社区，面对着一双双充满求知欲的眼睛，我满怀激情地讲述了国旗的意义、家乡的美丽以及志愿精神的价值。孩子们专注的神情、积极的互动，让我感受到了教育的力量，也激发了我更加用心、用情去传递知识的决心。我尝试用生动有趣的方式，将复杂的安全知识转化为孩子们易于理解的语言，让他们在轻松愉快的氛围中掌握实用的自我保护技能。在接下来的日子里，我不仅是主讲人，更是团队的坚实后盾。我积极参与到其他主讲人的课程辅助中，细致观察每一个孩子的反应，及时与主讲人沟通调整教学策略，确保每一堂课都能达到最佳效果。在这个过程中，我深刻体会到了团队合作的重要性，我们相互学习、相互支持，共同为孩子们的成长撑起一片天空。转眼间，志愿活动画上了圆满的句号。这段经历不仅让我收获了宝贵的教学经验，更让我学会了如何与人沟通、如何团队协作、如何在实践中不断反思与成长。我结识了一群志同道合的朋友，我们共同度过了难忘的时光，建立了深厚的友谊。这些宝贵的记忆将成为我人生旅途中最亮丽的风景线。展望未来，我深知公益之路任重而道远。我将以此次活动为契机，继续秉承“奉献、友爱、互助、进步”的志愿精神，积极参与更多公益活动，用实际行动去关爱他人、回馈社会。我相信，只要我们每个人都贡献出自己的一份力量，这个世界将会变得更加美好。"]
[28,"石油工程学院","探访红色圣地，赓续石油血脉","张长胜","石油工程学院",2023210334,17691395904,"进入革命圣地延安进行实践，积极参加参观及志愿活动，在杨家岭革命旧址为参观者担任志愿讲解员，并与工作人员一起维护革命旧址的卫生维护工作。此外在和延安大学石油学院党支部工作者们交流工作时负责记录工作"]
[29,"石油工程学院","青燃希望萤火，童汇万里星河","张梦圆","石油工程学院",2023215179,15198252881,"从6月初开始，我着手社会实践的筹备工作，亲手设计队服，完成支教课程的总体设计，组织队员培训反复开展课程试讲打磨，积极对接实践地，安排任务分工统筹出发前所有需要完成事宜。7月4日带领团队奔赴巢湖，我提出创新教学方法，构建了五维学习方法，深度参与每一个课堂。我积极走访学生家庭，带领孩子们采访国家级非遗传承人、巢湖好人等典范，邀请榜样人物与儿童结对帮扶。同时，我参与了大量走访调研工作，实地调研乡村振兴示范项目，代表团队在全国大学生乡村振兴服务团座谈会上进行发言，分享团队经验做法。回京后前往怡园社区进行2宣讲，宣传巢湖经验，并且撰写实践总结材料和新闻，完成七彩假期、乡村振兴、圆梦工程等专项结项和各类投稿，此次实践我受益匪浅，在未来的日子里，我会继续秉承初心，勇往直前，为社会的进步和发展贡献更多的青春力量。"]
[30,"石油工程学院","共创文明生态建设，齐促绿色低碳转型","王涵舟","石油工程学院",2023010289,18539178387,"在本次的社会实践过程中，我带头组织同学们加入团队，共同完成了本次“共创生态文明建设，齐促绿色低碳转型”社会实践。因为我知道这是一次对我们能力全面提升的绝佳机会，大学本就不仅仅是一个学习的地方，它更是让我们不断提升自己的机遇。本次实践过程中我作为队长，我首先根据每个人的家乡进行了不同的分工，例如位于山东济南的宣讲队和新疆伊犁的宣讲队，并围绕本次实践的主阵地焦作进行了提前准备工作。我率先联系了焦作市山阳区副区长王永刚同志，完成了一次对焦作市推动生态质量稳定向好三年行动计划的提问，王区长面对一系列环保问题进行了详细的回答，为我们团队之后的理论调研提供了重要依据。"]
[31,"石油工程学院","青寻西北金滩能源新篇，梦绘乡村振兴斑斓画卷","孙钰颖","石油工程学院",2022215102,15231621337,"实践筹备期，我多次召集实践团成员开展线上线下多次会议讨论，主笔完成社会实践策划书。其中，我提出了“多档定位、小包装、风味酒”的品牌思路，与企业洽谈成功，此外我还主要设计了支教五育课程的主干方向、智育课程、“闽宁绿源启智行”活动细节工作等实践细节设计。在物资筹备过程中，我负责沟通、联络、设计等方面，完成了实践日程计划表、主题课程分工、道具计划表、物资购买、团队logo及队旗设计、宣传海报制作等工作，为项目顺利实施打下坚实基础。\n实践过程中，我负责整个实践团的安全及人员调动工作，每日带队完成当日的实践活动。同时，我兼任团队摄影师，负责每日实践工作跟拍，获得视频素材900余份，并设计、拍摄、剪辑了实践总结视频3版；运营团队抖音等媒体号，发布作品10余条。同时，我还完成了专访工作的采访稿设计、现场采访、专访新闻撰写等工作，文稿已投稿至中青校园等宣传平台。五育课程教学、非遗工坊采访及学习、与红酒装洽谈新理念等工作，我也悉数参与并负责完成了相应工作。最后按时保质保量完成学院总结材料整理提交工作，作为团队负责人完成学院社会实践项目总结答辩，获得第一名成绩。"]
[32,"石油工程学院","青心播种社区希望，基层砺就青年力量","王艺涵","石油工程学院",2023010216,18561117879," 社会实践经验丰富。王艺涵高中阶段曾多次参与社会志愿服务活动，如社区助老、残疾人帮扶、环境保护等，曾获得烟台市五星级义工称号。在进入大学后，他仍然不忘初心，继续参加社会志愿活动，如社区助老、环境保护、大型社会活动服务等，具有丰富的志愿服务经验和风险社会的责任感与使命感。曾带队取得北京市挑战杯市级三等奖，任班级团支书，有着多次策划活动的经验。在暑期社会实践中，王艺涵组建了一支能吃苦、有爱心的实践团队。根据个人经验，在实践开始前，对队伍进行相关知识培训和动员，使新队员能够迅速融入团队，并具备必要的服务技能，提高大家的凝聚力和责任感。他还提出了志愿服务的分组管理模式，按照不同活动内容进行团队分工，极大地提高了志愿活动的执行力和效果。本次社会实践活动立项书及总结报告均由其个人撰写。在“共绘星光”活动中，王艺涵采访了当地自闭症儿童医疗中心负责人和当地团委社协负责人，分析线下调查问卷150余份及线上问卷两百余份，并将信息整合，形成了龙口市当地自闭症儿童调研报告，为当地社会保障服务献言献策。王艺涵在社会实践中，联系了当地社会团委与龙口市遇家中学，为开展活动提供媒介。活动过程中，携手昕意手作等个体商户及蓝天公益管乐团、东方志愿服务队、南山大学社会实践团等多家志愿团队，联合开展活动。王艺涵始终亲力亲为，负责组织策划、资源调配，甚至亲自进行对接与宣传工作，扩大活动影响。为了帮助经济困难的自闭症家庭，王艺涵带领团队策划并开展“义演义卖”活动。活动邀请了公益管乐团，利用多条媒体进行宣传。义卖内容包括同学们手工制作的艺术作品。通过这些义卖活动，王艺涵不仅为贫困学生筹集到了急需的学费和生活费，还将公益理念深入传播到了社会群体中。在这些义卖活动中，王艺涵始自进行宣传工作，确保每次义卖活动都取得圆满成功。在志愿服务活动中，团队意外遇到了一场突发的暴雨，导致原定的服务计划无法如期进行。面对突发情况，王艺涵迅速调整策略，合理安排出行时间与出行方式。他的冷静与领导力不仅让团队成员看到了服务队在关键时刻的担当，也保障了志愿活动正常进行。王艺涵特别关注社会上的弱势群体，如留守儿童、退休老党员等。他策划了“青心向党”活动，带领志愿者前往党建服务中心，为老人们提供心理慰藉和生活帮助。他与老人们交流，倾听他们的故事，还组织志愿者为他们表演文艺节目、协助他们进行日常活动。“追光校园”活动中，走入乡村学校，为当地留守儿童开展红色教育与能源科普，坚定能源报国决心，播撒红色种子。"]
[33,"石油工程学院","七彩假期逐梦情暖童心  青春光芒赋能乡村振兴","陈永恒","石油工程学院",2023210270,18048682368,"   在本次社会实践活动中，我带领党支部委员会牵头策划，号召课题组全体成员参与其中。创新性设计安排七位负责人负责为期一周的夏令营活动，并组建乡村振兴策划组、生活服务统筹组、特色活动策划组、日常教学推进组、活动总结宣传组 5 个小组为本次活动的顺利开展保驾护航。支教活动以七彩假期为导向，设计红色精神宣讲、能源科普、中外文化交流、科技课堂等七大板块课程；以爱心为舵，以课程为翼，以爱心为舵，以课程为翼，不断推进“五育工程”走深、走细、走实；在乡村振兴方面，团队融合“调研+共建”的工作模式，以“先富带动后富”思路牵线搭桥，特邀全国三八红旗手，中卡友好生态园李经理深入白龙乡开展对口帮扶，带动当地农业经济发展，为促进京津冀三地协同发展注入新鲜血液。"]
[34,"石油工程学院","研访油海绿意，踏勘生态守望","董书赫","石油工程学院",2023010226,13331465645,"带领团队，组织前往长庆油田第十二采油厂开展到岗实践。社会实践前期独自进行规划，统筹工作，独自完成“七彩假期”专项申报书并入选。"]
[35,"石油工程学院","“心怀能源报国志，饮水思源湘土情”","邓鑫","石油工程学院",2024310167,18711051736,"为深入学习习近平总书记关于乡村振兴的重要论述，助力中国式现代化乡村治理和乡村产业发展，我于5月初组建青“石”助湘行社会实践团，并于7月底前往近1600公里外的湖南省祁东县砖塘包圣殿完小，以“青话党史、青伴童心、青助文旅”为主题，开展为期10天社会实践。"]
[36,"石油工程学院","铁人先锋入社区，青春智慧助治理","李祖亮","石油工程学院",2023210210,18809726017,"作为铁人先锋实践团队长，我在5月份就开始筹划，组建团队。在6月开始申报项目并且开始项目计划书撰写，然而接到山西实践地点消息，由于当地山火，无法再去山西。知道消息后，我积极整合现有资源，联系北京市内实践地点。最终带领实践团在安平巷社区、怡园社区、中卡生态园开展了为期10天的“青砺基层”社会实践。在安平巷社区，我带领大家走访古迹，为古迹撰写讲解词，制作文旅地图，得到了社区领导的认可；在怡园社区，我带领大家开展了5天的爱心支教，旨在丰富青少年的假期生活，提升他们的综合素质，获得了家长的一致好评；在中卡生态园，我策划了助农直播，设计专属直播宣传海报，为果农打开销路。这次直播观众达到2600余次，增加万元销售额，为果农带来了实实在在的收益。"]
[37,"石油工程学院","碧海探秘共寻“清洁能” 低碳实践同筑“绿色港”","杨京京","石油工程学院",2023010195,18311305630,"在本次“碧海探秘共寻‘清洁能’，低碳实践同筑‘绿色港’”的社会实践活动中，杨京京作为“气”贯长虹实践团的队长，组织并带领团队完成了此次社会实践，并于大家一起进步，提升个人综合素质，为绿色低碳事业贡献了青年力量。\n在实践初期，杨京京主动承担起信息收集及联系社会实践地点的任务。在搜集好相关文献并联系好河北省唐山市曹妃甸LNG接收站后，杨京京前往中海油大厦，现场进行知识了解与深入调研。在此过程中，杨京京观察了唐山曹妃甸LNG接收站的模型，掌握了LNG的基本信息、工业流程及销售情况，并专业人士的讲解下，对LNG流程中的关键技术有了全面而深刻的认识。这一过程不仅为团队后续的实践奠定了坚实的理论基础。\n随着实践的深入，杨京京带领团队制定了详细的实践计划与方案，协调物资准备、文案编辑及宣传策划等各个环节。她带领成员们积极准备“关于LNG相关知识与能源转型”的调查问卷，广泛收集社会各界的意见与建议，为后续的实践活动奠定了基础。\n在实践过程中，杨京京始终以身作则，带领实践团成员前往唐山曹妃甸LNG接收站进行实地调研，从安全教育到深入了解接收站的运作流程，她都亲力亲为，确保每位成员都能安全、高效地完成任务。在参观过程中，她认真聆听专业人员的讲解，积极提问，并及时记录相关信息。\n在实践成果的宣传与推广方面，杨京京带领团队在揽月湾举办LNG低碳效益宣讲会，并通过新媒体平台发布实践视频和推送，有效扩大了绿色能源理念的社会影响力，让更多人了解了LNG作为清洁能源的重要性，也激发了更多人对绿色低碳生活的关注和参与。\n在实践结束后，杨京京带领团队分工协作，总结此次社会实践，高效、高质量地完成了相关报告的撰写、新闻的发布等工作。在杨京京的带领下，团队认识到了我国在能源领域的发展程度以及在能源转型中的进程，并了解了LNG项目与环境紧密相连的关系。同时，团队将实践所学积极向社会宣扬，为绿色低碳与能源转型贡献青年力量，使绿色能源的发展注入了新的活力。唐山LNG接收站只是绿色能源征途上的一个缩影。未来，“气”贯长虹实践团将继续携手共进，见证绿色能源科技的魅力，积极传播低碳生活的理念；在探索和实践中不断成长，将知识和实际紧密结合，为绿色低碳的未来书写青春篇章！\n\n"]
[38,"石油工程学院","石油先锋成长营“辽河风吹动五彩油田 青年梦献给崭新时代”","吴桐琳","石油工程学院",2023010332,19173098178]
[39,"石油工程学院","青能护油：智造绿色未来","王萌雨","石油工程学院",2023210251,18392386296,"   作为团队的负责人，王萌雨同志在整个实践过程中展现了卓越的组织能力和领导才能。从项目的立项申请到活动的圆满结束，她始终保持着高度的热情与细致的态度，确保每个环节都顺利推进。在立项阶段，她精心策划，围绕习近平生态文明思想，结合石油行业的实际情况，确定了以低碳环保和生态文明建设为主题的社会实践项目。她与团队成员一起讨论实践方案，明确了实践内容、时间安排和活动方式，确保活动具有实际意义和可行性。\n在实践过程中，王萌雨同志带领团队前往北京市温榆河公园进行实地调研与宣传。为了提高团队成员的学习效果，她精心组织了“碳中和主题公园探访”活动。在参观公园内的碳中和设施时，王萌雨带领团队与公园的专家深入交流，详细了解了碳中和技术的应用背景和实际操作。在她的带领下，团队成员积极参与生态调研，记录植物的种类和分布情况，探讨这些植物在碳中和中的具体贡献。通过理论与实践相结合的方式，王萌雨成功地将抽象的环保理念转化为团队成员可以理解和践行的具体行动。"]
[40,"石油工程学院","红途抚迹·青春实践","王加翔","石油工程学院",2023215128,13361409982,"在担任社会实践负责人期间，我积极组织并参与了多次志愿服务活动，其中最让我自豪的是带领团队参观并服务雷锋纪念馆。我们不仅深入了解了雷锋同志的生平事迹和无私奉献的精神，还通过实际行动传承雷锋精神。在纪念馆内，我们协助工作人员进行日常维护，为参观者提供导览服务，并向他们讲述雷锋的故事，传播正能量。此外，我们还参与了纪念馆的社区服务项目，帮助清理周边环境，为社区居民提供便利。通过这些活动，我们不仅增强了团队的凝聚力，也让更多的人感受到了雷锋精神的时代价值，激励着我们继续在社会实践中发光发热。"]
[41,"石油工程学院","弘扬延安精神，感悟先辈故事   践行时代使命，激发报国之志","张通","石油工程学院",2023010206,14791859980,"带领团队，深入基层，前往延安调研实践，并且将“西柏坡精神”与延安精神结合，共同宣讲，完成了“西柏坡精神”宣讲这一专项的工作，并且还参加了其他活动，丰富实践过程。开展了围绕专项以及宣传红色精神的实践，为期7天的社会实践。将延安精神与西柏坡精神宣讲，取得了一定的成果。\n"]
[42,"石油工程学院","“青励袁村”实践项目","常宇凡","石油工程学院",2023010281,18966819538,"通过这次实践活动，我看到了中国农村的巨大变化和发展潜力。袁家村的成功经验为其他农村地区的发展提供了有益的借鉴。我也希望自己能够将这次实践活动中所学到的知识和经验运用到今后的学习和生活中，为推动农村地区的发展贡献自己的一份力量。"]
[43,"石油工程学院","重走红色调研路.昂首奋进新征程","陈仕源","安全与海洋工程学院",2023011270,13668509673,"为了扩大团队实践成果的影响力与知名度，我积极联系各级媒体进行宣传报道。通过精心撰写的新闻稿与推送文章以及生动的图集与视频资料，我们成功地将团队的实践成果展现给了广大读者与观众。同时，我还将实践过程中的点点滴滴记录了下来并进行了整理，作为团队的宝贵财富予以保存。\n在实践的尾声阶段，我更是全身心投入到实践成果的总结与收尾工作中。我亲自指导团队成员完成了实践报告的撰写与修改工作，并精心制作了图集与视频资料。通过全面的梳理与总结我们不仅回顾了实践过程中的点点滴滴还提炼出了宝贵的经验与教训为未来的实践活动提供了有益的借鉴与参考。\n回顾这段实践旅程我深感收获颇丰。不仅锻炼了自己的组织协调能力、沟通表达能力以及团队协作精神还收获了宝贵的人生经验与成长。我相信在未来的日子里我将继续秉持着“红梦引航”的精神勇往直前不断追求更高的目标与梦想。"]
[44,"石油工程学院","千湖之旅，双碳之行","刘西冉","石油工程学院",2023010349,15358712858]
[45,"石油工程学院","安澜微光","田昊",null,2024310121,18801360144]
[46,"化学工程与环境学院","石油先锋成长营|中石大与兰炼的青春奉献","贾子琨","化学工程与环境学院",2023010386,15348010032,"作为本次社会实践的队长。前期，我精心进行活动规划，积极与寻访的企业、单位及个人联系，为实践活动顺利开展做足准备。实践过程中，我带领队员们有条不紊地完成各项任务，还认真做好会议记录工作。后期，我又忙着视屏制作、报告撰写、PPT 制作、推文制作以及答辩等。我始终与学校、实践地以及队员们保持密切联系，确保信息及时传达。我对本次实践活动的所有工作都了如指掌并积极参与，我深知自己肩负着重大责任，以高度的责任感和敬业精神，为实践活动的成功全力以赴。我希望通过自己的努力，为队员们树立榜样，激励大家共同为实践活动的圆满完成而奋斗。"]
[47,"化学工程与环境学院","石油先锋成长营|“同窗同心，共筑未来”校友寻访实践团","荆体瑞","化学工程与环境学院",2023210676,15545470549,"本人为“同窗同心，共筑未来”校友寻访实践团队长，在本次实践活动中负责实践团队整体统筹与安排。实践前期主要工作为对接校友，所联系校友均为曾在我校学习过的学生，在各行各业工作岗位上取得了较好成绩，产生了良好的影响，具有一定知名度或创业创新典型等校友；实践过程中前往校友所在单位，通过面对面聊天、座谈会、公司或展馆参观等方式与校友开展深入交流，分享彼此的职业发展和生活近况，互相鼓励和支持对方，谈论关于行业发展趋势、社会议题等话题，进行信息交流和思想碰撞，拓宽思维和视野。实践后期对交流内容进行整理，为每名校友撰写专属校友故事并通过微信公众平台进行积极宣传，宣传校友奋斗历程和先进事迹，树立校友榜样。"]
[48,"化学工程与环境学院","“才聚徽州”暑期社会实践团","吴芷璇","化学工程与环境学院",2022010461,18055992268,"本人为“才聚徽州”暑期社会实践团——园中青茶，新安江水琉璃画 的队长。前期与黄山市歙县团委对接安排社会实践流程，主题定在新安江生态，无农残茶园 ，茶文化、徽墨歙砚等一系列非遗文化，在实践过程中带领五湖四海的实践团成员来到黄山这片徽州大地，带领成员领略黄山风景体悟挑夫精神，学习非遗文化，并动手操作在墨上描金，亲身体验采茶制茶等过程，了解徽商徽文化历史。带领实践团成员和安徽医科大学同学共同调研新安江生态，为政府建言献策。最后带领同学们来到浙二院歙县附属医院进行志愿活动，帮助医护人员协调治理。最后带领同学们完成15000字调研报告，其中包含对地方政府提供的发展建议已提交给相关工作人员。 "]
[49,"化学工程与环境学院","绿迹碳寻-环保领航实践团","张乘慧","化学工程与环境学院",2023210634,18810356312,"作为绿迹碳寻-环保领航实践团的队长，我积极投身于各项环保实践活动。从协助组织参观环保企业到亲身参与环境监测实习，我始终站在环保行动的最前线。在昌平区环境保护监测站的实习中，我掌握了水质检测、空气监测等专业技能，并通过科普活动将环保知识传递给更多师生，增强了大家的环保意识。此外，我还参与策划了植物拓染、环保知识问答和绿色骑行等活动，以实际行动践行绿色低碳生活，引领更多人加入环保行列。这些经历不仅丰富了我的专业知识，更坚定了我为地球绿色未来贡献力量的决心。"]
[50,"化学工程与环境学院","出京务实策，入陕振乡村社会实践团队","齐明睿","化学工程与环境学院",2022010540,15721992270,"作为“出京务实策，入陕振乡村”社会实践队的队长，齐明睿带领团队在陕西省铜川市耀州区孙塬镇进行了深入的乡村振兴调研。他们通过实地考察、访谈和问卷调查，全面评估了孙塬镇的发展现状，并提出了创新的发展方案。齐明睿鼓励团队成员积极思考，提出了结合药王文化资源与农业、教育产业的融合方案，以及如何利用电商平台和直播带货拓宽农产品销售渠道。\n在推广方面，他利用新媒体平台扩大了实践活动的影响力，吸引了多家媒体的关注。面对孙塬镇的发展挑战，他提出了加强文化旅游资源宣传、推动产业规模化、鼓励年轻人回乡创业等建议，并与地方政府和企业沟通协调，推动建议的落实。\n实践活动结束后，他持续关注孙塬镇的发展，展现了新时代青年的社会责任感。"]
[51,"化学工程与环境学院","情系南华支教行，携手守护双亲情","曹炜曼","化学工程与环境学院",2022010499,15028129023,"作为“情系南华支教行，携手守护双亲情”项目的一员，我在南华县红土坡镇中心完小小学推广普通话，激发孩子们的语言热情，搭建沟通的桥梁。同时，我协助批改试卷，耐心解答学生疑问，成为他们学习路上的伙伴。在山尾村助老活动中，我用镜头记录温暖瞬间。同时我参与制作手帐珍藏回忆，将我们与老人、孩子们相处的点点滴滴精心编排，每一页都承载着满满的回忆与感动，这些手帐成为了我们共同记忆中最宝贵的财富。我还负责撰写新闻稿、推送稿和视频文案，通过文字与影像讲述我们的故事，扩大影响力。最终，我带领团队完成社会实践报告，总结经验，反思成长。"]
[52,"化学工程与环境学院","石油先锋成长营–“化”语石油，“工”论大庆","傅新雨","化学工程与环境学院",2023010497,15026052632,"2024年年暑假，我有幸成为石油先锋成长营-“化”语石油，“工”论大庆实践队的队长，带领大家一起赴大庆，悟精神，学技术。这次实践不仅是一次难得的学习机会，更是一段珍贵的人生经历。在为期三天的时间里，我深入大庆油田，亲身感受了我国石油工业的辉煌历程，了解了大庆精神的深刻内涵，并且在实践中不断反思自我，明确了未来的职业方向。我在团队中负责整体协调管理，制定活动计划，统筹活动安排，撰写新闻稿，推送文案等文字工作。"]
[53,"化学工程与环境学院","承回信精神之卓然风采，绘中亚文明之璀璨蓝图","冀宬润","化学工程与环境学院",2023010545,15188532961,"本人为“丝行融绘”实践团队的队员，负责团队的推送制作、答辩ppt的制作以及部分文案的编辑，并担任校级答辩汇报人。在社会实践前期准备阶段，我积极提出建议并加以初步的规划，提高社会实践活动的内容丰富度。在7月1日至7月14日带领来华学生进行夏令营活动的阶段，积极与来华学生沟通，在社会实践中增进国际与国内青年间的友谊，并以该活动为主题，制作了多篇推送，以此完成习近平总书记对我们“当好友谊使者和合作桥梁”的嘱托。在8月1日至8月4日，我跟随实践团队前往西安，在丝绸之路起点、西安碑林博物馆、陕西历史博物馆等地，感受并弘扬丝路精神，并在各个媒体网站上进行宣传。在社会实践活动后期，我全程参与了ppt的制作与部分文案的编辑，不断提高团队合作精神，并在最终的校级答辩环节担任汇报人。通过本次社会实践活动，我不断学习并深化习总书记提出的复信精神，并在团队工作中提高自己的合作协调能力，培养并加强了自己的多面手能力。"]
[54,"化学工程与环境学院","承回信精神之卓然风采，绘中亚文明之璀璨蓝图","窦闰龙","化学工程与环境学院",2023010396,14749343536,"在“丝行融绘”暑期社会实践活动中，我作为实践队队员，负责团队中文案撰写与计划执行。在西安，我重走了古丝绸之路，深入了解了丝路的历史文化，体验了非物质文化遗产“宋代点茶”，深化了对中国传统文化的认识，与团队成员一起弘扬丝路精神。我还与来自哈萨克斯坦、厄瓜多尔、阿塞拜疆和俄罗斯的学生进行了深入交流，带领他们游览中国的名胜古迹，体验中国传统文化，促进了国际文化的传播和中外青年之间的友谊。此外，参加裕祥社区举办的公益活动，拓展了中外合作交流的新模式。在结题答辩时作为答辩人向学院老师同学介绍项目内容。我参与撰写的新闻稿和文案提升了项目的知名度和影响力，还为中国中亚文化传播作出了显著的贡献。 "]
[55,"化学工程与环境学院","承回信精神之卓然风采，绘中亚文明之璀璨蓝图","江锦欣","化学工程与环境学院",2022010422,18272260189,"本人在本项目中担任队长一职，在暑期为期19天的实践时长中，在指导老师的带领下，与队员们一同于陕西西安、北京昌平两地进行实地探访。在西安，带领成员们从丝绸之路的起点开始、逐一走过西安碑林博物馆、陕西历史博物馆等文化地标，目睹了中国和中亚人民在谱写人类文明中的艰难历程和辉煌成果。在四国来华夏令营中，充当友谊使者，带领外国学生们一起游览名胜古迹，体验传统文化，深化国际青年对中国形象的理解、增进各国青年间的友情，搭建起实践队与国际沟通的桥梁。在与国际某石油公司的线上访谈中，本人见证了“丝绸之路经济带”倡议提出后公司的发展历程。在实践过程中带领同学们发布推送十三篇，制作视频两条，实践事迹被十五家新闻媒体报道。"]
[56,"化学工程与环境学院","石油先锋成长营，研产融合探索行","包若凝","化学工程与环境学院",2022310214,15195290602,"在本次社会实践活动中，我组织硕博研究生组建了“石油先锋成长营，研产融合探索行”实践团队，通过实地走访企业，搭建起高校与企业之间的桥梁，促进科研与生产的深度融合。通过与企业技术人员的直接交流，让团队成员深入了解石油化工行业的最新技术动态和市场需求，从而明确研究方向，提升解决实际问题的能力，推动科研成果向生产力转化，解决行业技术难题，实现科研与生产的无缝对接。加强校企党建交流，推动党建与业务的深度融合，为培养德才兼备的化工人才提供有力支撑。此外，通过了解企业的招聘规模和标准，为促进高校毕业生就业提供了宝贵的数据支持和方向指引。后续进行了实践的总结与推广活动，形成了调研报告与活动视频。 "]
[57,"化学工程与环境学院","“烽火青春 红梦引航”社会实践团","陈龙","化学工程与环境学院",2023010583,15059598959,"作为“烽火青春 红梦引航”社会实践团宣传组成员，负责实践过程的记录与实践成果的展现，将学习感悟转化为实际成效，分别制作两期\"浙里红心 青春向党\"主题微课，两期\"浙路青心现代化研习在路上\"记录视频，一期\"烽火青春红梦引航社会实践活动\"总结视频。视频发布在学习强国，央视频等视频网站，获得较高的点赞和播放，用我擅长的方式来记录和传播在社会实践活动中的所思所感，将党在革命历程中的艰辛与奋斗以及现代在党领导下的发展与进步做成视频，让更多青少年学习感悟，激发爱国热情，让青少年从过往汲取力量，以现代为考量，为实现中华民族伟大复兴贡献出自己的力量。"]
[58,"化学工程与环境学院","“烽火青春 红梦引航”社会实践团","尚文波","化学工程与环境学院",2023210568,13034547537,"在次社会实践过程中，我作为宣传组主要负责团队的宣传工作，包括全部实践活动照片的拍摄、自媒体平台视频的发布等，并作为主讲人参与录制了实践记录视频及红色微课堂共四期，在学校学院多个平台发布，获得较高播放量。所拍摄照片被新华网、人民网、光明网、中国青年报、中青在线、学习强国等平台报道，新闻报道总篇数45篇，累计获得130万＋浏览量。此外，实践团的社会实践成果还在浙江多家省级媒体号、诸暨市融媒体号、石大新闻网、中石大新青年等媒体平台所使用。作为学生组织干部，红色文化所带来的精神财富也可运用到日常的工作中，如枫桥经验所代表的群众路线，红船精神所包含的奋斗精神等。 "]
[59,"化学工程与环境学院","“烽火青春 红梦引航”社会实践团","杨仁杰","化学工程与环境学院",2023010576,18240861109,"在实践团队中，我主要负责实践过程的记录与实践成果的展现，以每日一期实践vlog的形式共制作七期“浙路青心 现代化研习在路上”；在嘉兴南湖革命纪念馆为团队成员录制了五期“浙里红心 青春向党”主题微课。视频获得了央视频的点赞和转发，让更多的人了解了红色文化与现代化建设的结合。通过这些视频，我不仅锻炼了自己的拍摄和剪辑技能，还深刻体会到了团队合作的重要性。在制作实践vlog的过程中，我深入挖掘了团队成员在实践中的点滴故事，将他们的感悟和收获通过镜头传递给观众。每一期vlog都记录了我们在不同领域的探索和学习，从乡村振兴到科技创新，从历史文化到生态文明，我们用镜头记录下了浙江现代化建设的生动实践。在“浙里红心 青春向党”主题微课的制作中，我更是感受到了红色基因在新时代青年中的传承。在嘉兴南湖革命纪念馆的拍摄过程中，我们团队成员不仅深入了解了党的历史，还通过微课的形式，将红色精神传递给更多的年轻人。我们希望通过这些微课，激发更多青年的爱国情怀，引导他们为实现中华民族伟大复兴的中国梦贡献青春力量。"]
[60,"化学工程与环境学院","情系南华支教行，携手守护双亲情","张志彬","化学工程与环境学院",2022010491,15314015725,"作为“情系南华支教行，携手守护双亲情”项目的一员，我主要负责有前期课程安排，特色课程讲解以及后期成果汇报。我在南华县红土坡镇中心完小小学教授石油知识，传承铁人精神，激发孩子们的学习热情，搭建沟通的桥梁。我还负责撰写新闻稿、推送稿和视频文案，通过文字与影像讲述我们的故事，扩大影响力。最终，我以汇报人的身份参与了最后的成果汇报，将我们的努力看更多人看到，并将这项实践活动传承下去"]
[61,"化学工程与环境学院","情系南华支教行，携手守护双亲情","彭莎莎","化学工程与环境学院",2022010406,19987470131,"作为“情系南华支教行，携手守护双亲情”项\n目的一员，我主要负责整个实践活动过程中\n的拍摄工作以及拍摄照片、视频的整理，\n支教过程中负责特色课堂——“防艾防性侵”\n的讲解，助老过程中负责相关视频稿、新闻\n稿、实践报告、以及推送制作。最后制作了\n活动绘本，以“文字+照片+图画”的形式将实\n践过程中的感人瞬间记录下来，将那些美好\n回忆定格，待明年花开时再度开启。"]
[62,"化学工程与环境学院","艺术对话自然 文创赋能乡旅","孙佳璐","化学工程与环境学院",2023010601,15811081483,"  在本次社会实践中，我主要担任无言以队社会实践团队的组长和设计师。在本次社会实践的选题阶段，主要由我来与该村所经营景区的公司负责人进行沟通，确定需求和要求格式，并确定基本的设计流程。\n实践过程中，我也带领队员深刻领会红色精神，将精神内涵力量赋予文创设计，将经济发展和宣传红色文化精神相结合，助力发展红色旅游，促进乡村发展。我设计了多款文创并组织撰写产品计划书，促进该项目的推进，并利用新媒体平台促进影响力。最后我也以发言人的身份向该地领导做汇报，助力乡村经济可持续发展。"]
[63,"化学工程与环境学院","绿迹碳寻-环保领航实践团","李伊文","化学工程与环境学院",2022010577,15605343867,"在本次实践过程中，我来到了昌平监测站体验实习岗位。在实验室内，初步学习了如何使用相关实验仪器对样品进行预处理、测量和分析的详细过程；在现场采样点时，我跟随指导老师在沙河居民小区测量噪声污染指数、去往空气监测站学习大气空气质量测定实验仪器的基本原理和实测数据、前往工厂排放口测量排放烟气中基本污染物的具体含量，将这些实测数据带回监测站撰写分析报告并分析原因，在党会上学习习近平总书记的生态文明思想观并分享自己的学习心得……正是这次监测站的实习岗位体验，我对自己的所学的环境专业有了全新的认识：不要只局限于有限的课本，而是在实践中探寻生态环保之路。纸上谈来终觉浅，在真正的实践中才会明白，扎实的专业知识与足够丰富的专业技能，才是解决实际问题的关键。"]
[64,"化学工程与环境学院","“烽火青春 红梦引航”社会实践团","马雪儿","化学工程与环境学院",2022010588,15652362886,"在本次社会实践过程中，我作为新闻组的负责人，负责全程撰写社会实践过程中的各篇新闻。所撰新闻总篇数45篇，被新华网、人民网、光明网、中国青年报、中青在线、学习强国等平台报道，累计获得130万＋浏览量。此外，本实践团的社会实践成果还在浙江多家省级媒体号、诸暨市融媒体号、石大新闻网、中石大新青年等媒体平台所转载。通过本次社会实践，我深刻地理解了理论与实践相结合的重要意义。未来，我会继续向“新”而行，不断提升自己的专业能力和综合素质，以大视野、大胸怀服务社会主义现代化国家建设，在高质量推进中国式现代化县域实践中彰显“新锐”担当。"]
[65,"化学工程与环境学院","\"大漠砺剑\"社会实践团","白智渊","化学工程与环境学院",2023010631,13830160708,"身为领队，白智渊在整个实践过程中承担着组织协调的重任。在成员抵达甘肃省酒泉市之前，他便细致规划好了每一个行程环节。为确保实践活动顺利开展，他提前与酒泉当地的各个接待单位、参观场所进行多次交流沟通，反复确认各个环节，力求实现无缝对接。成员到达酒泉市后，白智渊有条不紊地开展各项实践工作。就与酒泉市第一中学的对接工作而言，他积极与学校领导和相关负责人进行交流探讨，一同商议研学启蒙宣讲活动的具体流程、场地布置以及人员组织等相关事宜。为使宣讲活动能够最大程度吸引学生的注意力，有效地将西北红色精神瑰宝传递给学生，白智渊积极协调各方资源，用心准备多媒体展示设备、宣传资料等。活动现场，他合理安排研学团成员的工作任务，保障宣讲与互动环节顺利推进，成功激发了青年学生的爱国情怀与奋斗精神。在后续的行程里，白智渊展现出了优秀的应变能力。在与酒泉市戈壁滩上的基层连队交流期间，由于连队日常训练和工作安排紧凑，白智渊需要在不干扰连队正常运行的情况下，协调出适宜的参观和交流时间。他多次与连队教导员王小明深入沟通，依据连队实际情况灵活调整研学团的参观流程，让团员们既能深入了解连队的发展历程，又不会给连队增添过多负担。参观过程中，白智渊时刻留意团员们的需求和状态，及时与连队战士协调沟通，解答团员们的疑惑，助力团员们深刻体会战士们顽强意志和深厚爱国情怀的感染力。到达东方红卫星发射场时，面对严格的参观规定和众多游客，白智渊提前与发射场管理部门细致沟通，为研学团争取到更为优质的参观体验。他精心规划团员们的参观路线，有效避免人流拥堵，确保团员们有充裕的时间去感受“东方红一号”发射架背后科研先辈们的坚守与奉献精神。当团员们有所触动时，白智渊能适时组织交流分享会，促使团员们及时表达和深化自己的感悟。在与金塔县文旅局合作举办的座谈会上，白智渊积极参与各方人员的协调工作。从前期的会议筹备，到会议当天的人员接待、议程安排等，他都细致入微地组织安排。他与金塔县文旅局的工作人员密切协作，依据县委党校校长杨斌老师的时间安排确定会议时间，同时协调好研学团成员的参会准备工作。座谈会期间，白智渊负责维持会议秩序，确保座谈会顺利进行，使团员们能够认真聆听校长的深入解读，更好地领悟胡杨精神的内涵与时代价值。无论是交通、住宿安排，还是各个参观学习地点的行程衔接，白智渊都能凭借其出色的组织协调能力，妥善处理各类突发状况，保障整个实践活动顺利推进。"]
[66,"化学工程与环境学院","石油先锋成长营，研产融合探索行","王源丰","化学工程与环境学院",2021310232,18052208126,"作为“石油先锋成长营·研产融合探索行”社会实践活动的核心组织者，我积极组织和参与活动规划，确保实践活动内容丰富、行程紧凑，协调走访中国石油安全环保技术研究院、中海油化工与新材料科学研究院等七家顶尖企业，安排校企党建交流、科研技术对接会等。实践过程中，我不仅见证了学子们对石油化工行业现状与发展趋势的深入理解，更亲身感受到了党建在企业中的引领作用。通过与企业人力资源部门的深入交流，学子们获得了宝贵的就业指导和职业规划信息。同时，我也深刻体会到了科研成果转化为生产力的重要性。此次活动不仅让学子们受益匪浅，也对我个人产生了深远的影响。我深刻认识到，作为组织者，不仅要注重活动的细节和流程，更要关注学子们的成长和收获。我将继续投身于此类社会实践活动中，为培养更多优秀的石油人才贡献自己的力量。"]
[67,"化学工程与环境学院","“筑梦南华”萤火志愿服务队","张润霞",null,2022010470,13170513176]
[68,"机械与储运工程学院","“赤心铭刻回信精神，青春助力草原振兴”——寻迹牧梦社会实践团","马腾","机械与储运工程学院",2023010844,13080222595,"1.个人成长:在牧区的社会实践里，我深入体验了牧民的生活，感受到了大自然的壮阔与和谐。这段经历让我学会了尊重自然、珍惜资源，同时也锻炼了我的适应能力和团队协作能力。与牧民的交流中，我收获了淳朴的友谊和对生活的全新理解。这次实践让我更加懂得感恩与付出，对未来充满了新的期待和动力。        2.团队贡献:   在牧区社会实践中，我积极为团队出谋划策，协助组织活动。我充分利用自身特点，促进团队与牧民的沟通，为团队工作的顺利进行贡献了自己的力量。同时利用视频剪辑等为团队做出贡献，与团队共同完成此次社会实践。       "]
[69,"机械与储运工程学院","青行社区展风采 同心协力强基层","何江涛","机械与储运工程学院",2023010736,15872168127,"练就了调查研究的本领，真正践行了“从群众中来、到群众中去”的群众路线，厚植了人民情怀，在基层实践中为基层发展做出了突出贡献，从社区干部那里学会了理论联系实际、具体问题具体分析，感受到了基层事务之繁重、治理之不易，为以后服务社会、推动发展、联系群众打下坚实基础。领导团队共同学习基层民主制度以及密切联系群众的重要性，加强组织领导，确保实践有序有效开展。同时注重宣传成效，及时阶段性总结实践过程及收获，向各类媒体投稿，社会效益显著。整个团队的实践工作有了目的性和方向性，并有效地将基层民主理论联系实际，探寻基层民主的具体实现形式。"]
[70,"机械与储运工程学院","“星扶计划”孤独症儿童关爱计划","朱诣涵","机械与储运工程学院",2023010956,18201109733,"在团队中，我积极参与各项活动，与孤独症儿童建立了深厚感情。通过组织亲子活动，我学会了更好地与他人沟通和协调。在打造故事单和开发小程序过程中，我充分发挥专业知识，为团队提供技术支持。我的成长不仅体现在个人能力的提升，更在于对社会责任的深刻理解。我将继续努力，为团队和孤独症儿童贡献更多力量。"]
[71,"机械与储运工程学院","石油先锋成长营-先锋探源·西气东输万里行新质生产·工匠楷模薪火传","张健宇","机械与储运工程学院",2020010978,15232821518,"一、个人成长\n \n在先锋实践营中，我深刻领悟了塔里木油田的精神以及一线石油工人的精神。这些精神激励着我在日常生活和学习中勇往直前。面对困难不退缩，以坚韧不拔的毅力去克服。在学习中，像石油工人那样勤奋努力，不断探索新知识，勇于尝试新方法。以奉献精神投入到每一个任务中，为自己的成长和进步而拼搏。\n \n二、个人贡献\n \n在团队拍摄中，我积极出镜介绍拍摄内容，充分展示实践成果。协助导员安排处理事情，发挥带头作用，认真配合完成每一项任务。在实践过程中，我还时刻照顾小组成员，确保大家的安全。我深知团队的力量，通过自己的努力为团队的成功贡献一份力量，也在这个过程中不断提升自己的责任感和领导能力。"]
[72,"机械与储运工程学院","石油先锋成长营-先锋探源·西气东输万里行新质生产·工匠楷模薪火传","昆给依·赛勒克","机械与储运工程学院",2020010988,18299963466,"\n1.个人成长\n在石油先锋成长营实践团的暑假之旅中，前往库尔勒和塔里木油田，我收获了巨大的成长。在艰苦的塔克拉玛干沙漠环境中，我深刻体会到了坚韧不拔的意义。塔里木油田精神激励着我勇往直前，面对困难不退缩。胡杨林精神也让我懂得了坚守与顽强。\n\n2.个人贡献\n对团队而言，我积极分享自己在艰苦环境中的应对经验，鼓励大家保持乐观积极的心态。利用自己的知识为团队解决实际问题，如在艰苦的条件下，积极配合拍摄，发挥自己的特长等。主动承担艰苦任务，为团队减轻负担。我还积极参与团队讨论，为探索塔里木油田贡献创新思路，以实际行动传承和弘扬石油精神、胡杨林精神，与团队共同成长，为实践活动的成功贡献自己的力量。"]
[73,"机械与储运工程学院","石油先锋成长营-先锋探源·西气东输万里行新质生产·工匠楷模薪火传","郭晨熙","机械与储运工程学院",2022010724,13693063941,"在实践中，我与团队成员一同来到塔克拉玛干沙漠腹地中的油田，沙漠的恶劣环境使我切身感受到了在油田一线工作的前辈们的艰辛。西气东输起点轮南油气田仅有25位员工，却保障着其下游数亿人口的油气供给，使我不由反思如果我是这25人中的一员能否承担重任，促使我努力学习提高专业水平。离开新疆后，我积极联系各个媒体，以宣传我们的实践。最终我们的实践受到未来网的青睐并得以发表。"]
[74,"机械与储运工程学院","首善农残实践团","王畅","机械与储运工程学院",2023010777,15543228266,"一.个人成长：\n在社会实践中，实地考察拓宽了我的视野，让我更深入地了解社会现状。在视频制作过程中，我不断提升自己的技术水平和审美能力。我积极参与实地考察的各个环节，认真记录重要信息，为视频制作提供了丰富素材。\n二.团队贡献：\n在团队中，我充分发挥自己在视频制作方面的优势，精心剪辑制作视频，生动呈现实践成果。我还与团队成员积极交流分享经验，共同探讨改进方案。我的努力为团队贡献了高质量的宣传作品，提升了团队的影响力。同时，通过与团队的协作，我也学会了更好地与人沟通合作，个人得到了全面成长。"]
[75,"机械与储运工程学院","石油先锋成长营-身处青海心油田，铸就西北石油魂","王彦童","机械与储运工程学院",2023010699,13830744237,"暑假期间，我积极投身于社会实践。在这段充满意义的日子里，我充分发挥自己的专业优势，同时结合个人爱好，为西北石油贡献力量。\n在这次社会实践中，我把团队在乡村的所见所闻、内心所感，精心制作成了一部社会实践视频。这个视频回顾了此次实践中满满的油田情怀，也展现了团队成员们的倾力合作。\n实践期间，我努力锻炼自己。带领团队走出熟悉的校园，深入基层。我们紧紧按照习近平总书记指引的方向，前往青海油田钻井基地进行调研，用心设计油行道路，积极参加活动。在这个过程中，我深深感受到了专业的魅力，也进一步加深了对专业的认识。让我们的青春在无私奉献中绚丽绽放，为乡村建设添砖加瓦。"]
[76,"机械与储运工程学院","青韵梅林·生态行","王佳颖","机械与储运工程学院",2022010736,13597882783,"带着对总书记生态理念的深刻感悟，我踏上了前往安徽省梅林村的暑期社会实践之旅。通过走访调研、与村民们的交流，看到了梅林村的风貌和村民们的生活状态。开展环境保护宣讲是我们这次实践活动中重要的内容之一。当我站在村民们面前，心中既怀揣着紧张，又满溢着使命感。通过宣讲，我深刻地体会到了知识传递的力量和价值，让我更加坚定了自己在环保道路上继续前行的决心，也激励着我不断提升自己，为保护我们的生态环境贡献更多的力量。通过暑期社会实践活动，我对生态环境保护有了更深入的理解，深刻认识到生态环境保护的重要意义和价值，也切实感受到了乡村在生态方面的需求。这让我更加坚定了为环保事业努力的决心。"]
[77,"机械与储运工程学院","石油先锋成长营-传承铁人精神，再绘时代新篇","孟令喆","机械与储运工程学院",2023010882,15245969927,"在实践过程中，我练就了从书本上来，到基层建设中去的实践技能，我深刻领悟了大庆油田包含的大庆精神。在整个团队中，我负责与相关单位相联系，并规划整个活动流程，以及拍摄部分照片等，制作答辩文稿并进行最终答辩。"]
[78,"机械与储运工程学院","汇聚青春新力量，助力乡村新发展","姜宇嘉","机械与储运工程学院",2023010914,13644098447,"在乡村振兴社会实践志愿团中，我积极参与农村建设，不仅为农民提供了技术培训，提升他们的生产能力，还协助组织文化活动，丰富农民的精神生活。这些努力，使我对乡村振兴战略有了更深入的理解，也增强了我的社会责任感。\n\n在服务过程中，我与农民建立了深厚的感情，学会了倾听和理解他们的需求。这些经历，不仅锻炼了我的沟通能力和团队协作能力，还让我更加珍惜现有的生活，学会了感恩和回馈社会。\n\n总的来说，乡村振兴社会实践志愿团不仅让我为乡村的繁荣贡献了一份力量，也让我在服务和奉献中实现了个人成长和价值的提升。这段经历，将成为我人生旅途中宝贵的财富。"]
[79,"机械与储运工程学院","汇聚青春新力量，助力乡村新发展","侯锐","机械与储运工程学院",2023010847,13609210878,"个人成长:深入了解乡村振兴战略的重要性和必要性，认识到自己在国家发展中的责任和使命。关注农村发展，关心农民福祉，提高对农村问题的认识和分析能力。积极投身乡村振兴实践，为农村发展贡献自己的力量。\n团队贡献:在团队中积极沟通，规划每日行程及路线，组织相应的活动，与当地乡村的政府等开展实践的地方进行联系和沟通。"]
[80,"机械与储运工程学院","星火接力，筑梦乡村","许婧婕","机械与储运工程学院",2023010748,18056421979,"   在社会实践中，我经历了许多挑战，也获得了显著的个人成长。通过实践活动，我学会了如何更有效地沟通，如何在压力下保持冷静，并找到了解决问题的方法。这些经历不仅增强了我的自信心，还锻炼了我的团队协作能力和独立思考能力。这次社会实践不仅让我学到了很多新知识，更重要的是，它让我认识到自己在团队中的价值和作用。我学会了如何更好地融入团队，如何发挥自己的长处，为团队的成功做出贡献。我相信，这些宝贵的经验和成长将对我未来的学习和工作产生深远的影响。\n   在团队中，我积极贡献自己的力量，利用自己的优势，为团队提供了有价值的建议和创意，同时也从队友身上学到了很多。我们相互支持，共同进步，最终实现了团队目标。"]
[81,"机械与储运工程学院","青系油缘，筑梦乡振","付明林","机械与储运工程学院",2022010920,15247605079,"在暑假期间，我积极投身社会实践，把自身专业特长与家乡的发展紧密结合起来，在实习实践中不断磨练本领、增长才干，带领实践团队，走出教室校园，走进基层田野，沿着习近平总书记的路线、追寻总书记的足迹，以青春力量践行总书记重要指示批示精神。\n社会实践期间，我起到带头作用，深入村镇开展采访调研，运用专业知识，带领团队为当地设计机械装置并安装落地；积极进行支教、宣讲活动，不怕苦不怕累，以火热的力量投身社会实践活动，投身实践，志在有为。他深入基层、积极调研，将所学知识转化为服务社会和人民的实践，在实践中感受专业的魅力，加深对专业的理解和认识，让青春在奉献中更闪耀，在实践中更精彩。"]
[82,"机械与储运工程学院","青系油缘，筑梦乡振","王磊","机械与储运工程学院","2023010707",13553131517,"秉承对总书记生态理念的深切理解，我踏上了前往内蒙古赤峰的暑期社会实践征程。在赤峰的广袤土地上，我通过实地走访、深入调研以及与牧民们的亲切交流，领略了赤峰的壮丽风光和牧民们的淳朴生活。在实践活动中，环境保护的宣讲成为我们工作的重中之重。当我站在牧民们面前，内心既怀揣着忐忑，又充满了强烈的责任感。宣讲的过程中，我深切地感受到了知识传递所蕴含的强大力量，这更加坚定了我在环保道路上不断前行的信念，同时也激励我持续提升自我，为保护我们赖以生存的生态环境倾尽全力。通过这次暑期社会实践活动，我对生态环境保护有了更加深刻的认识，清醒地意识到生态环境保护的重要性及其不可替代的价值，也切实体会到了乡村地区在生态建设方面的迫切需求。这一切都让我更加坚定了为环保事业不懈奋斗的决心。"]
[83,"机械与储运工程学院","弦歌不辍筑章汉模式，继往开来谱云贵新篇","贾彦坤","机械与储运工程学院",2023210708,13525095405,"对个人成长的影响\n知识技能：社会实践让我接触新领域知识与技能。如参与调研活动，能学会问卷设计、数据分析等。实际操作深化理论理解，锻炼动手实操能力，为未来职业发展打下基础。\n性格塑造：增强了自信与责任感。完成任务有成就感，认识到自身价值，如组织志愿活动成功后的自我肯定。还能培养同理心与团队合作精神，在与不同人交流合作中完善性格。\n对团队贡献的影响\n资源整合：凭借自身优势为团队带来资源。善于社交可拓展人脉、争取赞助；有专业知识能解决技术难题等，提升团队实力。\n团队氛围：积极态度可感染队友，提升凝聚力。分享经验想法，促进成员交流协作，使团队运作更高效，更好达成实践目标。\n"]
[84,"机械与储运工程学院","弦歌不辍筑章汉模式，继往开来谱云贵新篇","庞金龙","机械与储运工程学院",2024210703,18701649594,"在社会实践中，我经历了许多，收获了许多，同样成长了许多，不要抱怨自己的环境，总会有些孩子所处环境并不是特别的如意，我们所处的环境与之相比就是沃土，而他们则是山脊，真正渴望知识的眼神是最动人的，也让我体会到了一种无力，世界给予了我同情人的能力，但是并没有给予我帮助人的权利，只好尽自己所能尽力地帮助所有人"]
[85,"机械与储运工程学院","弦歌不辍筑章汉模式，继往开来谱云贵新篇","董一明","机械与储运工程学院",2024215568,13214645567,"在社会实践中，面对各种挑战，我学会了勇敢面对困难，积极寻找解决方案。同时，我的沟通能力和团队协作能力也得到了提升。对于团队，我贡献了自己的专业知识和技能。积极参与讨论，提出有建设性的意见，为团队决策提供参考。在任务执行中，我认真负责，高效完成自己的工作，确保团队整体进度不受影响。我还主动关心团队成员，营造良好的合作氛围，增强了团队的凝聚力。我将继续努力，为团队带来更多价值，也在实践中不断成长。"]
[86,"机械与储运工程学院","弦歌不辍筑章汉模式，继往开来谱云贵新篇","祁家宝","机械与储运工程学院",2022010718,13369401632,"1、个人成长：前往贵州省剑河县章汉小学参加支教社会实践，对我来说是一段充满挑战和收获的旅程。面对淳朴的孩子们，我意识到他们渴望知识的眼神中透露出的坚定信念。这种信念感染了我，让我更加坚定要为他们带来知识和希望的决心。在这片独特土地上，我与孩子们共同成长，经历塑造了我的性格，拓宽了视野，提升了能力，为未来的道路打下了坚实基础。\n2、个人贡献：为团队成员记录实践过程，为山区孩子们准备音乐、思政、科普方面的课程教学、撰写实践报告。\n通过支教，我也看到了教育的力量和责任。教育不仅关乎个人成长，更关乎社会进步。作为教师，我深知自己的一举一动都会影响学生。我努力做一个好榜样，希望能通过自己的行动，潜移默化地影响学生们，帮助他们树立正确的人生观和价值观"]
[87,"机械与储运工程学院","五载弦歌擎爱构图\"贵州缩影 \"千里筑梦用心共绘“七彩假期”","于秀洋","机械与储运工程学院",2022010846,18053411937,"个人成长：\n前往贵州省剑河县章汉小学支教的旅程，不仅是我人生中一次意义深远的经历，更是一次挑战自我、发现自我的过程。在与这些淳朴孩子们的接触中，我深刻体会到他们对知识的渴望与追求。这也激励着我要珍惜当下宝贵的学习资源，努力学习，为社会主义建设贡献自己的一份力量。\n个人贡献\n为章汉小学的学生准备机器人科普等课程，帮助他们了解一些课程以外的知识；和实践团成员一同前往章汉村慰问老党员。"]
[88,"机械与储运工程学院","泉涌新商潮，温启未来梦","李炜","机械与储运工程学院",2022010712,15776525959,"个人成长：\n此次暑假期贵州剑河县章汉小学之旅让我受益匪浅，首先在旅途中，我从祖国东北的黑龙江前往位于祖国西南的贵州，接近于横跨了整个中国，一路上的所见所闻让我的见识更加开阔。在支教过程中，在这片淳朴而充满希望的土地上，我见识到孩子们艰苦的学习环境，但我感受到了孩子们对知识的渴望和对未来的憧憬。让我懂得了要好好珍惜现有的学习条件，激励了我要更加努力学习。这段经历让我深刻体会到了作为一名青年学子的责任与担当，在教授孩子们知识的同时我的表达和理解能力也得到了锻炼。\n个人贡献：\n我们为章汉小学的孩子们开设了丰富多彩的课程，从科普到艺术启蒙，每一堂课都凝聚着我们对教育的热爱与责任。我主要负责开展了油气储运工程科普课程，在讲述科普知识之外我还为孩子们讲述大山外的精彩世界。在课余时间我还深入章白村进行家访，更加深入的了解同学们的真实情况。实践团成员还一同前往章汉村向革命老兵、老党员进行慰问。"]
[89,"机械与储运工程学院","首善农残实践团","张超","机械与储运工程学院",2022010805,13304702649,"个人成长：\n在社会实践中，我主要负责了文案编写与策划方案设计，这一过程不仅锻炼了我的文字表达能力和策划思维，还让我学会了如何在实际工作中将理论知识与实际情况相结合。此外，我与村民一同进行了农作物采摘，亲身体验了农业生产的不易，对农民的生活有了更深刻的理解。参与农产品直播带货和设计自动茄子采摘机，也锻炼了我的创新思维和实际操作能力。\n团队贡献：\n作为团队的一员，我不仅为团队提供了文案和策划支持，还积极参与了农产品直播带货和自动茄子采摘机的设计。这些努力不仅为团队带来了丰富的实践成果，也有效节省了当地的人工成本，提高了生产效率。同时，我还与团队成员一同走访了当地群众，深入了解当地文化特色，为团队的文化交流工作做出了贡献。"]
[90,"机械与储运工程学院","青系油缘，筑梦乡振","朱洪泽","机械与储运工程学院",2023010659,17674797124,"在暑假期间积极投身社会实践，把专业特长与家乡发展紧密结合，在实习实践中不断磨练本领、增长才干，带领实践团队，从教室书本到田间地头，从理论迈向实践，感受乡土文化的独特魅力，重走总书记“长征路”，以青春力量践行总书记重要指示批示精神。深入村镇开展采访调研，运用专业知识为当地设计机械装置并安装落地；积极进行支教、宣讲活动，不怕苦不怕累，以火热的力量投身社会实践活动，投身实践，志在有为；深入基层、积极调研当地政策，探寻“政企农商”结合的新业态新模式，更好地助力乡村小康生活建设，将所学知识转化为服务社会和人民的实践，在实践中感受专业的魅力，加深对专业的理解和认识，让青春在奉献中更闪耀，在实践中更精彩。"]
[91,"机械与储运工程学院","九州武韵传四海，一带一路谱新篇","李超凡","机械与储运工程学院",2023010764,15237199285,"这次经历对我来说，不仅是一次简单的实践活动，更是一次个人成长的宝贵契机。在这段时间里，从项目调研出发，逐步设计实践方案，到最后圆满实行，每一步对我来说都来之不易，弥足珍贵。首先，在与留学生们的交往过程中，我深切感受到了文化差异带来的挑战。语言的障碍、生活习惯的不同，使得文化传播变得寸步难行。然而，正是这种困境，让我更加珍惜每一次交流的机会，努力寻找能够让彼此理解的方式。在这个过程中，我学会了耐心、包容和换位思考，这些都是我成长道路上的宝贵财富。与此同时，我惊喜地发现，武术作为中华优秀传统文化的代表，竟然能够跨越国界，成为连接不同文化的桥梁。在实践活动中，我们通过教授留学生武术，让他们亲身体验到中华传统文化的魅力。每当看到他们认真学习的样子，我都为自己是一名中国人而自豪。武术不仅锻炼了他们的身体，更让他们感受到了中华民族的坚韧精神和对传统文化的尊重。此次暑假之行，让我更加坚定了文化自信，同时也增强外国留学生对中华优秀传统文化的认同感。这次实践活动中，我收获了成长，也更加明白了文化交流的重要性。"]
[92,"机械与储运工程学院","石油先锋成长营-先锋探源·西气东输万里行新质生产·工匠楷模薪火传","杨清海","机械与储运工程学院",2021010774,15188794655,"在大学期间，我有幸投身于一次深入社区的社会实践活动，这次经历无疑成为了我个人成长与团队协作的宝贵财富。在活动中，我与团队成员紧密合作，共同应对挑战，这使我深刻体会到沟通与协作的力量。我学会倾听他人意见，同时也勇于表达自我，这种平衡让我在处理人际关系时更加游刃有余。在实践中，我逐渐成长为一个更加成熟、有担当的个体。这次实践不仅丰富了我的经验，更让我深刻认识到团队合作的重要性。我将带着这份宝贵的经历，继续前行，为未来的团队和社会贡献自己的力量。"]
[93,"机械与储运工程学院","首善农残实践团","郭佳凝","机械与储运工程学院",2023010925,15711430772,"我在各次团队合作中积极参与，积极思考，提出许多建议，制作视频过程中，我们多次讨论视频内容和细节，我进行了素材整理，挑选和后期配音的工作。在这次活动中，我加强了自身视频剪辑的能力，明白了视频整体设计构思的重要性。除此之外，我深刻理解了团队合作的重要性，分工明确的合作方式才能有效推动视频制作的进度，发挥个人专长。对于视频剪辑这个工作，我认为要及时确定视频剪辑风格和主题，围绕风格和主题寻找素材，配乐和配音，以免做无用功。除此之外，要及时与队长沟通及时汇报，以免出现偏题跑题的现象。分工要细致要精确，对于分工这件事我认为我们剪视频的小组做的很好，每件事情都分派到人，依据不同人的优势和特长。"]
[94,"机械与储运工程学院","五载弦歌擎爱构图“贵州缩影” 千里筑梦用心共绘“七彩假期”","师海熙",null,2022010872,18132030165]
[95,"地球物理学院\n","“社区成长\n伙伴计划”——大学生赋能探索城市社区治理创新路径","李睿杰","地球物理学院",2022011005,18254650872,"全程参与，撰写策划案与报告。长期与社区开展共建活动：打造共享学长学姐读书屋、与小朋友们一起分享读书故事，运用专业知识为社区设计智能垃圾桶提供想法、现已成功投入使用。作为石油学子开展石油小科普、弘扬石油精神，领悟石油内涵。针对课堂知识与实际结合紧密度报告的问题，联合企业策划研学活动多项，内容涉及党史学习、生态农场、环保知识、网络法治、奥运精神、酿酒文化、科技文化等多个方面。"]
[96,"地球物理学院","解锁“千万工程”密码，擘画南华振兴蓝图","徐滢滢","地球物理学院",2022010997,13373146213,"作为石子筑梦实践团的队长，我连续两年赴南华县开展社会实践。本次社会实践中我主要负责的工作是前期整体规划、协调各方资源、总结成果等。本次社会实践我们的主题是“解锁千万工程密码，擘画南华振兴蓝图”。实践团从高举“党建红”、厚植“生态绿”、驱动“经济蓝”、点亮“幸福橙”四个方面助力乡村振兴。我带领实践团走访当地红色教育基地，深入了解革命先辈们的英勇事迹和崇高精神。实地走访推动河硐村鲜切花种植、野生菌种植等特色产业，积极调研并提出建议，为河硐产业振兴贡献绵薄之力。以河硐小学为基地，开设心理讲堂、石油科普、铁人精神、奇妙手工、手语教学等特色课程。实践团也进一步落实留守老人、儿童关爱实践，不仅给他们送去物质帮助，还将给予他们精神上的慰藉与鼓励。探索河硐村乡村振兴之路，石子筑梦团在路上！"]
[97,"地球物理学院","解锁千万工程密码，擘画南华振兴蓝图","骆雨珊","地球物理学院",2022011029,18849683028,"  “千里之行，始于足下”，我时刻谨记总书记“到基层中去，到实践中去，到人民中去”的嘱托，连续两年云南省南华县河硐村进行社会实践。摸清当地产业状况并提供发展性建议，为河硐村经济发展贡献微末力量；组织开展公益支教，为乡村留守孩童带去温暖，提供避风港湾；走访慰问独居老人，向他们提供爱与帮助；在乡村开展普通话宣讲，助力国家推普事业；调查当地儿童心理状况，提供心理帮助，守护他们健康成长……这一桩桩一件件的事，都在践行着青春使命，为社会的发展贡献青春力量。在实践过程中，接触到了各种各样的乡村孩童,看到了他们的内心所需。孩子们对大山外的世界充满期许，我们便给他们讲授知识，鼓励他们好好学习，改变命运；他们渴望陪伴，我们便日日与他们谈心玩耍，传递爱与关怀。这也让我意识到，社会中有许多问题需要解决，而作为新时代的青年，我有责任也有义务为社会的进步贡献力量。"]
[98,"地球物理学院","“天下无孤”—与星星的孩子击掌","王美寰","地球物理学院",2023011051,15840108255,"团队队长，主要负责开展实践团线下工作，带领实践团成员前往乡县开展工作，与村干部下乡摸排走访，匹配阳光支教志愿者。在民政局，少年宫开展十余节有关医疗、科普、自然、书法、艺术、心理六大主题公益课堂，为孩子们带去多彩知识讲堂。作为“益➕咖啡”项目发起人，授人以鱼不如授人以渔，带领孤困儿童用自己力量实现生活费自理，爱出者爱返，福往者福来。负责继续联系孤困儿童开展阳光支教"]
[99,"地球物理学院","青春与乡村共舞：青振乡村行动","王文瑞","地球物理学院",2023011047,17809548465,"在暑期“青振乡村”主题社会实践中，我担任实践团队长。为确保实践的顺利开展，在暑假来临之前，我一手策划活动方案，深入了解乡村振兴战略思想及内涵，学习查询非物质文化遗产和一些产业的信息与知识后，与宁夏固原市隆德县文旅局联系沟通，申请走访调研隆德县的非物质文化遗产，向宁夏固原市明德、雪川、金菇三所产业有限公司邮寄活动申请书，并与上黄村“金菇菇”产业签订合作证明。于7月10日，正式带队前往宁夏固原开展走访调研工作。实践期间，我拍摄了大量实践照片和视频，积极准备和完成了6项采访任务，在实践当天结束后及时与线上工作的成员对接沟通，指导完成6篇推送，投稿并发布在地球物理学院公众号，积极将宣传视频发布在抖音等先关平台，实践结束后，参与编写实践报告。\n"]
[100,"地球物理学院","青护明陵生态，共创绿色未来","王丽梦","地球物理学院",2023011147,13396171750,"作为团队队长，全程参与社会实践。在实践前期，带领队员们研读昌平区十三陵地区的生物多样性保护政策与现状相关文献，并对队员展开植物多样性科学调查方法的培训；实践过程中，与当昌平区十三陵镇政府沟通，得到采访机会，同时也和仙人洞村仙桃园负责人联系，参观生态果园，了解农业经济的绿色转型途径；同时负责推送的制作与视频号的运营，其中一篇推送被学院官微发出，视频号浏览量达1600多人次；实践后期，负责植物多样性数据的整理与分析，并与昌平区园林绿化局负责人沟通，期望与他们的生物多样性调查科进行学习，合作，共同完善昌平区植物多样性调查的空缺。"]
[101,"地球物理学院","游田“油”学记，石践“实”真理","温景惜","地球物理学院",2023011116,18131538769,"观油田发展，担石油未来，作为团队队长，我全程参与社会实践，负责了从策划、开展、监督、总结的全过程。实践前期，我召集组内同学共同商讨实践开展形式、内容，并提交指导老师审核，并对视频制作进行提前策划，对组内成员工作进行合理分工；实践开展中，我通过网络监督各小组开展情况，定期对实践进程、成果转化进行跟进；实践开展后，我汇总各个小组成果，并进行经验总结，准备实践报告、答辩PPT等材料。我走访冀东油田，采访新能源副总师与三名工程师，共同探讨新质生产力与新能源的发展。自始至终，我一直以饱满能源报国的热情策划、展开社会实践，学习石油相关知识技术，立志要到祖国最需要的地方献石油。"]
[102,"地球物理学院","胜利油田“心梦之旅”实践团","刘柏彦","地球物理学院",2023011071,15318351171,"在暑期社会实践中，我担任实践团队长一职。在实践前期，我积极联络指导老师，并召集实践团成员多次开会，商讨实践内容，确定队员分工，敲定实践细节。在家里的帮助下，我联系了胜利油田多家企业单位的领导，商定采访内容和时间，从而确定具体时间安排。在实践中，我带领实践团成员先后拜访了东营市胜利第十一中学、东辛采油厂、中石化地球物理公司胜利分公司、中石化石油工程公司、东营大明钻井公司、胜利油田钻井工艺研究院和东营市胜利青山小学。我们深入企业和生产一线，调研胜利精神和新质生产力在胜利油田的发展，了解了胜利精神的形成和传承以及智能化、数字化油田的建设和CCUS技术。同时，我组织实践团成员整理实践材料，制作了多篇推送和视频，并联系胜利日报社，在胜利日报上刊登我们的事迹。\n"]
[103,"地球物理学院","胜利油田“心梦之旅”实践团","王禹","地球物理学院",2023011062,17835241455,"青少年手拉手心聚石油魂，端牢能源饭碗共筑中国梦。作为这次社会实践团队的主力之一，我担当团队工作中摄影纪录的工作。在整个社会实践过程中，我几乎记录下每一个天的过程，将每一次的决定性瞬间全部拍摄下来，对于每次会议，我几乎是全程录制加录音，生怕错过每一句重要讲话。在实践过程中，我跟随实践团从北京到了东营、从华八井到了采油厂，实践团的一切均由我记录，在实践阶段我基本对所有活动均有拍摄记录，协助队长刘柏彦组织管理团队，并对突发情况的拍摄理智应对、合理处理。在结题期间，我为我们的推文推送提供照片，我也和另一位同学共同指导剪辑了我们的实践最终视频，为我们结题答辩增光添彩。"]
[104,"地球物理学院","“社区成长伙伴计划”——大学生赋能探索城市社区治理创新路径\n","马媛","地球物理学院",2022010993,13260315488,"作为实践团的队长，从活动策划到执行，再到处理突发状况、协调各方资源、总结成果，每一步都让我体会到了奋斗的意义。\n通过与团队成员的紧密合作，我学会了如何更有效地沟通，如何在复杂环境中保持冷静、做出决策，增强了我的组织能力和应变能力。\n在社区建设方面，我积极带领开展石油科普活动，践行石油精神。不仅令社区小朋友更加了解石油，也更加了解中国石油大学（北京）\n通过与企业联合开展研学实践，实现从理论课堂到移动课堂，实境课堂的有机结合。社区青少年通过系列研学活动，实现让理论更生动、让实践更具体。"]
[105,"安全与海洋工程学院","“1+4+x”一核多元、农文旅融合赋能乡村振兴，打造兴寿绿色创新多元业态发展","周少杰","安全与海洋工程学院",2023211074,13688677646,"本项目以兴寿镇特色产业为核心，以“1+4+x”联动推进为发展模式：以辛庄为主要起点、带动周围四村联动发展，打造兴寿绿色创新乡村发展新业态，主要内容包括：大力打造“兴寿草莓”特色品牌，通过“石子优品”直播卖货平台将“兴寿草莓”带向更广阔的舞台；通过多方式联动“卖货”，建设兴寿农产品供应链；通过建设实践基地，在兴寿土地上开展科学研究，实现合作共赢；创新草莓文创，将草莓特色带在身边，将兴寿特色带向更大世界。开发“兴寿原生态特色旅游圈”旅游服务，挖掘各村特色，体现生态自然、游览休闲、活动观赏等功能；同时，丰富可参与的活动类型，包含草莓品牌系列活动区、传统工艺体验区、野营林区、徒步骑行区、温泉度假区、农家乐等等。本项目聚焦实现农旅融合，以振兴乡村产业为目标，通过深入调研和实践，致力于为兴寿镇的发展注入青春活力和智慧，助力当地经济的持续增长和社会的全面进步。"," "," "]
[106,"安全与海洋工程学院","润疆筑梦，丝路悠扬","张智栋","安全与海洋工程学院",2023211027,13120037899,"筹备实践团队，带领一批对“丝路文化”充满向往，拥有坚定抱负，怀揣理想的同学们，深入新疆及中亚地区。带领大家制定了详细的工作计划，明确了团队的目标和任务。利用互联网，聘请了具有丰富指导经验的创赛星科技有限公司总经理，大学生创新创业网创办人叶灯烽老师，作为我们的指导教师，同时还找到了著名设计师David Fincher。提出了将文化融入现代产品设计中，通过文创产品传播文化的主线思路，设计了一系列具有新疆特色的文创产品，如“一滴油”立体水晶摆件、纪念吊坠“小油瓶”、“丝路绣彩”新疆民族风格刺绣地毯等。创办文化科技公司，组织领导团队共申请专利2项，软著1项，累计成交金额超100万，产品种类20余种，销售至国内外10个地区。"," "," "]
[107,"安全与海洋工程学院","假期慰问孤寡老人","刘通","安全与海洋工程学院",2023215808,17664032682,"本次寒假社会实践活动，我作为中国石油大学（北京）海工研23-2班的班长，联合了部分同学、当地职工、保洁人员以及政府、敬老公司的支持，共同开展了一系列针对空巢老人的慰问与服务活动。活动范围覆盖了敬老院、老人社区服务中心及多个乡村空巢老人的家中，服务周期近半个月；1.慰问探访：深入老人家中，与老人面对面交流，了解他们的生活状况，倾听他们的心声，给予精神上的慰藉。2.卫生清理：组织团队为老人打扫房间、整理衣物、擦拭家具，改善他们的居住环境。3.文艺表演：安排学生自编自演的节目，如唱歌、跳舞、小品等，为老人带去欢乐与温暖。4.知识分享：发放食品安全手册，向老人普及食品安全知识，关注他们的健康需求。5.团队合作：通过分组形式，确保每位老人都能得到充分的关注与帮助，同时锻炼同学们的团队协作能力。"," "," "]
[108,"安全与海洋工程学院","“油”你同行","李易恒","安全与海洋工程学院",2023215818,13094028079,"在为期一个多月的社会实践中，“油你同行”团队走访了多个石油企业、油田及相关单位，重点调研石油工人的日常工作与生活。前往西北某大型油田，在走访过程中，我们与石油工人面对面交流，了解他们在艰苦环境中不屈不挠的工作状态。在这次实践中，我主要负责影像资料的收集与整理。我用镜头记录下工人们在烈日下的工作场景、夜晚巡查油井的情景，以及他们生活中的点滴。这些素材真实展现了石油工人的不懈奋斗，也让我对石油精神有了更深刻的理解。除了走访工作，我还负责团队的视频剪辑。剪辑过程中，我希望通过影像真实展现石油精神的力量。因此，我花了大量时间从海量素材中挑选出最具代表性的画面，展现石油工人的坚韧与奉献。为了确保视频内容贴合主题，我反复调整片段的顺序与剪辑方式，并与团队成员讨论优化方案，力求让影像作品更具感染力。"," "," "]
[109,"安全与海洋工程学院","丝路青春行·疆海情缘","曹赞","安全与海洋工程学院",2022011284,15145019691,"在“丝路青春行·疆海情缘”社会实践活动中， 我有幸担任了摄影摄像以及视频剪辑的工作， 这不仅锻炼了我的专业技能， 更让我深刻体会到了社会实践的意义和价值。在实践过程中拍摄的参观，采访，介绍，交流，学习等照片被用于报道实践团实践成果的各类新闻网及推送中使用，为实践团的工作留下了实践成果，宣传材料以及美好的回忆。拍摄了三次采访视频，奥运助力视频，以及各类非遗文化传承学习的视频，所剪辑的社会实践视频获得了校社会实践十佳视频的奖项。总的来说，在这次社会实践活动中，我不仅提高了自己的摄影摄像和视频剪辑技能，更收获了许多宝贵的经验和回忆。通过参加这次活动，我对社会责任有了更加深刻的理解， 也坚定了我在未来为社会发展贡献力量的决心。"," "," "]
[110,"安全与海洋工程学院","丝路青春行·疆海情缘","林才涵","安全与海洋工程学院",2022011237,19204150540,"作为策划团队一员，我肩负创意发想与方案细化重任。此次，我聚焦于二胡与新疆手鼓、牛角的奇妙融合表演。创意源于偶然听到二胡旋律后，脑海浮现新疆手鼓热烈节奏与牛角雄浑声响，遂大胆设想将三者融合，探索文化交流。在创意发想阶段，深入研究三种乐器特点与演奏技巧，思考融合方式。与团队成员多次讨论、头脑风暴，确定初步表演方案。方案细化时，以二胡旋律为主线，手鼓和牛角烘托节奏氛围，加入现代音乐元素增强吸引力。为团队增添独特的民族融合魅力。"," "," "]
[111,"安全与海洋工程学院","丝路青春行·疆海情缘","张萱","安全与海洋工程学院",2022011189,18310562369,"今年暑期，我们前往新疆，开始了一场为期32天的西域之旅。我们将科技力量融入乡村振兴，自主成立传媒公司——雅韵高文化传媒工作室，为新疆传统农产品、文化产品拓宽市场。与留学生朋友走进克拉玛依第十九小学、乌鲁木齐县庙尔沟中学等对口援建学校，募捐助学物资，开展生涯规划、红心向党等主题课程。身为主持人，我借助公司直播录播平台，将教学过程转化为线上慕课课程。我发挥艺术特长，与不同民族的孩子们原创全国第一张新疆非遗文化地图。维族馆长阿不列孜与团队成员共同用维语和汉字写下我校“我为祖国献石油”的豪迈壮歌。深入油田一线，作为记者采访克拉玛依校区首批毕业生和回信执笔人。"," "," "]
[112,"安全与海洋工程学院","丝路青春行·疆海情缘","张云起","安全与海洋工程学院",2022011275,13629971515,"在过去为期十天的社会实践调查过程中，我的主要职责就是为本次实践团队提供在新疆克拉玛依地区的准确的规划路线和丰富的调查资源，保障团队每日便捷和高效的学习记录。作为一名土生土长的克拉玛依人，我深知克拉玛依是一座因石油而生，因石油而兴的石油之城，因此我为团队提供的思路便是围绕克拉玛依本身具有的石油特色而进行；石油就像一条无形的纽带，一直牵连着克拉玛依的经济，文化和教育；通过参观丰城油田作业区，我们了解到上世纪老一辈石油人采油时期的不易，切身的感受了他们的工作环境和生活环境，以及从这些现实背后所体现出的铁人精神和能源报国的赤子之心；通过参观克拉玛依市博物馆，细致的了解了克拉玛依石油行业从无到有的发展历程，近期蓬勃的现状和远期科学的规划；通过参观白碱滩第19小学，实地感受到了克拉玛依各民族之间的文化交流和输出，充分体现了汉族，维吾尔族以及其他少数民族之间友好和谐的学习和生活氛围。"," "," "]
[113,"安全与海洋工程学院","丝路青春行·疆海情缘","彭美林","安全与海洋工程学院",2022011188,13310272598,"2024年暑假，我加入“疆海情缘·丝路青春行”社会实践团队，前往新疆进行32天的实践活动。我们围绕科技赋能乡村振兴、文化交流促进民族团结、校友回访学习前辈榜样三方面展开。在科技赋能方面，我参与直播带货、设计特制奖牌、编写新闻稿，助力新疆特色农产品销售和文化传播。在文化交流方面，我与少数民族和留学生共同绘制丝绸之路路线图、书写书法作品，体验非遗文化，促进民族团结。同时，我录制景点讲解视频，向世界介绍新疆美丽。在校友回访方面，我协助统筹校友寻访，宣传校友事迹，学习他们为石油事业奉献的无私精神。校友们的奋斗历程激励着我们珍惜时光、勇于担当，为国家发展贡献力量。这次实践让我受益匪浅，收获了许多宝贵的经验和回忆。"," "," "]
[114,"安全与海洋工程学院","丝路青春行·疆海情缘","刘帅","安全与海洋工程学院",2022011202,13992150488,"在这个充满探索与发现的暑期，我踏上了丝路青春行•疆海情缘社会实践项目的征程，作为团队的学生负责人，我怀揣着对新疆的无尽好奇与向往，与伙伴们一同走进了这片神秘而美丽的土地。从乌鲁木齐的古老街巷到克拉玛依的现代化工场，我的足迹遍布了实践的每一个角落，也在这片土地上留下了属于我的青春印记。    一、初识新疆，心怀敬畏    实践之初，我带着对新疆的初步了解与想象，踏上了前往乌鲁木齐的旅程。一踏入这片土地，我便被其独特的自然风光和深厚的文化底蕴所震撼。在乌鲁木齐的街头巷尾，我感受到了这座城市的古老与现代交织的魅力，也初步领略到了新疆人民的热情与好客。    二、支教乌鲁木齐，传递知识与爱心    在乌鲁木齐的支教活动中，我担任了主要的教学任务。面对着一双双充满渴望的眼睛，我深知自己肩负的责任重大。我结合新疆的地域特色，设计了寓教于乐的课程，让孩子们在轻松愉快的氛围中学习新知识。我还特别注重培养他们的爱国情怀和民族自豪感，通过讲述新疆的历史故事和英雄事迹，激发他们的爱国热情。在支教的过程中，我也遇到了不少挑战。有时，孩子们的基础较差，需要我耐心地一遍遍讲解；有时，语言沟通存在障碍，需要我不断地尝试和调整教学方法。但正是这些挑战，锻炼了我的耐心和毅力，也让我更加深刻地体会到了教育的意义和价值。    三、走进克拉玛依，感受工业文明    在克拉玛依的石油化工场地，我带领团队成员深入生产一线，近距离观察了石油化工的生产过程。这次参观让我对石油化工产业有了更加深入的了解，也让我意识到了科技的力量和工业文明的重要性。同时，我还特别关注了环保和可持续发展问题，与工人们交流了他们对环保的看法和做法，收获颇丰。    四、纪念馆之旅，铭记历史与传承文化    在纪念馆的参观中，我仿佛穿越了时空，回到了新疆的历史长河之中。我认真聆听讲解员的介绍，仔细观看展品和图片，深刻感受到了新疆历史的厚重和文化的博大精深。这次参观让我更加珍惜现在的幸福生活，也更加坚定了我要为传承和弘扬中华文化贡献力量的决心。    五、实践中的成长与收获    此次实践经历对我来说是一次宝贵的成长机会。我不仅学到了很多新知识，还锻炼了自己的组织协调能力、沟通能力和领导能力。在实践中，我学会了如何与团队成员协作配合，共同完成任务；如何面对困难和挑战，保持冷静和乐观的心态；如何与不同背景的人沟通交流，增进理解和友谊。  更重要的是，这次实践让我更加深刻地认识到了自己的责任和使命。作为新时代的青年，我们要肩负起传承和弘扬中华文化的重任，为祖国的繁荣富强贡献自己的力量。同时，我们也要关注社会发展和民生问题，用自己的实际行动为社会的进步和人民的幸福贡献一份力量。回顾这次丝路青春行•疆海情缘社会实践项目，我深感收获颇丰。我不仅领略了新疆的美丽风光和深厚文化底蕴，还在实践中锻炼了自己的能力和素质。这段经历将成为我人生中宝贵的财富，激励我在未来的道路上不断前行、不断成长。"," "," "]
[115,"安全与海洋工程学院","共研山海经 同谋未来路","陈弈真","安全与海洋工程学院",2023011310,13190413635,"在暑期社会实践活动中，我担任摄影宣传工作，负责记录团队的点滴与精彩瞬间，并通过图文报道展示活动成果，提升团队的社会影响力。在此期间，我剪辑了12条长视频，总浏览量达2万，其中《最美浙江大陈岛》和《夜临台州紫阳古街》被央视频转载，极大提升了活动的讨论热度。作为摄影宣传负责人，我认识到摄影不仅是记录，更是一种沟通与表达方式。我积极参与每项活动，努力捕捉细节，展现团队的拼搏精神和积极风貌，面对不同的实践场景，我不断调整拍摄思路，力求通过镜头展现出团队的整体形象和每个人的贡献。我学会了如何在复杂的环境中抓住关键时刻，如何通过构图和光影传达情感与故事。这些技巧的提升让我在宣传工作中更得心应手，也使得我们的实践活动在社会上获得了更多关注。同时，我学习相关摄影技巧，确保每张照片能准确传达活动的主题与氛围。在活动结束后，我整理素材撰写宣传稿，迅速通过多平台发布，旨在吸引更多人关注我们的实践及社会热点问题。在此过程中，我与团队成员紧密合作，分工明确，确保活动顺利进行和宣传效果最大化。这次实践让我提升了摄影与宣传技能，积累了宝贵经验，深刻理解了社会的多样性，也更加坚定了自己为社会服务的信念。通过这些努力，我们的活动获得了更大的关注和认可。"," "," "]
[116,"安全与海洋工程学院","共研山海经 同谋未来路","韦思贤","安全与海洋工程学院",2023011276,15739389827,"在“共研山海经 同谋未来路”社会实践中，首先负责设计了全面且具有针对性的问卷，通过深入研究与实地考察，确保了问卷内容的真实性和有效性。实践期间，带领团队深入社区、企业进行数据收集，并运用统计方法对数据进行了科学分析，成功解决了数据缺失和异常值处理等问题。同时，积极参与宣传推广，通过多渠道传播实践成果，提高了项目的知名度。此外，还负责与各方沟通协调，有效解决了实践过程中遇到的各种问题，促进了团队合作，为项目的顺利进行作出了重要贡献。"," "," "]
[117,"安全与海洋工程学院","共研山海经 同谋未来路","徐宁慧","安全与海洋工程学院",2023011239,13261260811,"团队围绕“高质量发展 青年何所为”主题，深入浙江、云南两地调研。跟随团队探索文旅融合、科技创新、特色产业等高质量发展路径，体验学习彝绣文化，开展彝族文化直播。同时，走进煤矿生产一线提出预警方法，开展绿色可持续发展宣讲。此外挖掘垦荒精神，开展志愿支教，调研野生菌和鲜花产业全链条，深入基层开展绿色调研与助力工作，为地方高质量发展贡献力量。为期半月的社会实践中，我主要负责文案撰写、日程规划、对接等工作，协助团队完成多篇推送工作，编辑文字上万余字。多篇文章被央视新闻、学习强国等十多个媒体报道，累计阅读量10万+。为团队剪辑的视频《最美浙江大陈岛》配音，视频被央视频转载，带动大陈岛当地文旅发展。后期统筹实践报告撰写与结项工作，完成1万5千字实践报告一篇，两篇特色产业调研报告与一篇绿色生态调研报告。"," "," "]
[118,"安全与海洋工程学院","丝路青春行·疆海情缘","郭雅贤","安全与海洋工程学院",2022011181,18935590017,"一、深入调研与方案优化阶段  在活动筹备初期，我带领团队进行了全面的线上调研，系统地收集了关于新疆的风土人情、历史文化等大量资料。基于这些调研结果，我对活动方案进行了细致的调整和优化，确保活动内容既充实又具有针对性，紧密贴合新疆的实际情况。在预算制定与资金筹集方面，我精心规划了各项开支，并成功筹集到所需资金，为活动的顺利进行提供了物质保障，并及时记录团队开支。同时，我制定了详细的社交媒体宣传计划，在活动过程中以及后期总结中撰写并发布了多篇宣传文章，有效提升了活动的知名度。此外，我还通过多方渠道联系到几位在新疆工作或具有丰富实践经验的优秀校友，并邀请他们作为嘉宾参与活动，为团队成员提供了宝贵的交流与学习机会。二、活动准备阶段的精心组织  在物资采购与准备方面，我严格把关，确保所有物资均符合安全标准，并按时到位。同时，我组织团队成员进行了多次交流沟通与培训，提高了他们的综合素质和应对能力。我还与新疆当地的合作伙伴进行了多次沟通，确保活动细节得到落实，并共同制定了应急预案。三、活动执行阶段的严谨实施  在活动现场，我负责整体协调和指挥工作，密切关注活动进展，及时调整计划，确保各项活动顺利进行。我和团队成员深入新疆各地进行实地考察和体验，亲自记录活动的精彩瞬间和团队成员的感悟，为后期宣传和总结提供素材。我还安排了团队成员与优秀校友进行深度交流，促进了团队成员的成长和进步。同时，我保持与合作伙伴的紧密合作，确保团队成员的安全和活动的顺利进行，并及时向学校和家长报告情况。此外，我还负责社交媒体账号的实时更新工作，及时发布活动动态和精彩瞬间，让更多人了解新疆的美丽和魅力。四、活动总结与成果展示阶段的系统整理四、活动总结与成果展示阶段的系统整理\n  活动结束后，我系统整理了活动资料和照片，包括活动记录、感悟心得、精彩瞬间等，为后续的宣传和总结提供了便利。我撰写了详细的活动总结和报告，全面回顾了活动的亮点和不足，为未来的活动提供了参考和借鉴。我还组织了团队成员进行成果展示和分享会，让大家共同回顾活动的精彩瞬间和成长历程。  通过此次活动，我提升了自己的组织协调能力和应变能力，深入了解了新疆的文化和风俗习惯，拓宽了自己的视野和知识面。同时，我也结交了许多新朋友和志同道合的伙伴，与优秀校友的交流让我受益匪浅。六、总结与展望  此次新疆社会实践活动对我来说是一次难忘的经历和宝贵的财富。在未来的日子里，我将继续发挥自己的特长和优势，为更多的社会实践活动贡献自己的一份力量。同时，我也希望更多的人能够参与到这样的活动中来，共同感受新疆的美丽和魅力，为促进民族团结和文化交流贡献自己的一份力量。"]
[119,"安全与海洋工程学院","丝路青春行·疆海情缘","张美旭",null,2022011204,13992150488]
[120,"新能源与材料学院","科技助力乡村振兴，打造绿色能源小镇","谭雪","新能源与材料学院",2023011422,18629087335,"我积极参与了多项社会实践活动，致力于将所学知识服务于社会，以实际行动诠释\n青年的责任与担当。\n在“科技助力乡村振兴，打造绿色能源小镇 ”团队中，我参与了文案的撰写工作与\n部分推送的排版工作，以及答辩 ppt 的制作，我不仅参与了实践方案的撰写和报告\n的制作，还深入到崔村镇和琉璃庙镇，通过问卷调查了解村民需求，为项目提供了\n宝贵的第一手资料。此外，我还参与了宣传视频的拍摄，通过多种渠道宣传当地特\n色产业和美丽风光，有效提升了当地的知名度。在“绿源探航-产教研融合的新能\n源未来团队”中，我负责了全部的推送任务，制作了 14 篇秀米，并在学院以及学\n校官微上发表。我还参与了答辩 PPT 的制作以及承担答辩任务，还有线上课程包的\n录制，通过系统分析收集到的数据，结合专业知识撰写实践报告，为新能源技术的\n应用提供了创新性建议。\n在“两弹护一星，一曲东方红 ”志愿服务团队中，我积极参与了宣讲 PPT 的制作及\n宣讲视频的录制、社会实践报告的撰写等工作。我录制的宣讲视频提高了宣讲效果，\n参与撰写的社会实践报告总结了团队的成果。\n我的实践时长覆盖整个 2024 年暑期，所在的两支队伍均获评校一等奖，基于我在\n社会实践中的积极表现和所取得的成果，特此申请“优秀个人 ”的荣誉称号，期望\n能够得到肯定和鼓励。我将会继续以实际行动践行青春使命，为社会的可持续发展\n注入青春活力！"]
[121,"新能源与材料学院","科技助力乡村振兴，打造绿色能源小镇","徐润仪","新能源与材料学院",2023011495,15210625880,"在团队中，该同学积极承担各类工作，主动在人手不足时协助拍摄素材、进行剪辑；\n充分发挥自身社交能力，主动与当地居民、地方管理人员进行交流，保证有关工作\n顺利开展。该同学在社会实践期间累计完整制作推送 1 篇，排版公众号 3 篇，累计\n阅读量超 1500＋ ，完成脚本 4 部，包括崔村镇、琉璃庙镇宣传片、社会实践总结\n视频等，形成总计约 10000 字的文字终稿以及多份文字资料，在帮助崔村镇、琉璃\n庙镇挖掘文旅资源、拓宽宣传范围做出较大贡献。\n此外，她还积极运用青年思想、贡献青年力量，她多次在座谈会中提出建设性意见，\n帮助琉璃庙镇设计“琉璃山水 ”系列明信片；深入基层进行考察，在崔村镇开展“绿\n色思想润心、建设美丽中国 ”宣讲；主动参与基层建设，在“信息科技赋能智慧农\n业产业链发展沙龙”中担任志愿者，承担会议桌牌、海报设计以及现场指引工作。"]
[122,"新能源与材料学院","科技助力乡村振兴，打造绿色能源小镇","黄允恩","新能源与材料学院",2022011342,18776762943,"黄允恩作为中国石油大学（北京）“科技助力乡村振兴，打造绿色能源小镇 ”社会\n实践团的重要成员，在 2024 年的实践活动中展现了出色的组织能力与创新思维。\n他主要负责“零碳小镇 ”方案的设计与实施，结合农业废弃物处理与新能源技术，\n提出了利用畜禽粪污和秸秆资源化的构想，为崔村镇的低碳环保发展提供了有效方\n案。在方案推进过程中，他积极与当地政府沟通，确保了方案的落地实施。\n黄允恩还参与了崔村镇的文旅融合项目，参与设计了“西西路 ”文化旅游线路，通\n过旅游标识、景观设计等具体措施，助力当地文旅产业提升。他同时参与了真顺村\n的环保宣讲活动，设计科普材料并深入村户，提升村民环保意识。通过问卷调查，\n团队进一步了解了村民需求，为后续项目提供了支持。"]
[123,"新能源与材料学院","凝聚校企“核 ”力，共创核能“碳 ”路","韩士绅","新能源与材料学院",2022011347,13780418047,"在凝聚校企“核 ”力，共创核能“碳 ”路暑期社会实践中，韩士绅作为实践过程书\n面纪要的主要编辑者和新闻稿的主要撰写人，展现出充分的概括总结和追踪记录能\n力。为期一周的时间内，韩士绅紧紧跟随实践团的步伐参与会议，深入工地，参观\n博物馆，共撰写纸质和电子版记录共数万字，同时积极负责后期材料的整合，为新\n闻稿的编辑提供了丰富的数据，并完成了此次实践的调研报告。"]
[124,"新能源与材料学院","凝聚校企“核 ”力，共创核能“碳 ”路","刘晨","新能源与材料学院",2022011383,13176230761,"在凝聚校企“核 ”力 共创核能“碳 ”路暑期社会实践中，我承担视频剪辑的责任。\n在团队成员结束线下的社会实践后，我充分熟悉了关于实践团队所学所想所做的素\n材，大体明晰了剪辑思路，为剪辑好视频打下了基础。为高质量完成剪辑任务，我\n提前一周左右回到学校，开始剪辑工作。基于团队成员所提供的视频脚本和素材，\n我在两天内完成了视频初版，在与指导老师以及团队成员讨论后，我在随后的十几\n天内对视频进行了多次修改和润色，最终达到了团队要求。这次剪辑工作不仅锻炼\n了我的剪辑能力，还加强了我的团队合作能力。我将牢牢坚持团队精神，同时不断\n提升个人能力，在社会实践中发光发热，为社会发展贡献自己的一份力量。"]
[125,"新能源与材料学院","绿源探航-产教研融合的新能源未来","齐豪","新能源与材料学院",2023011449,16651295666,"在实践中，齐豪带领团队深入城市各个角落，包括太阳能发电站、风电场、电动汽\n车充电站等，与当地工程师、政策制定者以及居民进行深入交流。他鼓励团队成员\n积极提问，记录下宝贵的一手资料。\n齐豪指导团队成员对收集到的数据进行系统分析，并结合专业知识撰写了一份详细\n的实践报告。报告中不仅包含了新能源技术的应用现状，还提出了一系列创新性的\n建议，旨在优化新能源技术在城市中的应用。\n在实践过程中，齐豪还组织了多次社区参与活动，如新能源知识讲座、绿色能源工\n作坊等，提高了当地居民对新能源重要性的认识。此外，还在网络上开展了新能源\n教育项目，激发了学生们对新能源技术的兴趣。"]
[126,"新能源与材料学院","绿源探航——产教研融合的新能源未来","杨颜如","新能源与材料学院",2023011527,15332158196,"作为社会实践的积极践行者，我深入参与了五项实践活动，以实际行动彰显青年人\n的责任与担当。在“助还生态之清嘉，青访津冀为绿行 ”项目中，我作为天津地区\n的核心联络人及调研组组长，不仅成功协调团队，更亲自参与线上线下问卷的发放\n与回收工作，累计超过 500 份，为生态环保事业提供了坚实的数据支撑，实践成果\n获得当地社区的感谢信。\n与此同时，我充分发挥专业技能，利用剪映、AE 等视频编辑软件，倾注近 80 小时\n的热情与努力，精心剪辑出 18 个视频作品，这些作品不仅捕捉了社会实践的精彩\n瞬间，更深刻传达了活动的意义与成果，有效促进了信息的传播与影响力的扩大。\n从“青志生产 ”的志愿服务中传递温暖，到“青振乡村 ”的乡村振兴实践中贡献力\n量，再到“青护生态 ”的环保行动中守护绿色，我在各类活动中均扮演着不可或缺\n的角色，2024 年暑假总实践天数超过 28 天，以实际行动践行着青春使命，为社会\n的可持续发展注入了源源不断的活力与希望。\n鉴于我在社会实践中的突出表现与贡献，特此申请优秀个人称号，期待得到认可与\n激励，未来我将继续秉持初心，勇往直前，为社会进步贡献更多青春力量。"]
[127,"新能源与材料学院","绘梦南华——非遗助力乡村振兴行","李云芯","新能源与材料学院",2023011393,15987636995,"在本次实践活动中，我和实践团成员确定以非遗推动乡村振兴方向后，聚焦南华彝\n绣，在期末周面临压力，但仍积极为南华彝绣制作新宣传册。在南华的 11 天，从\n彝绣和野生菌开展实践，更新网店页面、拍摄宣传片、非遗进校园、采访非遗传承\n人等，实践过程中与不同人交流沟通，提高了我的人际交往能力，我也在实践中认\n识到社会实践的意义。结束线下实践后，回到家中，我继续更新网店详情页，安排\n线上推送、新闻稿撰写和视频剪辑，积极投稿扩大影响力。此次实践让我认识到肩\n负的责任，未来将继续参与社会实践，提升能力，关注乡村振兴与文化传承。我为\n能为家乡发展贡献力量而自豪，也更加坚定了通过社会实践为家乡基层发展贡献微\n薄之力的决心。"]
[128,"新能源与材料学院","绘梦南华——非遗助力乡村振兴行","屈佳钰","经济与管理学院",2023011493,15912576095,"在社会实践期间，我与队长共同确定实践安排和规划，以彝绣和野生菌为主要实践\n线路。积极对接南华文旅局、宣传部等部门，认真填写项目申报书，成功申报各大\n专题，赢得资源支持。暑假第一天，来到南华县开启实践之旅，以饱满热情投入工\n作，负责拍摄彝绣实践活动照片，参与采访绣娘和探索野生菌奥秘。结束线下实践\n后，迅速开展线上推送和新闻稿撰写，扩大活动影响力，营造良好舆论氛围。最后\n与团队共同撰写社会实践报告。此次实践收获颇丰，提高了实践能力和综合素质，\n深刻认识到家乡发展需求和自身责任。未来，我将继续积极参与社会实践，为建设\n家乡、推动乡村振兴贡献青春力量。"]
[129,"新能源与材料学院","助还生态之清嘉，青访津冀为绿行","赵冰心","新能源与材料学院",2023011528,13581170220,"在本次生态环保实践中，我作为队长，不仅承担了整体规划与策略制定的重任，更\n在各个环节中发挥了关键作用。  筹备期间，我组织团队进行十余次线下会议，深\n入调研白洋淀及化工厂周边，精心策划了切实可行的实践活动方案并联系相关部门\n和企业，为活动的顺利开展奠定了坚实基础。实地考察中，我带领团队直面挑战，\n细致记录生态现状，通过问卷调查、访谈等方式收集宝贵意见。面对问题，我组织\n团队分析根源，提出切实可行的解决方案，并协调各方力量推动实施。同时，我注\n重成果宣传，提升公众环保意识。整个过程中，我激励团队成员积极发言、勇于尝\n试，共同成长，不仅增强了团队凝聚力，也提升了个人与团队的专业能力，为生态\n文明建设贡献青春力量。"]
[130,"新能源与材料学院","助还生态之清嘉，青访津冀为绿行","常胜凯","新能源与材料学院",2023011477,18811580720,"在本次实践活动中，我与团队成员一同前往津冀地区进行实地调研，促进生态文明\n建设和绿色能源发展。前期与团队成员一同确立调研方向和实践方案，参与资料收\n集和材料撰写工作，并亲自联络了天津优秀化工企业作为调研对象之一。实践过程\n中参与调查问卷的发放和设计，并作为宣讲人进行了宣讲视频的录制，播放量达\n3000+。后期参与实践推送排版、新闻稿件刊发等宣传工作，并负责对实践结果进\n行方法总结，撰写了部分调研报告。"]
[131,"新能源与材料学院","让红色曙光在田埂上跳跃——沉浸式理\n想信念教育探索者","陈锐","新能源与材料学院",{"v":2022011360,"d":" 2022011360"},18008169668,"在 2024 年的暑期，我有幸成为“让红色曙光在田埂上跳跃 ”实践团的一员，投身\n于南绍镇的社会实践。作为团队骨干，我深入社区，通过实地考察和访谈，收集了\n大量关于当地经济发展、文化传统和社会问题的第一手资料，为团队的实践活动奠\n定了坚实的基础。\n在服务社区的过程中，我积极参与垃圾分类宣传，策划并实施了微党课宣讲，设计\n并执行了社区满意度调查，并负责在南绍镇政府进行总结汇报，全面总结了我们的\n实践成果，得到了领导的高度评价。\n通过这次实践，我不仅提升了自身的组织协调能力和问题解决能力，也加深了对基\n层治理的理解，增强了社会责任感。这次经历是我宝贵的财富，它将激励我在未来\n继续为社会贡献自己的力量。"]
[132,"新能源与材料学院","平西红韵 绿野流金-汇聚红绿双动力 赋\n能涧沟乡村振兴","康萧冰","新能源与材料学院",{"v":2022011411,"d":" 2022011411"},13082070179,"在此次实践中，康萧冰同学负责实践整体规划与文案，优秀完成前期对接、中期宣\n传、后期总结工作。作为团队负责人，康萧冰同学带领团队成员深入涧沟村，走进\n乡村基层，开展“重温隐蔽战线 夯实红色信仰 ”、“走访乡村实地 激活旅游动\n力”、“建言乡村旅游 贡献青年答案 ”三项活动，活动内容覆盖思想学习、民俗\n了解、实地调研、提供可行性建议多方面，作为负责人能够引导团队成员正确、高\n效地开展实践。作为实践个人，康萧冰同学能够较好完成团队分工任务，做好实践\n规划，及时、高标准高质量完成推送文案撰写、宣传视频稿书写等工作，工作质量\n受团队成员充分认可。"]
[133,"新能源与材料学院","机运匠心探石油，岁月深耕润未来","霍宇欣","新能源与材料学院",2022011325,18511913492,"在此处社会实践过程中，霍宇欣同学作为项目负责人在项目前期立项，实践开展过\n程中，项目宣传过程中，积极完成各项工作和队员们分工合作，完成立项，采访稿\n书写，其中每一个问题都是我们精心考究过的。在采访过程中，我展现中石大新青\n年的专业素养，和老师相互配合完成采访。在宣传过程中，负责将采访素材整理成\n推送文案、视频脚本等。我负责总体框架的搭建和关键内容的审核，确保创作内容\n准确传达石油精神。我们探寻罗老的事迹，将其整理成册，投稿“读懂中国 ”征文\n2 份，完成调研报告 1 份，累计在学院公众号发表 4 篇推送，阅读量高达 1000 次！\n同时，实践团队组成宣讲团，在学校及周围大力宣讲，在 b 站、抖音等发布宣传视\n频数次，共获得 12000+播放量！系列活动视频累计播放量 25000 余次！"]
[134,"新能源与材料学院","\"两弹护一星，一曲东方红“志愿服务团\n队","林诺","新能源与材料学院",2022011361,15167778070,"在实践过程中，林诺作为团队主力成员，线上参与前期信息资料整理等活动：制作\n多类型宣讲 PPT，撰写讲稿，准备宣讲物资；后期参与新闻稿修改宣发 4 篇、累计\n影响 3 万+，完成报告撰写；共同准备答辩汇报工作等。并在实践过程中完成多次\n线下实地宣讲活动，前往三省四地，累计参与到5 场两弹一星精神宣讲活动中。用\n声音、行动、思想、精神号召并吸引更多的人，加入到弘扬精神、践行思想的队伍\n中来；我也在宣讲过程中更深刻地认识到青年回应“强国建设 ”何为这一时代课题\n——用声音诉说我们眼中的中国历史和中国未来；用足迹去丈量，去影响更广阔的\n天地。并与团队成员共同巧妙编织起学校、企业、纪念馆与社区的四维联动网络，\n深情而庄重地开启了“两弹一星 ”精神的时代传扬之旅，独创“三步走 ”精研体系。"]
[135,"新能源与材料学院","智启绿程研石化，材汇燕化绘未来","黎洋","新能源与材料学院",2023011488,15639937293,"作为本次“智启绿程研石化，材汇燕化绘未来 ”实践活动的成员，黎洋同学深入燕\n山石化公司，聚焦氢能与碳减排技术，展现卓越实践风采。跟随团队走访研发、生\n产、排污全链条，采访氢能专家李军良，洞悉“蓝氢 ”转“绿氢 ”技术难点，并探\n索绿电交易对绿氢生产的推动作用。在北京化工研究院燕山分院，深入交流 CCUS\n技术进展，激发青年科研热情。牛口峪湿地公园之行，直观感受“碧水蓝天 ”工程\n成效，见证污水变清流的生态奇迹。黎洋同学以扎实调研为基础，整理资料成册，\n制作视频，公众号推文阅读量高达 500 人次，有效传播清洁能源理念，为产业高质\n量发展贡献力量。"]
[136,"新能源与材料学院","《“豫 ”电于锂、华韵“新 ”行：\n中石大以文化与技术双轮驱动新乡新质\n生产力》","谢毅立","碳中和未来技术学\n院",2022011978,17303735653,"在实践活动开始前的一个月，我积极参与了团队的组建和分工工作。作为团队的一\n员，我负责与新乡市的几家知名电池公司和国家电池检测中心进行对接，准备实践\n所需的材料和问卷。在实践过程中，我参与了多项实地考察和调研活动。积极与政\n府、企业、学校对接，确保实践顺利完成，以一份完整的社会实践彰显中石大学子\n的社会担当。"]
[137,"新能源与材料学院","储梦新乡——共绘多维振兴画卷","王春絮","新能源与材料学院",2023011433,17734282283,"党的二十大强调乡村振兴重要性，六月，石大学子组成的储梦新乡社会实践团前往\n河北高碑店市西务村。前期，团队负责人积极与当地各方联系确定实践安排，组织\n培训并制定计划，购置物资、制作宣讲 PPT。在西务村，与小学校长交流了解教育\n现状后开展科普讲堂，获认可。又采访村支书掌握乡村情况，形成灾后重建计划书\n被采纳。还采访村民，引入漆扇丰富文化生活并提升文化认同感，设计生态墙画践\n行环保理念。最后，团队前往保定博物馆和直隶总督署领略文化韵味。线下实践结\n束后，负责人分工安排成果整理工作，创立多平台宣传，负责总结视频剪辑和答辩\nPPT 制作美化。为响应乡村振兴政策，团队将持续踏上实践之路，绽放石大学子青\n春光芒。"]
[138,"新能源与材料学院","石油先锋成长营+学习能源知识，开展能\n源科普","宋建豪","新能源与材料学院",2023011499,18811580815,"在“石油先锋成长营+学习能源知识，开展能源科普 ”社会实践项目过程中，我有\n幸承担了 CCUS（碳捕获、利用与封存）技术科普资料的撰写、参加大港油田线下\n实践活动以及承担活动后续视频剪辑工作，在撰写过程中，我充分发挥自己的资料\n收集，查找，整理，能力。在阅读前沿文献之后，深入研究了CCUS 技术的原理，\n最终汇总出一篇科普文章。紧接着，7 月 31 日，我跟随实践团参加了大港油田的\n线下实践活动。在这里，我不仅亲眼见证了石油工业在实际工业生产的宏伟壮观，\n还深入了解了大港油田的新能源产业现状。在线下实践活动结束后，我承担了后续\n视频剪辑的工作。我将实践活动中拍摄的照片和视频素材进行整理、编辑，制作成\n了一部生动的纪录片，用于记录实践活动以及后续宣传"]
[139,"新料学院能源与材","让红色曙光在田埂上跳跃——沉浸式理\n想信念教育探索者","李傲冰","新能源与材料学院",2022011326,18240398133,"在实践过程中，李傲冰同学作为团队负责人组建团队，主要负责前期信息资料整理、\n整体统筹规划、社区学校对接、宣传资料书写、总结报告撰写及答辩工作。围绕“美\n化环境，从我做起 ”“两弹护山河、一曲东方红 ”等主题开展系列宣讲，形成阶段\n性总结报告 2 篇，建言献策 1 篇，取得良好反响。组建支教团队，前往北京市光爱\n学校，为孩子们精心准备了如奥运人物等课程，为孩子们精心准备了“同读一首诗 ”\n等特色教育课堂，创新提出以理想为核心，从学习、专攻、创造、勤奋、立德五个\n方面共同展开的支教课程体系，创建“ 1+5+11+N ”支教课程建设新模式，为 50 名\n留守儿童进行科普特色支教，打造特色曙光课堂，累计开展宣讲及课程 20 余节。"]
[140,"新能源与材料学院","凝聚校企“核”力，共创核能“碳”路","周熠",null,2022011355,18922853212]
[141,"新能源与材料学院","智启绿程研石化，材汇燕化绘未来","周晓光",null,2022011338,18511913492]
[142,"人工智能学院","“望山”系列社会实践之连接南北振兴路，逐梦奋斗践初心","霍嘉宇","人工智能学院",2023011753,15210919227,"作为实践团的队长，从活动策划到执行，再到处理突发状况、协调各方资源、总结成果，每一步都让我体会到了奋斗的意义。\n通过与团队成员的紧密合作，我学会了如何更有效地沟通，如何在复杂环境中保持冷静、做出决策，增强了我的组织能力和应变能力。\n在文化传承方面，我积极带领团队深入学习非遗文化，如陕北大秧歌，并将这些文化成果展示给当地村民。不仅提升了我对传统文化的理解，也使得文化活动得到了媒体的广泛报道，进一步推动了非遗文化的传播与认知。\n通过与地方企业多次交流合作推广农产品，我带领团队成功助力农产品企业经济增益十万元。同时，我努力做好宣传工作，不仅提升了团队的社会影响力，也让我们在实践中不断提升自我。"]
[143,"人工智能学院","“望山”系列社会实践之连接南北振兴路，逐梦奋斗践初心","刘磊","人工智能学院",2022012260,13658449185,"我叫刘磊，预备党员，来自重庆市垫江县，目前就读于人工智能学院人工智能专业。在我的成长道路上，我一直以高标准严格要求自己，无论是在学术追求还是社会实践中，我都努力展现出自己的能力和热情。\n在南华分队中，我主要负责宣传材料的制作，包括推文稿撰写和宣传视频的拍摄剪辑。我们深入乡村，与非遗传承人交流，体验了菌文化和彝族服饰的独特魅力。在撰写推文稿时，我努力挖掘非遗文化的历史背景和文化内涵，用生动的语言让读者感受到非遗文化的独特魅力。在拍摄剪辑宣传视频时，我们会精心准备，细致刻画每一个场景，力求将非遗文化的美丽和传承人的故事生动地展现出来。曾有多次，我们深夜未眠，只为将视频能即使地呈现。我们记录下了南华独特的自然景观，彝族服饰的精美工艺，捕捉了传承人对非遗文化的热爱和坚守，以及他们在现代社会中对非遗文化传承与创新的努力。"]
[144,"人工智能学院","“望山”系列社会实践之连接南北振兴路，逐梦奋斗践初心","马锴","地球科学学院",2023010084,15849409436,"在本次社会实践活动中，我以满腔热情和专业知识，积极投身乡村振兴战略，深入乡村，28天全程参与本次社会实践活动。通过走访红色教育基地，发扬红色文化；对话非遗传承人，弘扬非遗文化，；与农产品推广，助力地方特色产品知名度提升。同时，我将能源文化带入社区和学校，宣讲覆盖近300人；调研能源企业，对话行业领军人；参与了转战陕北活动，与多所高校实践成员交流合作。作为文书组总负责人，我撰写了30余篇宣传推送，编辑70余篇文稿，多日睡眠时间不足5小时，我通过文字记录和宣传实践过程，对接其他高校与地方教育与体育局、共青团县委等，以保障实践活动顺利开展，扩大了实践的影响力。为乡村振兴贡献出青年力量。"]
[145,"人工智能学院","数往知来 文脉相传","李小孟","人工智能学院",2023011558,15398774826,"在此次实践活动中，我担任队长一职，肩负起了策划和执行的重任。为了确保活动的顺利进行，我认真规划了每一个环节，从前期调研到亲身实践，从宣传工作再到后期总结，每一个步骤都倾注了我的心血。我注重团队建设，通过分工合作，激发了团队成员的积极性和创造力。在活动中，我积极倡导非遗与现代化科技的结合，探索创新传承路径，使得传统文化在新时代焕发出新的活力。同时，我带领团队深入社区，通过举办各种宣讲活动，向公众普及非遗知识。这一系列的努力不仅增强了团队的凝聚力和执行力，也为非遗文化的传承与发展注入了新的活力，展现了青年一代的责任与担当。这次实践经历让我深刻认识到非遗保护的重要性，也让我在组织协调和沟通能力上得到了全面的提升。"]
[146,"人工智能学院","数往知来 文脉相传","熊雨霏","人工智能学院",2023011614,13224336781,"在非遗传承进社区的任务当中，作为实践活动的宣传负责人，我首先面临的挑战是如何在对小朋友的宣讲中引人入胜。我深知唐三彩蕴含丰富的历史文化，因此希望通过宣讲将这一非遗文化传递给社区的小朋友。我精心挑选了PPT的格式，并认真筛选了所需的图片，将我们的活动融入到PPT中。在宣讲过程中，我邀请小朋友参与绘画制作，并带来了精美的唐三彩作品，以激发他们与这一富有历史的非遗文化的碰撞与交流。在本次实践活动当中，我主要负责了全程的视频采集，照片拍摄，以及每天总结性的活动视频剪辑工作。见证了从零零散散的素材到连贯的视频，精心挑选每一个镜头，力求通过一个视频将一天活动的精彩完美呈现给大家。同时，我还对推送图片的选用进行筛选，确保传播画面的准确性和积极性。这些视频和推送不仅记录了我们的实践历程，更传递了非遗文化的价值与魅力，让更多人了解并关注到非遗传承的重要性。"]
[147,"人工智能学院","数往知来 文脉相传","侯梦蕊","人工智能学院",2023011615,18337279661,"我积极投身于进社区活动的细致策划中，从活动内容的设计到实施方案的制定，我深入思考如何使活动内容贴近社区小朋友的兴趣点，设计出既富有教育意义又充满趣味性的活动方案，亲手制作PPT，使知识呈现更加直观生动，精心撰写宣讲文稿，将复杂的人工智能概念转化为易于儿童理解的语言，为社区的小朋友们带来一场别开生面的科技启蒙盛宴。同时我积极组织了一系列丰富多彩的文化体验与学习环节，并通过视频和照片的形式细致记录。我还积极投身于视频剪辑与制作的每一个环节，在和团队成员合作的过程中，不仅学习了专业的剪辑技巧，还深刻理解了如何通过镜头语言来凸显唐三彩文化的独特魅力。在剪辑过程中，我精心挑选每一个镜头，力求捕捉活动中最动人的瞬间，将文化宣传的重点融入其中，通过精心制作的视频，成功地将活动成果生动地展现出来，有效地传播了唐三彩文化的独特价值。在实践后我还承担了总结活动内容、记录个人感受并生成详尽活动报告的任务，我全面梳理了活动的整个流程与细节，从前期筹备到现场执行，再到后期收尾，每一个阶段都进行了深入的回顾与总结。"]
[148,"人工智能学院","服务计算本硕博联合党支部","董颖","人工智能学院",2023211253,18811581961,"前往北京昌平区金惠农农业专业合作社参与劳动体验活动，深入参与了劳动实践各个环节，体会农民日常工作的艰辛与付出。在座谈交流中学习了解到当前肖村面临的发展困境以及合作社经理杨洋经理为此付出的努力。杨洋经理引进了巡逻机器人提高了农业生产效率，深刻体会到“科技是第一生产力”。在这个过程中我们了解到他们继续微信小程序这样的工具，劳动结束后我带领我的队员针对助农微信小程序展开调研。调研了几种效益良好的微信小程序，总结其特点，并提出了相应的改进意见，进而设计了一款助农微信小程序。暑期社会实践项目接近尾声时，我负责项目结题工作，指导大家撰写结题报告和PPT并参加结题答辩。"]
[149,"人工智能学院","“油脉传承，石记不辍”石油先锋实践团","唐梓洋","人工智能学院",2023011658,18093780067,"作为这支石油先锋实践团的队长，我全程主导了本次活动的策划与实施。实践活动从前期准备开始，我深入研究了石油精神的核心内涵，并制定了详细的活动计划。我选择了大庆的两家重点石油精神学习基地作为研学的核心地点。出发前，我组织了多次团队会议，详细讲解了石油精神的历史背景和现代意义，以确保每位成员都明确了实践的目标和重要性。我们特别强调了“拼命也要拿下大油田”的奋斗精神，并讨论了如何将这种精神融入到实践活动中。在实践过程中，我带领团队深入研学，学习铁人精神，拜访了五位老会战，他们分享了当年艰苦奋斗的真实经历，并让我们了解了铁人王进喜的传奇故事。这些亲历者的讲述使我们对石油精神有了更深刻的理解和体会。同时，我主导撰写15篇推送，包括院级、校级、大庆油田及人物传记等内容，广泛传播了石油精神，累计浏览量7000+。主持剪辑纪录片《油脉绵延耀大庆，薪火相传筑梦行》在中石大新青年和b站的总播放量4000+。这些成果不仅展示了我们团队的努力，也证明了我们成功地将石油精神的核心价值传递给了更广泛的观众。"]
[150,"人工智能学院","“油脉传承，石记不辍”石油先锋实践团","史佳俊美","人工智能学院",2023011710,18686069285,"在石油先锋成长营暑期社会实践中，我作为实践团采访组成员，与老会战们一起回忆那个激情燃烧的石油会战现场，在铁人王进喜纪念馆和大庆历史陈列馆研学，深入学习铁人精神，讲述大庆石油会战的故事；是对新时代铁人精神的“青年化”的一次生动践行。走进铁人王进喜纪念馆和大庆油田历史陈列馆，我仿佛穿越了时空，回到了那个激情燃烧的石油会战年代。一张张泛黄的历史照片、一件件珍贵的文物文献，它们静静地诉说着石油工人不畏艰难、勇于开拓的奋斗历程。我仔细聆听讲解员的介绍，认真观察每一个细节，用心感受那份来自心底的震撼与敬仰。在研学过程中，我深刻体会到了大庆精神和铁人王进喜精神的伟大之处，它们不仅仅是石油工业发展的精神支柱，更是我们中华民族自强不息、艰苦奋斗精神的生动体现。为了更深入地了解石油会战的历史与现状，我承担了与老会战访谈的任务。在访谈过程中，我遇到了五位曾经参与大庆油田开发的老会战，他们虽然年事已高，但精神矍铄，言语间充满了对那段岁月的怀念与自豪。他们用自己的亲身经历向我们讲述了当年“拼命也要拿下大油田”的艰辛与荣耀，那种为国家、为民族不懈奋斗的坚定信念和崇高情怀深深地打动了我。通过与老会战的交流，我更加深刻地理解了石油精神的内涵与价值，也更加坚定了自己传承和弘扬这种精神的决心。"]
[151,"人工智能学院","小数苗向阳生志愿服务队","李焕锟","人工智能学院",2023011624,15808497132,"自加入“小“数”苗·向阳生志愿服务队”的支教社会实践团队以后，我开始为分配到的实践工作进行准备。我负责夏令营课程中的计算机与算法课程，这是我专业课的内容，我在思考后选择“汉诺塔”游戏做为切入点，寓教于乐。\n抵达南华雨露当晚，我们进一步商讨计划。在后续的夏令营中，我成功的和小朋友们打成了一片。大部分时间我以助教的方式出现，帮助其他团队成员进行授课，同时管理课堂的纪律，帮助小朋友们解决疑惑，并加入一对一连线计划。\n告别小朋友们后，我们去往南华县城进行调研工作。针对数字素养提升，我们团队先后去往南华县科学技术协会和南华县民族中学，向当地科普工作者学习科普经验。\n在本次社会实践中，我还负责团队的宣传工作，在指导老师的帮助下，我制作的多篇推送成功发布，内容被多次引用，对此次社会实践起到了较大的宣传作用。"]
[152,"人工智能学院","小数苗向阳生志愿服务队","黄文慧","人工智能学院",2023216008,15007141299,"在2024年的社会实践活动中，我作为人工智能学院“小数苗向阳生志愿服务队”的一员。我深刻理解到提升乡村学生数字素养的重要性，在团队指导老师的带领下，提出了结合当地实际情况的创新教育方式，如“孩子也能听懂的数字化”课程大纲，这不仅得到了团队的认可，也受到了雨露小学师生的广泛好评。在实践活动中，我担任了组织协调的重要角色，从调研、策划到执行、教学，再到总结、反馈，我都积极参与并有效推动了整个活动的顺利进行。我们的活动不仅提升了学生的数字素养，还为当地教育政策提供了实践案例和数据支持，同时通过与南华县科学技术协会的座谈和参访，深入了解了当地数字教育的现状和需求。实践活动受到了多家媒体报道，扩大了社会影响力，并与雨露小学建立了长期共建的社会实践基地。通过整合校内外资源，我们打造了具有特色的社会实践品牌，加强了两校之间的交流与合作。在全年的持续实践中，我们取得了优秀的成果，提升了学生的数字素养，增强了团队成员的实践能力和团队凝聚力。这段经历不仅提升了我的专业能力和组织协调能力，也为乡村教育事业做出了贡献，我将继续发扬“实事求是，艰苦奋斗，爱国奉献，开拓创新”的精神，为社会的发展贡献力量。"]
[153,"人工智能学院","“石油学子，逐梦霞西”","周恺","人工智能学院",2023012326,15858228782,"2024暑期社会实践的任务刚刚布置下来，我就开始积极准备。作为队长，我积极联系了队员与指导老师，并开始着手进行社会实践项目的选择。在选定了乡村振兴这一主题后，我经过多方面的咨询与联系，最终将社会实践题目定为：“全国首个坐拥双抽水蓄能电站之村”-宁国市霞西镇石河村的工业旅游致富之路。经过与老师等多方人员协调，最终我带领团队于7月12日正式开始我们的暑期社会实践活动。在为期四天的实践的过程中，我带领队员参观了石河村两座抽蓄电站的建设现场，观摩了解水电站对当地百姓生活带来的积极影响；我也带领队员们游览了宁国周边的人文与自然景观，体悟当地的文化与自然环境优势。在调研过程中，我每天晚上都会明确当晚的任务和分工，深刻总结当天的调研情况。最终在我与队员和老师的配合下，我们的社会实践取得了丰硕的成果，我也非常高兴我们的社会实践能为石河村的发展贡献一份力量！"]
[154,"人工智能学院","“石油传烽，井冈新声”志愿宣讲团","于茗旭","人工智能学院",2022011721,15545149201,"在宣讲开始前，我对井冈山精神的内涵进行了深入的研究和准备。为了让内容更贴近学生们的理解和生活，我将井冈山精神的核心——坚定信念、艰苦奋斗、实事求是、敢闯新路、依靠群众、勇于胜利——与他们的学习和日常生活联系起来。在宣讲中，我先从井冈山革命根据地的创建历史谈起，讲述了毛泽东和朱德等革命领导人如何在艰难困苦的环境下，带领红军创建了中国革命的摇篮。接着，我通过具体的事例，展示了井冈山精神在新时代的现实意义，特别是它对当代青年如何面对困难和挑战的指导作用。\n\n宣讲过程中，我注重与学生们的互动，通过提问和小组讨论的方式，激发他们对革命精神的思考与讨论。学生们表现出了极大的兴趣，提出了许多有关井冈山历史、革命故事以及如何在日常生活中践行井冈山精神的问题。我耐心地一一解答，并通过分享自己的学习与生活经历，使学生们更好地理解井冈山精神的实质和意义。"]
[155,"人工智能学院","小数苗·向阳生志愿服务队","吕琛",null,2022011601,18849671614]
[156,"理学院","读懂中国式现代化暑期社会实践团","尹畅","理学院",2021011798,17775621973,"今年7月，理学院“读懂中国式现代化”实践团队来到江西省，继续探索中国式现代化的发展足迹。作为团队的一员，我负责了实践团的保险购置、车辆联络、物资采购以及全景素材的拍摄等任务。为应对五日三座城市的实践挑战，我根据实际行程安排，多次与租车公司沟通调整，确保团队安全出行。实践团在南昌参观了八一起义纪念等文化展馆，深入学习了红色革命等中国精神，我使用全景相机拍摄了各展馆200余张全景素材，用于后续搭建虚拟展馆和线上VR展示平台，使这些文化瑰宝能够被更多人远程观赏。在景德镇市的探寻过程中，实践团深入学习了当地著名的陶瓷文化，了解了非物质文化遗产的传承与创新。我撰写了国瓷馆的实践事迹新闻稿，通过社交媒体和主流宣传平台，广泛传播中国式现代化探索之旅，将中国现代化发展与中华传统文化的独特魅力传递给更多人。"]
[157,"理学院","读懂中国式现代化暑期社会实践团","陈启伟","理学院",2021011842,13839717617,"在实地考察过程中，我积极与当地居民等进行交流互动。我们围绕中国式现代化的话题展开讨论，分享了各自的见解和感悟。我还负责与外国留学生对接工作。在与他们的交流中，我向外宣传了中国式现代化的成果，让他们感受到了中国的魅力。同时，我也从他们身上学到了许多宝贵的经验。在社会实践过程中，我担任了视频拍摄工作。我用镜头记录了团队的点点滴滴，展现了实践活动中的精彩瞬间。这些视频资料不仅为我们的实践报告增色，还成为了我们美好回忆的载体。社会实践结束后，我承担了社会实践报告的撰写工作。在撰写报告过程中，我认真梳理了实践活动的成果和经验，总结了我国现代化建设的亮点。"]
[158,"理学院","读懂中国式现代化暑期社会实践团","韩俊雄","理学院",2021011805,13718888750,"韩俊雄，男，中共预备党员，中国石油大学（北京）理学院统计学本2021级本科生，中国石油大学（北京）红十字会第十九届会长。2022-2024连续三年多次参与学校、学院组织的社会实践，赴北京、湖南、新疆、江西等地开展形式多样的暑期社会实践活动，包括实地调研、人物采访、朋辈调研、乡村支教等。2024年7月20日至25日，与22名中外师生共同前往江西省南昌市、九江市、景德镇市开展以“读懂中国式现代化”为主题的暑期社会实践。本次社会实践着眼中国式现代化的五大方面，通过实地调研乡村经济、参观学习红色教育基地、劳动实践等形式全面读懂中国式现代化。"]
[159,"理学院","“读懂中国式现代化”社会实践","王娜娜","理学院",2021011760,18234857646,"在社会实践筹备阶段，主动承担对接留学生事务、财务管理及分工安排，保证活动高效有序开展；通过在景德镇调研学习，对陶瓷产业的发展现状进行了深入剖析，分析了陶瓷产业面临的困境，提出了一系列发展策略；在认识到交通运输与体育产业的重要性后，提出“以交通和体育产业为突破口，推动区域协调发展”的见解；搭建中外学生面对面交流平台，促进中外文化交融，构建中亚命运共同体；利用学科优势，充分整合各方面资源，积极打造社会实践品牌，借助360全景设备打造了23座虚拟展馆，构建了153个VR场景；成功制作汤太莲作品VR展，录入150件布贴画作品，使得实践成果得以永久保存；积极撰写新闻稿及调研报告，获多家媒体报道，产生广泛的社会影响。"]
[160,"理学院","读懂中国式现代化暑期社会实践团","范晓璐","理学院",2021011854,18980909763,"此次社会实践，我作为团队宣传负责人，全程记录了实践活动，通过拍摄和采访，捕捉了中外学生互动的宝贵瞬间，累计素材超过100GB。我深入采访了越窑青瓷非遗传承人徐辉老师，通过前期调研和精心准备的提纲，挖掘了其匠心精神。实践后期，我统筹成果，撰写的总新闻稿在中石大公众号发表并广受报道。同时，我制作的宣传推送在两大公众号上发布，累计浏览量破千，有效扩大了活动影响力。此次活动锻炼了我的专业技能和组织协调能力，提升了我的责任感。"]
[161,"理学院","读懂中国式现代化-社会实践团","蔡贤治","理学院",2021011776,13972394488,"2024年夏天，该学生作为学校组织的实践团一员，深入江西省，旨在多维度理解中国式现代化。该学生主要负责撰写新闻稿及制作PPT和答辩稿。活动开始，团队参观了中国铁路南昌局和武宁国际网球中心，该学生记录了队员们的见闻，强调了这些设施在当地发展中的作用。随后，拜访了越窑青瓷传承人徐辉教授，体验了“一带一路”的文化意义，并将此融入新闻稿中。在中学讲座中，该学生记录了交流活动，使其成为答辩稿的生动素材。参观八一起义纪念馆时，该学生对布贴画制作产生兴趣，详细记录工艺流程。武宁县的生态文明建设令其印象深刻，该学生采访了村民，将他们的故事转化为文字资料。为了扩大影响，团队创建了虚拟展馆和VR场景，并录入布贴画作品。该学生将这些成果编入PPT和答辩稿，使之成为传播实践成果的有效工具。"]
[162,"理学院","“读懂中国式现代化”实践团","王以静","理学院",2021011818,18778288656,"7月22日至25日，中国石油大学（北京）17名中国师生和来自土库曼斯坦、印度尼西亚、莫桑比克、缅甸的6位留学生组成“读懂中国式现代化”社会实践团，此次实践我们深入江西多地，亲身体验了科技创新在铁路领域的飞速发展与乡村振兴战略的生动实践。在南昌铁路调度所与动车运用所，我亲眼见证了智慧调度与高效运维，感受到中国铁路现代化的非凡成就。而在武宁乡村，从5G智慧农业到“体育+”产业，我深刻体会到科技创新与生态文明建设的融合，如何为乡村带来翻天覆地的变化，激活了乡村发展的新动能。"]
[163,"理学院","“读懂中国式现代化”实践团","任泽鹏","理学院",2021011811,13607191169,"在此次社会实践中，我听从老师安排，基于中国式现代化内涵负责武宁县地区调研。精心筛选出多个有价值的实践地点并提出方案，还在选题时有创新见解。实践时积极参与企业调研采访，提前做功课以深入交流。后期宣讲中与留学生和同学交流，促进文化交融。返校后，在实践总结大会上，得知成果分工及撰写思路，我负责撰写武宁县乡村振兴专题报告与部分新闻稿。整个过程中，我认真负责，从调研准备到实践参与再到成果撰写，都积极投入，为实践活动的顺利进行和成果产出贡献力量，也在各环节中不断提升自己的能力，尤其是在与不同群体交流和撰写专题报告方面积累了宝贵经验，同时为中外文化交流搭建了桥梁，助力实践活动取得多方面的成效。"]
[164,"理学院","\"读懂中国式现代化\"实践团","吴炅","理学院",2022011767,13401080467,"我作为部分留学生的对接人，在出行前积极帮助留学生们完成请假流程以及询问饮食忌口；在参观学习过程中积极进行位置互通，确保各位留学生能安全地完成社会实践中的各项环节；在前往武宁县振风高级中学和武宁县一中进行友好交流时，担任中外学生们的“翻译官”；同时，我将本次读懂中国式现代化暑期社会实践团的新媒体图片及视频等实践成果进行整合再创作，在720云线上制作出本次社会实践中各场景的全景还原展，共计20余个，在全景图中将同一场馆中的各个细节及场景拼接在一起，让大众能清晰直观而身临其境地在线上了解到乡村振兴的历程、小平小道的由来、非物质文化遗产的魅力等，以这种方式进行红色精神的传播和宣扬，同时将中国式现代化的内涵融入全景展这种新颖的宣传方式，推动中国式现代化的发展。"]
[165,"理学院","\"读懂中国式现代化\"实践团","巨博雅","理学院",2022011806,15230696628,"在本次社会实践过程中，我作为社会实践团留学生成员的主要对接人，在前往八一起义纪念馆等红色基因发源地时，积极向实践团留学生成员传播革命时期的红色文化。我积极参与到传承保护非遗文化的社会实践工作中，将陈列在美术馆中的汤太莲刺绣作品进行拍照收集，以数字化手段录入142件汤太莲作品，建立云上“水浒一百零八将”VR展和非遗文化作品VR展，为建设中华民族现代文明贡献青春力量。我将本次读懂中国式现代化暑期社会实践团的实践过程进行成果转化，通过撰写新闻通讯稿叙述本次实践的内容与意义（目前已作为通讯作者在中国教育网发表实践成果），通过剪辑社会实践的视频记录本次社会实践的行程与感悟，以大学生的力所能及推动中国式现代化的传播。"]
[166,"理学院","青春聚力正当时，乡村振兴谱新篇","张子怡",null,2022011752,17367953629]
[167,"理学院","情暖童心，相伴前行——助力残障儿童健康成长","尹诗琪",null,2023011790,17526954178]
[168,"理学院","农为邦本，青振乡村","邓宁",null,2023011874,18870821508]
[169,"经济管理学院","经世碳寻——沿习之路，青行“浙”里","郑佳琼","经济管理学院",2023012023,18395804241,"在2024年暑期，我有幸作为中国石油大学（北京）经济管理学院“经世碳寻”实践团的一员，踏上了前往浙江的暑期“三下乡”社会实践活动之旅。这次实践不仅是一次对“双碳”战略落实和绿色发展成果的深入调研，更是一场关于责任与担当的生动实践。在为期一周的实践中，我们走访了安吉县余村、舟山市定海区新建村、安吉县九亩村等多个低碳发展乡村，以及浙江国际油气交易中心、岙山国家战略石油储备基地等绿色能源企业。每一处都留下了我们探索的足迹，每一处都见证了绿色发展的生动实践。这次“三下乡”社会实践活动让我收获颇丰。我不仅深入了解了“双碳”战略和绿色发展的相关知识，还亲身体验了生态文明建设的生动实践。更重要的是，我深刻感受到了作为新时代青年的责任和担当。在未来的学习和工作中，我将继续秉承绿色发展理念，积极传播“双碳”战略相关知识，为国家的生态文明建设贡献自己的力量。"]
[170,"经济管理学院","经行筑梦 乡遇青苗","韦欣宜","经济管理学院",2022011948,13332025202,"作为实践队的队长，在实践前期积极组织队员进行早期资料收集，对实践地进行背景调查，提前了解其过往及现状，着重了解在乡村振兴中使用的方法及措施，并对实践地进行积极联系，做好实践前期工作的完成；实践过程中团结队员，遇到突发情况积极沟通，争取最佳解决方法，保证实践的顺利进行。在与各个实践地负责人交流时自信大方，主动的进行交流与提问，调动气氛推动进度，使参观、交流和采访的过程顺利和愉快；在实地考察结束后督促各队员完成后续工作，保障本次实践工作成果总结的开展，包括报告撰写、视频剪辑以及各比赛、项目的报名活动。在整个实践过程中维护团队，组织同学，沟通团队，使本次社会实践得到良好结果。"]
[171,"经济管理学院","聚光琼州“支教+”——做梦想之光的守护者","李卓益","经济管理学院",2023012046,17788419931,"作为队长，负责统筹协调整个团队的运作，确保各项活动的顺利进行。同时，我也积极参与项目对接联系工作，与琼州当地的教育机构、学校建立了良好的合作关系，为我们的支教活动争取到了宝贵的支持与资源在支教活动中，不仅注重知识的传授，更注重文化的交流与传承。前期充分准备生活物资，开展课程试讲，出发大会，使团队成员培养较好的能力素质，确保实践活动顺利展开受到当地融媒体采访，在采访提问环节，我们深入了解了当地的教育现状、孩子们的学习生活情况以及他们对未来的憧憬和梦想。"]
[172,"经济管理学院","“经智惠民 赓红助乡”红色金融实践团","菅璞","经济管理学院",2022012057,15548303228,"作为队长，负责规划团队工作，确保任务按时完成。制定了清晰的计划表，监控进度，包括文案、视频制作等。同时，作为摄影和剪辑负责人，捕捉关键时刻制作有感染力的视频，记录团队历程。积极沟通，鼓励团队合作，及时解决问题，快速响应挑战，与指导老师紧密合作，有效推进实践活动。"]
[173,"经济管理学院","三叶萌芽——沧海桑田的故事我们讲给你听实践团","杨振宇","经济管理学院",2022011876,15734983868,"作为三叶萌芽——沧海桑田的故事我们讲给你听实践团的队长，积极响应国家教育公平与科普工作的号召，带领团队深入乡村开展地质科普实践活动。他精心策划并成功实施了“小小地质博物馆”项目，跨越甘肃、云南、海南、湖北等多省，为乡村小学捐赠地学书籍与珍稀岩石标本，并亲自指导博物馆布展工作。通过线上线下结合的方式，不仅传授了地质知识，还激发了孩子们对科学的浓厚兴趣。"]
[174,"经济管理学院","以绿为底共绘经彩，零碳转型青创未来","孙静静","经济管理学院",2022011969,13855439495,"作为一名积极参与社会实践的大学生，我有幸在“以绿为底共绘经彩，零碳转型青创未来”项目中担任统筹组组长。在鄂尔多斯这座能源重镇，我带领团队深入实践，针对荒漠化治理和工业零碳转型等核心议题进行了细致的调研。通过实地考察、专家访谈和数据分析，我们不仅掌握了第一手资料，还为鄂尔多斯市的绿色转型提出了切实可行的建议。此次实践不仅锻炼了我的组织协调能力，也深化了我对可持续发展理念的理解。我深刻体会到，绿色转型是推动能源依赖型城市持续发展的关键。未来，我将继续致力于绿色发展的研究与实践，为构建生态文明社会贡献自己的力量，努力成为有担当、有作为的新时代青年。"]
[175,"经济管理学院","粮心守望，粮安为先","陈美璇","经济管理学院",2023012043,"15942043395","“粮心守望，粮安为先”社会实践团队分为东北与河南两个支队，本人担任东北支队队长，全面负责团队统筹规划。出发前，带领团队联系指导老师，汲取经验，同时反复打磨团队策划书，投稿成功入选吉林省“跟着总书记的脚步看吉林”三下乡社会实践项目。入选后，立即联系吉林团省委及当地合作社、博物馆、示范田、村支部工作人员，确定行程。到达吉林后，代表实践团队出面与黑土地博物馆工作人员交流土地保护方案、与双辽市金良村书记探讨传统农业村落转型之路等等，并及时记录活动现场，整理调研信息。实践结束后，形成3000+字调研结题报告及实践记录视频一份，完成推送6篇，得到学院宣传。"]
[176,"经济管理学院","助力涧沟村乡村振兴：打造红绿品牌，促进乡村发展","张亚亚","经济管理学院",2022011875,18185646017,"在社会实践的答辩环节，张亚亚满怀激情地向评委老师们讲述了我们的考察经历与整改方案。她强调，涧沟村拥有得天独厚的发展条件，只要我们能够精准施策，破解交通和宣传两大难题，充分挖掘和传承地方文化，就一定能够走出一条具有特色的乡村振兴之路。张亚亚的讲述得到了评委老师们的认可和肯定，他们对我们团队的实践成果表示高度赞扬，并鼓励我们将所学所悟转化为实际行动，为涧沟村的乡村振兴贡献青春力量。"]
[177,"经济管理学院","崔村新篇共筑梦","谭晶","经济管理学院",2023012104,19123322363,"  作为本团队队长，我带领全组深入实地调研，从真顺苹果种植基地到真顺艺术小镇，从真顺艺术馆到西峪橡树谷木栈道，每一处都留下了我们的足迹。在调研过程中，我充分发挥领导作用，协调团队成员分工合作。全程参与数据收集、访谈交流，确保信息准确全面。最终，我们齐心协力形成了一份高质量的实践报告、调研报告、和一份视频。这次经历不仅提升了我的领导能力和团队协作能力，也为乡村振兴事业贡献了一份力量，让我深感自豪与满足。"]
[178,"经济管理学院","音乐剧在一二线城市的现状与发展前景","王海心","经济管理学院",2023012019,18101277275,"在音乐剧研究项目中，我担任了关键角色，不仅提出了研究选题，还强调了音乐剧在文化传播和提升城市文化品位中的作用。作为团队的组织者，我有效协调了成员的工作，确保了团队的高效运作。面对实践中的挑战，我及时调整团队结构，解决了沟通障碍，增强了团队凝聚力。\n\n我主导的播客“五号包厢”通过定期更新内容，成功提升了音乐剧的社会认知度。此外，我还积极参与社区推广活动，通过讲座和研讨会等形式，让更多人了解并欣赏音乐剧。这些努力不仅增强了公众对音乐剧文化价值的认同，也为音乐剧的推广和文化传承做出了实质性贡献。通过这次实践，我不仅锻炼了自己的研究和团队协作能力，也为文化的传播和发展贡献了自己的力量。"]
[179,"经济管理学院","青春同行，智慧成长——“大手拉小手”携手成长暑期行","王邦彦","经济管理学院",2023216214,15910790196,"我叫王邦彦，男，中共党员，现就读于中国石油大学（北京）经济管理学院2023级金融专硕，现担任经济管理学院2023级金融专硕团支部书记。在过去的一学年里，始终秉承高度的政治觉悟，严于律己，积极践行党的教育方针和政策。在学生工作领域，始终以“自我提升，服务集体”为工作准则，投身于多样化的实践活动之中。在此期间，本人以学生干部的标准严格要求自己，认真履行职责，确保了各项任务的完成，在本科期间多次获得优秀团员、优秀学生干部、优秀青年志愿者等荣誉称号。"]
[180,"经济管理学院","经世碳寻——沿习之路，青行“浙”里","魏星辰","经理管理学院",2023012021,13583476759,"在经世碳寻实践团队中，我负责了宣讲和所有宣传媒体的后台运行、宣发、以及最终的学院和学校答辩任务。在实践过程中，我一直充当最积极的角色，勇敢承担责任，助力团队工作，宣传学院和学校为实现“双碳”政策做出的各种努力。同时我也努力学习各种技能，照片拍摄、视频剪辑、媒体运行……在个人能力得到巨大提升的同时，为实践团队的整体工作做出巨大贡献。同时，个人具备较强表达能力和沟通能力，在实践期间，个人开展宣讲多次，覆盖人数超百人，在浙江国际油气交易中心的宣讲和座谈会上，得到了校友们的夸奖和一致好评。总之，我在2024暑期社会实践中，学到了很多新技能，在提升自己的同时，服务了整个团队，实现了个人价值，并坚守了初心使命，即响应国家双碳目标，担当青年时代使命！"]
[181,"经济管理学院","循红色书香，探觉醒年代","兰歆儿","经济管理学院",2023011943,15885509645,"本人在此次社会实践中担任组长一职。回顾这次实践活动，我做到了：\n一、精心筹备，奠定实践基石。在筹备阶段，我充分发挥领导才能，积极组织团队成员进行深入的前期调研，确定了具有现实意义和社会价值的实践主题﹣﹣循红色书香，探觉醒年代。 我认真制定详细的实践计划，明确每个成员的分工和职责，确保团队高效运转。\n二、以身作则，引领团队前行。在实践过程中，我始终冲在最前面。面对各种困难和挑战，我积极寻找解决方案，鼓励团队成员保持乐观积极的态度。 在与游客的沟通中，我始终保持尊重和耐心，认真倾听他们的想法。在团队内部，我注重营造和谐、团结的氛围，鼓励成员之间相互支持、相互学习。\n三、认真总结，形成实践成果。实践活动结束后，我带领团队成员认真进行总结和反思。对收集到的数据和资料进行深入分析，撰写了高质量的实践报告和调研报告。"]
[182,"经济管理学院","经行筑梦 乡遇青苗","唐舞","经济管理学院",2022012217,18170010831,"作为实践团文稿组组长，前期准备中，我与多位队员共同负责乡村振兴先进乡村与相关企业背景调查与筛选，积极开展交流对接对接。实践过程中，我谨遵指导老师教导，积极配合，辅助实践团按时保质完成实践任务。实时记录实地考察与采访内容，辅助宣传组录制调研记录视频，为后期产出奠定基础。实践结束后，我与组员共同整合实践过程中收集的资料与素材，归纳出“1+4+N”的乡村振兴发展路径，并基于此路径与实践经历产出调研报告与实践报告各一篇，共40000余字。同时带领文稿组产出新闻稿近10篇，实践团实践事迹获人民日报(中国城市网)、光明网、西海都市报等各大主流媒体报道宣传。根据新闻稿产出的推送共5篇，于学院乃至学校官方公众号进行发布宣传，总阅读量超2000次。"]
[183,"经济管理学院","拳拳赤心为基层，殷殷真情为人民","郭欣怡","经济管理学院",2022012352,18299609622,"我有幸担任了社会实践团队“拳拳赤心为基层，殷殷真情为人民”的组长，首先就是通过电话与街道办或者社区对接，寻找愿意让我们进行志愿活动的社区，并从封面，排版到内容方面精心设计了四版宣讲需要用到的宣传单。同时，我面对面交流等方式，向大家阐述工作内容并讲解如何解决可能遇见的问题，后带领团队成员深入社区，开展了为期8天的丰富多彩的志愿服务活动。最后，我熟练于剪辑视频，制作了精美的视频资料和团队推送，生动记录了实践活动的点点滴滴；协助修改调研报告和实践报告，确保数据的准确性与分析的深入性；准备团队答辩材料和PPT，以丰富的案例和感悟在规定的时间内讲述我们的汇报。"]
[184,"马克思主义学院","循声觅道—以龙江“新质生产力”解锁乡村新生振兴力","包娅琪","马克思主义学院",2022012144,18645325817,"在实践前，确定实践目的地、实践时间、实践内容等具体事项，提升实践内容可行性；积极联系家乡相关单位、招募队员开展实践，统筹规划时间安排，为实践提供多元的实践对象。\n在实践中，带领团队实地走访，与当地企业、政府相关部门沟通，积极思考、提出问题，撰写调研报告，为当地发展提供建议供其参考；深入乡村，带头采访“新农人”陈雨佳、“乡村发明家”王玉平，并获得大量一手资料，为团队研究当地乡村发展状况提供示例范本；在民主小学课堂上，和团队成员一起为小学生们带来生动的实践课。\n实践结束后，带领团队总结实践成果、形成心得体会，并整合资源投稿新闻推送、整理素材制作实践视频，在三下乡网等多家媒体中获得报道，取得良好反响；在项目结题阶段，带领队员撰写实践报告、调研报告。"]
[185,"马克思主义学院","“薪火传承，青志领航”——能源科创先锋行","乔琳舒","马克思主义学院",2023012203,18920091676,"作为总队长带领“薪火青志”实践团队，开展“薪火相传”、“青志领航”双篇章暑期社会实践，将精神引领与生产力发展高度融合。带领团队开展了走近先进劳动模范、传承石油精神的寻访行动；带领团队前往六个城市的十家能源企业、研究院，探索企业绿色技术发展的中国方案。实践成果涵盖推送视频、宣传折页、专题访谈记录等十余种类型，全面展现并总结实践活动的成果与收获。撰写与中海油天津分公司的联合党建策划书，得到企业高度认可并采纳。通过联络企业，向企业及时对接反馈我们的调研情况，不断及时对接国家企业发展中的新需求，收到来自三家央企的表扬信。在中国大学生在线、人民日报客户端、新华网等网站报道共214次。"]
[186,"马克思主义学院","青马筑梦启新程，产学研融振新乡","曲家彤","马克思主义学院",2022012141,15836389383,"在“窦”志昂扬实践团队的暑期社会实践中，我作为负责人，积极听取各方意见，不断优化项目策划。我深入窦店镇大高舍村调研，与村民面对面交流，从实践中汲取灵感，提出了围绕“高品质发展、高质量生活、高效能治理、高水平共享”的实践方向。在组织实施过程中，我注重发挥团队每位成员的优势，通过合理分工，让每个人的才能得以展现。同时，我也意识到资源整合与品牌建设的重要性，带领团队开设多个媒体平台账号，设计专属logo，积极宣传实践成果，成功吸引了多家主流媒体的关注。"]
[187,"马克思主义学院","冀地青春派：红色领航，乡村振兴展风采","刘阳","马克思主义学院",2023012202,15612037877,"在本次实践活动中，主要担任冀地青春派实践团的队长，负责统领整个实践活动，合理安排实践活动的流程，协调分工好各个成员的任务。\n在社会实践前期，主要负责安排整个实践活动的流程、安排成员住宿等，并且联系当地，为支教活动的开展做好准备。\n到了正式开展实践活动，与当地教育人员进行联系，协商支教开展事项，后与成员共同准备带有中国石油大学（北京）logo的笔记本。随后参与制作了主题为“薪火相传·石油精神的永恒魅力”的支教课件，并带领团队前往涉县宇庄小学开展支教，支教结束后，将准备的笔记本赠送给同学，随后与成员共同采访小学校长。\n在实践过程中，又担任了采访员一职，先后采访了采摘园主人、一二九师景区宣讲员、研学中心负责人.\n在后期宣传过程中，参与撰写了主题为“冀地青春派：红色领航，乡村振兴展风采”的新闻稿，并投稿发表于中华网、中国乡村振兴网两个新闻网站，累计浏览量达100000+。随后又制作一个宣传视频，发布于抖音、微信视频号平台。\n在社会实践后期，组织参与实践报告的撰写，制作了社会实践的总结视频，参与制作答辩PPT。"]
[188,"马克思主义学院","文化振阡陌，古道“油”新生——以水峪嘴村为例解锁农文旅振兴“新密码”","闫佳敏","马克思主义学院",2022012143,15598404430,"在此次实践中，我充分发挥自己的专业优势和创新能力，为水峪嘴村京西古道文旅产业发展出谋划策。设计了一系列受村民喜爱的文创产品，如融合古道元素的帆布包、NFC语音牌、文创雪糕等，这些产品不仅美观实用，更蕴含着丰富的文化内涵，成为水峪嘴村独特的文化符号。同时，我还提出了特色旅游路线的设计方案，将京西古道的自然风光、历史遗迹和民俗文化巧妙结合，为游客打造了一场场精彩纷呈的文化之旅。更在服务乡村、奉献社会的过程中实现了自我价值的提升。我深刻感受到了为社会服务的力量和为乡村奉献的快乐，也更加坚定了自己未来的人生方向。我将继续关注乡村振兴事业，用自己的专业知识和实践经验为更多的乡村带去希望和改变。"]
[189,"马克思主义学院","香韵山村，助农“油”我实践团","史安月","马克思主义学院",2023012204,18923769982,"本次社会实践活动让我充分认识到“此事要躬行”的含义与思想政治教育专业的高度实践性，书本提供的理论知识只有走进一线深入基层才能呈现全貌。作为团队负责人，我坚持身体力行走在前线，带领团队撰写超13000字的项目计划方案并参与申报各类专项计划，最终入选团中央3个国家级专项以及中国石油大学（北京）暑期社会实践重点团队。实践中访27户村民与2所当地企业、深度访谈3位村民与3位当地干部，开展14项专题特色课程，累计参与人数达800余人；协助沙门村党支部上报垃圾消纳池二期工程，成功获乡里审批60万经费；设计研学文稿4份、文旅路径5条、沙门特色活动4项；提出香草产业改进意见7项并提交项目优化方案与调研报告各1份.此外实践团坚持发展好新闻宣传工作，累计发送新闻稿10份，其中外宣报道3份，内宣报道2份，制作日常推送15个，共计浏览量10000+。组织直播3场、剪辑日常视频18个，成果视频1个，浏览量2万+。\n实践团倾心付出的志愿服务获得了当地乡委的认可，与沙门村党支部签约共建院级社会实践基地一个，获沙门村村民委员会感谢信与调研报告意见采纳证明各一份，被大庄科乡党委陈磊书记高度赞扬，中石大学子用实践行动为沙门注入乡村振兴青春活力，让青春之花绽放在田间地头。"]
[190,"马克思主义学院","香韵山村，助农“油”我实践团","何展蔚","马克思主义学院",2023012169,18924849729,"为贯彻落实习近平主席关于农业农村现代化的重要论断，五月底，我有幸加入“香韵山村，助农‘油’我”实践团，深入沙门开展以“青耕低碳沙门，共绘乡村新篇”为主题的实践活动。本次实践，我担任宣传组组长，明责任、重行为。我积极发挥引领作用，根据自身经验，开培训、抓细节、重质量，带领宣传组成员高效完成视频剪辑、新闻投递及新闻稿撰写等工作，确保每项任务高质量完成，有效推动信息广泛传播，提升活动影响力。通过我的亲身参与和努力，我实现了自我价值的提升与能力的飞跃，同时也为推进乡村振兴事业贡献了自己的一份青春力量。"]
[191,"马克思主义学院","香韵山村，助农“油”我实践团","邵子涵","经济管理学院",2023012284,18800130100,"为深入学习习近平总书记关于推进农村现代化与乡村振兴的重要论述，助力中国式现代化乡村治理和乡村产业发展， 今年五月底，我加入到暑期社会实践“香韵山村，助农‘油’我实践团，并于7月初赴延庆区大庄科乡沙门村，以青耕低碳沙门，共铸乡村画卷为实践核心，聚焦“共悟党史、共铸低碳、共谋发展”三大主题，开展为期7天的社会实践。作为团队一员并肩负实践组组长的我，在整个实践过程中承担了重要职责，从前期筹备到中期实践，再到后期总结，我始终身体力行，秉持着实事求是的态度，将理论与实际相结合，通过自己的实际行动为乡村振兴贡献了一份绵薄之力。"]
[192,"马克思主义学院","薪火传承，青志领航——能源科创先锋行","喻治坤","化学工程与环境学院",2022011451,15801035232,"近年来，随着国家对经济高质量发展的要求不断提升，各行业都在积极探索适应新形势的创新发展路径。作为社会实践的重要组成部分，我专注于联系山东的代表性企业，包括齐鲁石化、山东海化和胜利油田，统筹规划并组织了社会实践的第二阶段工作。同时，通过调研相关政策并整理成政策三线表，为实践活动提供了坚实的理论支持。此外，我们还积极与山东省内的优秀校友联系，开展校友访谈活动，力求通过这些举措促进实践活动的深入推进，并加强校友之间的交流与合作。"]
[193,"马克思主义学院","薪火传承，青志领航——能源科创先锋行","桑松涛","化学工程与环境学院",2023010554,13356366370,"近年来，在国家对经济高质量发展的要求下，各行各业积极探索适应新形势的发展路径。作为社会实践的一个重要组成部分，我着力联系山东企业，如齐鲁石化、山东海化和胜利油田，负责第二期社会实践的总体规划与安排，并通过调研相关政策和整理政策三线表，为实践活动提供了坚实的支持。此外，我们还积极联系山东优秀校友，开展校友寻访活动，力求通过这些举措促进实践活动的全面发展和校友的深度交流。"," "]
[194,"马克思主义学院","薪火传承，青志领航——能源科创先锋行","马梓宸","新能源与材料学院",2022011416,13365219355,"在这个充满活力与挑战的时代，我有幸成为”薪火传承，青志领航——能源科创先锋行”团队的一员，并承担起了一项既重要又充满意义的任务——全程参与并负责实践活动的视频拍摄工作，随后将这些珍贵的影像资料精心剪辑成数十部视频作品，其中一部分更是在多个平台上得到了广泛的传播与认可。这段经历不仅让我在摄影摄像技术上有了质的飞跃，更让我深刻体会到了志愿服务的精神内涵与团队协作的力量。"]
[195,"马克思主义学院","古水风华实践团","亓宸玥",null,2022012151,13676348131]
[196,"外国语学院","“语”向未来，讲好中国故事，坚定文化自信","王心雨","经济管理学院",2023012224,17792272012,"作为“语向未来文化宣传大使团”的队长，很荣幸在此次实践活动中承担了重要的组织和领导角色。通过统筹策划、沟通协调以及亲自参与各项活动，我深刻体会到了实践与文化传播的意义。这不仅是一次文化传承的探索，也是我个人成长的重要历程。\n从最初的实践规划到最终的执行，我都参与了每一个环节。在活动的筹备阶段，我与团队成员共同探讨如何将习近平总书记的回信精神融入实践活动中，围绕文化交流、传统文化传承等核心内容，制定了详细的实践计划。我们选择了多样化的活动形式，包括剪纸文化体验、古代建筑参观、成语俗语课堂等，旨在通过这些活动加深中亚留学生对中华文化的理解与认同"," "]
[197,"外国语学院","“油”润桑榆，阳暖花城—聚焦“老有颐养”社区养老综合体：以广州颐康中心为例探索基层养老服务模式发展的新篇章","叶芷晴","外国语学院",2023012289,18617340380,"在暑期那段充满探索与成长的时光里，本人有幸担当了“油润桑榆，阳暖花城”社会实践团队的领航者，策划并组织了以“青砺基层之聚焦‘老有颐养’社区养老综合体：以广州颐康中心为例探索基层养老服务模式发展的新篇章”为主题的社会实践活动。我主动承担责任，精心雕琢策划方案，积极联络并落实实践场所，为活动的顺利推进奠定了坚实基础。在实践活动的每一个精彩瞬间，我不仅是积极的参与者，更是团队的灵魂指挥，确保调研的深入与关怀的温暖能够并驾齐驱。我组织参与撰写新闻稿，精心剪辑视频，并与新闻媒体建立了良好的合作关系，有效地将我们的实践成果传播得更远、更广。\n社区居家养老既是市场发展的蓝海，也是社会需求的热土。通过这次实践，我不仅实现了自我能力的飞跃，更为广州颐康中心这一创新性的“大城市大养老”模式注入了新的活力，推动了其改进与普及。这份宝贵的经历，将激励我在未来的道路上，继续为养老服务事业添砖加瓦，贡献力量。"]
[198,"外国语学院","“油”缘相聚七秩情，“语”你一起向未来","马冰欣","外国语学院",2023012223,13631893436,"\n在担任寻访优秀校友项目队长期间，我以身作则，精心策划并周密部署项目，确保了采访的顺利进行。我亲自带队进行线上线下采访，严格把控稿件和作品质量，确保项目成果的高标准。面对挑战，我积极沟通协调，解决了一系列难题。项目结束后，我总结经验，推广成果，有效提升了项目影响力。同时，我关心团队成员成长，营造了团结协作的氛围。通过这次实践，我不仅锻炼了自己的能力，也为传承校园文化和激发学习热情做出了积极贡献。"]
[199,"外国语学院","“语”向未来，讲好中国故事，坚定文化自信","蒋艺萌","外国语学院",2023012252,17391754844,"在本次实践活动中，我参与了大部分教学环节，并在其他环节也积极贡献自己的力量，志在与其他成员把实践活动办得出彩高效。在实践规划环节，我协助队长以“回信精神”为核心，结合一带一路战略和“丝路精神”，初步制定了以北京，西安两地社会实践为重点，以文化传播，增强留学生对中华文化理解为主旨的实践计划。在陕西我跟随实践团队分别在陕西、延安、安康三个城市的高中开展了传统文化教学，我主要负责延安部分的联络以及教学。在后续的媒体直播，公众号推广等任务上，我负责撰写部分文案，负责剪辑并投稿团队的实践视频。积极配合组长工作，在答辩阶段共同提交上了一份满意的答卷。我期待未来能继续参与这样的文化传播工作，努力成为中华文化的使者，将这一宝贵的文化遗产传播给更多的青少年。"]
[200,"非常规油气科学技术研究院","青力助重建，青为扶振兴————基于北京河北地区的地质汛期防治实践团","李世昌","非常规油气科学技术研究院",2023311203,13366986852,"\n在社会实践活动中，充分发挥自己的专业知识和技能，积极参与各项工作。在地质洪涝灾害防治方面，我与团队成员一起深入流村镇、八达岭镇和三河市等地，进行实地勘察。我们仔细排查疑似地质灾害隐患点，运用所学知识和技术手段，对地形、地质结构、土壤类型等进行详细分析，协助完成了《流村镇2024年地质灾害隐患总台账》。在勘察过程中，我本着严谨认真的态度，用“显微镜”排查隐患，不放过任何一个可能存在风险的地方，为后续的防治工作提供了准确的数据支持。"]
[201,"非常规油气科学技术研究院","“青力青为”实践团","高静怡","非常规油气科学技术研究院",2023216637,13153367664,"在本次社会实践活动中，我有幸随“青力青为社会实践团”前往北京市昌平区流村镇和河北省廊坊市三河市，开展了一项关于地质和洪涝灾害防治的实践活动。这次实践活动不仅让我获得了宝贵的经验，也让我深刻认识到灾害防治的重要性和复杂性。"]
[202,"非常规油气科学技术研究院","青力助重建，青为扶振兴————基于北京河北地区的地质汛期防治实践团","孙珩",null,2023211703,13366986852]
[203,"校团委","药农星链——助力药农散户中药材交易","冯书琴","人工智能学院",2023011553,15110731295,"作为“药农星链”实践团队成员。怀揣回报家乡之情，聚焦亳州药材交易。与成员们线上调研陈小寨村和亳州中药材商品交易中心，完成调研报告。暑假深入亳州，走访药农、探究市场，参与完善中草药大数据咨询服务平台，并最终与村委会达成合作。团队中草药服务平台免费向陈小寨村开放，陈小寨村对平台提供平台系统维护成本支持等。针对遭灾情况，与团队成员们协助村委会设计救灾方案及文创产品，共同推动发展。将青春投入乡村振兴，把所学化为实际行动，让青春之花绽放在祖国需要的地方。"]
[204,"校团委","遍访边关英雄志，戍卫山河家国情","罗楚龙","经济管理学院",2021010642,13574104196,"为深入贯彻习总书记五四精神讲话中关于弘扬卫国戍边精神的重要论述，罗楚龙作为团队负责人，带领实践团队跟随五四青年奖章获得者黄昌立的脚步跨越3000公里，从北京到广西，开启一场边境线上的“大思政课”。走进南疆国门第一站——广西凭祥，学习了解边防民警的日常工作，一周时间里，带领团队顶着四十度的高温，徒步三十公里，寻访17块边境界碑，与第28届中国青年五四奖章获得者黄昌立警官交流座谈，在界碑前留下青春誓言，更坚定了为强国建设、民族复兴伟业挺膺担当的决心和信心。带领团队推出了微课堂、微视频，深入北京、广西、云南等多地学校进行宣讲，辐射大中小学生上千余名，发布原创视频15条，在抖音、视频号等平台广泛传播。"]
[205,"校团委","降碳减污、协同增效——绿色餐饮助力武汉长江经济带高质量发展","陈欣玥","外国语学院",2023012228,19972117428,"作为本次实践活动的队长，我有幸带领团队深入探索武汉绿色餐饮的高质量发展之路。\n在实践过程中，我们走访了多家具有代表性的绿色餐饮企业，详细了解了它们在食材采购、烹饪技术、环保包装以及可持续经营等方面的先进做法。通过实地考察和交流研讨，我们深刻感受到了武汉绿色餐饮行业在追求高质量发展的坚定决心和积极行动。\n此外，我带领队员还组织了一场专题研讨会，邀请了业内专家共同探讨绿色餐饮的未来发展趋势。会议期间，大家积极发言，分享了自己的见解和思考，为武汉绿色餐饮的高质量发展提供了宝贵的意见和建议。本次实践，作为队长，带领团队探寻武汉绿色餐饮，收获颇丰，团队协作力量让我对未来充满信心与期待。"]
[206,"校团委","“红绿融合”唱好乡村振兴征途上的长征组歌","李慧琳","经济管理学院",2022011943,15510559500,"李慧琳怀揣乡村振兴与长征精神热情，组建“红绿融合”长征组歌实践团队并担任队长。她带领团队历时半年，深入学习《长征组歌》及其背后的故事，以长征精神激励青年前行。\n她带领团队历时36天，行走近8000公里，覆盖3省8市13区县，重温长征历史，探寻云贵川等地利用红色资源赋能乡村振兴的路径。团队围绕四渡赤水开展教育学习，调研17个红色场馆，原创战争情景剧，助力创收，丰富群众精神生活。同时，深挖红军故事，与多地党委共建红色教育研学基地。\n此外，她带领团队设计长征主题文创产品，开发红色桌游，利用VR技术搭建线上场馆，原创《青春长征》音乐，打造红色旅游线路。她还带领团队调研多地特色产业，推广古法造纸技术，为乡村打造特色产业链，捐赠图书，美化乡村环境，举办吉他弹唱路演，编排长征组歌节目，直播带货助农增收。团队事迹获50余家媒体报道，累计浏览量超80万，入选多个乡村振兴专项。"]
[207,"校团委","迎豹回家——发挥生态廊道沿途资源禀赋优势助力京郊美丽乡村建设","刘佳铭","安全与海洋工程学院",2022011260,15040132155]
[208,"校团委","“萤火探兴谷，绘就青春华”","刘诗淼","碳中和未来技术学院",2022010618,13514238265,"在这个暑假，我有幸参与了“千人百村”暑期社会实践活动，深入平谷乡村，了解社区民情，感悟颇深。通过这次实践，我深刻体会到了乡村振兴的重要性，也感受到了社区治理的艰辛与不易。实践过程中，我们走进社区，走访160多家住户与商户，进行居住人员信息的更新。为社区居民整治环境，学习接诉即办全流程，帮助解决民生问题，整个实践过程让我对社区工作有了更直观的了解。在与社区居民和社区工作人员的交流中，我学到了许多书本上学不到的知识，锻炼了自己的实践能力。同时，我也认识到，作为新时代的青年，我们要肩负起乡村振兴的使命，发挥自己的专业特长，为乡村发展贡献一份力量。此次实践，让我更加坚定了服务基层、服务人民的信念。 "]
[209,"校团委","“萤火探兴谷，绘就青春华”","魏天一","地球物理学院",2023011052,17631019665,"        这个暑假，我有幸带领青马班成员，深入北京市平谷区乐园西社区，开展了富有而意义的实践活动。\n在社区，我们积极助力环境卫生治理、消防通道清理和社区环境美化，用实际行动为社区居民创造了更加整洁、舒适的生活环境。此外，我们还探访了社区中的孤寡老人，与他们进行深入的交流，用温暖的话语和贴心的陪伴给予他们心灵上的关怀。\n在加强社区精神文明建设方面，我们采访了社工、军嫂和老党员等社区中的杰出人物，通过宣传他们的事迹，为社区树立了榜样，引领了社区精神文明建设的新风尚。\n此外，我们还与成员们一起开展直播助农活动，帮助社区居民销售农产品，总销售额达3600元，为社区经济发展注入了新的活力。"]
[210,"校团委","“丝竹润南，古韵筑梦”民乐团南华支教暑期社会实践","黄巍","机械与储运工程学院",2022210758,18810067510,"在这个暑假，我们从北京远赴云南省南华县，度过了一段意义非凡的时光。在南华县，我不仅投身于支教活动，还参与了当地菌子节的演出，深入体验了当地的风土人情。在支教过程中，我与当地孩子们建立了深厚的情感联系。他们的纯真和对知识的渴望深深打动了我。每天的互动不仅是知识的传递，更是心灵的交流。通过课堂上的教学，我学会了如何更好地与孩子们沟通，激发他们的学习兴趣。同时，我也有幸参与了南华县菌子节的演出。作为团队的一员，我负责组织协调演出的各个环节。这不仅锻炼了我的组织能力，更让我深刻体会到团队协作的重要性。通过我们的表演，我们向当地居民展示了不同的文化和艺术形式，促进了文化交流。此外，我还负责摄影和整理照片，记录下了这段旅程的每一个动人瞬间。每一张照片都承载着我们的美好回忆和成长历程。这段支教经历让我深刻认识到教育的重要性，也让我更加珍惜生活中的每一个机会。南华县的山水和人情将永远留在我的记忆中，成为我继续前行的动力和指引。感谢校团委和所有伙伴，让我们共同度过了这样一个充满意义和感动的暑假。"]
[211,"校团委","迎豹回家——发挥生态廊道沿途资源禀赋优势助力京郊美丽乡村建设","杜奕成",null,2022012159,15040132155]
[212,"校团委","药农星链——助力药农散户中药材交易","蒋子明",null,2022012295,13439842265]
[213,"校团委","降碳减污、协同增效——绿色餐饮助力武汉长江经济带高质量发展","王栋",null,2021010020,19972117428]
[214,"校团委","壁语新章：北石槽青年行动","姜曼妮",null,2023010404,15056627898]

{"sheet":"先进单位","index":3,"n_rows":4,"n_cols":2,"rows_kept":4,"merged":[[0,0,0,1]]}
["先进单位"]
["石油工程学院","100分"]
["安全与海洋工程学院","98分"]
["新能源与材料学院","98分"]

{"sheet":"优秀征文","index":4,"n_rows":44,"n_cols":5,"rows_kept":44}
["序号","学院","征文名称","打分1","奖项级别"]
[1,"化学工程与环境学院","和声",97,"一等奖"]
[2,"石油工程学院","青燃希望萤火，童汇万里星河",96,"一等奖"]
[3,"机械与储运工程学院","在“迎豹回家”大思政课中\n读懂“两山理论”生动实践",95,"一等奖"]
[4,"马克思主义学院","青迹踏乡村，青绘沙门梦",94,"二等奖"]
[5,"石油工程学院","闽宁绘梦，青春笔耕",93,"二等奖"]
[6,"石油工程学院","成为故事中的人",92,"二等奖"]
[7,"石油工程学院","寻迹乡村振兴",91,"二等奖"]
[8,"人工智能学院","在文化传承与乡村振兴中绽放青春光彩",91,"二等奖"]
[9,"安全与海洋工程学院","爱的光芒点亮稚嫩心灵",89,"二等奖"]
[10,"马克思主义学院","青少年手拉手心聚石油魂\n端牢能源饭碗共筑中国梦",88,"二等奖"]
[11,"地球科学学院","以《习近平与大学生朋友们》为指引\n——青春筑梦，基层砺行",86,"二等奖"]
[12,"地球科学学院","青春的笔触，实践的故事——以青春之名，绘乡村振兴新画卷",85,"二等奖"]
[13,"地球物理学院","时代殷殷嘱托，青年砥砺前行",85,"二等奖"]
[14,"人工智能学院","品三彩神韵·展青年担当",85,"二等奖"]
[15,"地球科学学院","青春的笔触，实践的故事",84,"三等奖"]
[16,"外国语学院","以心为灯，爱满盲道",84,"三等奖"]
[17,"地球科学学院","青春的笔触，实践的故事",83,"三等奖"]
[18,"石油工程学院","勇担时代青年使命，阔步康庄繁荣宏图",83,"三等奖"]
[19,"石油工程学院","能源照亮未来，支教驱动希望，\n共绘西北金沙滩蓝图",83,"三等奖"]
[20,"石油工程学院","青春足迹·家国韵律：闽宁实践之旅",83,"三等奖"]
[21,"外国语学院","青春绘卷·文化之光：\n外语人的社会实践故事",83,"三等奖"]
[22,"石油工程学院","山海有情，青春无悔",82,"三等奖"]
[23,"石油工程学院","在路上",82,"三等奖"]
[24,"机械与储运工程学院","青春的笔触，实践的故事：\n首钢绿色转型中的青春力量",82,"三等奖"]
[25,"新能源与材料学院","晨曦启航青春梦，笔端绘就华章颂",82,"三等奖"]
[26,"石油工程学院","读懂时代思想，展现青年担当",81,"三等奖"]
[27,"外国语学院","奉献青春，向光而行",81,"三等奖"]
[28,"石油工程学院","青山可望岁月可为",80,"三等奖"]
[29,"石油工程学院","在炽热盛夏完成一场少年勇敢实践之旅",79,"优秀奖"]
[30,"地球科学学院","笔触的青春，实践的故事",78,"优秀奖"]
[31,"石油工程学院","青春的笔触，实践的故事",78,"优秀奖"]
[32,"机械与储运工程学院","青春的笔触，实践的故事",78,"优秀奖"]
[33,"机械与储运工程学院","青春的笔触，实践的故事",77,"优秀奖"]
[34,"人工智能学院","我从未想过我会如此眷恋这方土地\n           ——南华社会实践记事",77,"优秀奖"]
[35,"马克思主义学院","我心怀梦，热土践行",77,"优秀奖"]
[36,"地球科学学院","青春逐梦，时代同行——在习近平思想的引领下砥砺前行",76,"优秀奖"]
[37,"石油工程学院","心灵的旅行：在实践的光辉中追寻成长",76,"优秀奖"]
[38,"经济管理学院","勇于创新，实干笃行\n——在实践中书写青春篇章",76,"优秀奖"]
[39,"经济管理学院","青春筑梦，奋斗于乡村振兴的广阔天地",76,"优秀奖"]
[40,"外国语学院","一起走向新天地",76,"优秀奖"]
[41,"人工智能学院","牢记领袖教导，分享青春感悟",75,"优秀奖"]
[42,"经济管理学院","青学践悟",75,"优秀奖"]
[43,"马克思主义学院","青春的笔触，实践的故事",75,"优秀奖"]

{"sheet":"十佳视频","index":5,"n_rows":11,"n_cols":7,"rows_kept":11}
["序号","项目名称","挂靠单位","学号","姓名","成员(学号姓名以,分割，如有多个请以/分割，例如：90000,李同学/90001,韩同学)","教师(工号姓名以,分割，如有多个请以/分割，例如：90000,李老师/90001,韩老师)"]
[1,"遍访边关英雄志，戍卫山河家国情","团委","2021010642","罗楚龙","王瑛璠/2023210654,蒲铭泽/2023010295,孙一铭/2021010090,张清爽/2021010711,戴昀珊/2021010130,孙润祺/2022010138,段雨杨/2022010039,巨博雅/2022011806,张润霞/2022010470,邹怀墨/2022011723,黄乐/2022011494,罗语涵/2022012194,于闿歌/2022010730,宋暑寒/2022010758,杨杭/2022011184,刘紫颖/2022012120","周学智,韩瑾,邵炜涛"]
[2,"丝路青春行·疆海情缘","安全与海洋工程学院","2022011202","刘帅","郭雅贤/2022011181,张萱/2022011189,赵杨娟/2022011190,彭美林/2022011188,梁一宁/2022011187,张美旭/2022011204,张云起/2022011275,曹赞/2022011284,林才涵/2022011237","李茂粟,赵思源"]
[3,"古道星火，乐韵新生","地球科学学院","2022010123","刘简凡","杜健/2022010017,段雨杨/2022010039,李宁/2022010117,闫璟驰/2023210156,杨荣彬/2021010152,陶润泽/2023210091,徐清岩/2021010132,吴霞/2023210074,董明祥/2023210097,李普一/2021010165,金世贵/2020010012","姚梦竹,孟笑"]
[4," “红绿融合”唱好乡村振兴征途上的长征组歌","团委","2022011943","李慧琳","雷宇乐/2022010713,潘盈伊/2022010996,崔文慧/2023011144,康岚婷/2022012177,李宇骞/2022011277,黄锐恒/2023010645,徐可欣/2023012244,郭柔伽/2022012176,褚雨欣/2023011587,夏小迪/2022011888,李梦莹/2022011421,焦智宽/2023216074,荆体瑞/2023210676","徐驰翀,赵浩钦,周学智"]
[5," “兴文逐梦 石子担当”团队","人工智能学院","2023011753","霍嘉宇","赵一行/202311590131,杨韵晗/2023012265,薛盛文/2023010733,刘磊/2022012260,王磊/2023010707,马锴/2023010084,徐鸣格/2023011394,徐诗月/2023011360,徐宁慧/2023011239,郜淼/2023011387,陈芝胜/2023011764,马媛/2022010993,李睿杰/2022011005,伍雨倩/2023011452","刘思航,马亚秋,周嘉璇"]
[6,"“油Young青年”志愿服务队","石油工程学院","2023210270","陈永恒","马梦琪/2022310132,哈森/2021290029,丁甲磊/2022210286,李佳沐/2022215137,崔韫淇/2023310185,管昱棋/2022215139,董丽蓉/2022215138,李云松/2023210272,程思远/2023210271,游苏扬/2023216507,李洋洋/2023215133,朱盈昊/2023215135,张家琛/2023210394","王伟,陈楠,刘东东"]
[7,"凝聚校企“核”力，共创核能“碳”路","新能源与材料学院","2022011355","周熠","韩士绅/2022011347,林诺/2022011361,张锦慧/2022011366,权鹏/2022011333,李傲冰/2022011326,王一铭/2022010568,曹添齐/2022010055,张子强/2022011354,黄俊东/2022011330,刘莲舟/2022011477,任友桐/2022011422,刘晨/2022011383,蒲春羽/2022011359,张纯懿/2022011485","金玮,周凌希"]
[8,"石油先锋成长营-先锋探源·西气东输万里行新质生产·工匠楷模薪火传","机械与储运工程学院","2022010713","雷宇乐","王钰翔/2022010716,马向怡/2022010701,李欣潼/2022010708,宁书奇/2022011024,张健宇/2020010978,何知乐/2022010707,郭晨熙/2022010724,邱炫捷/2022010687,昆给依·赛勒克/2020010988,金鑫/2022010648,宋清爽/2022010639,张宏旭/2022010134,祁家宝/2022010718,王佳乐/2022010664","鞠斌杰,刘晔,王文超"]
[9,"青系油缘 筑梦乡振","机械与储运工程学院","2022010920","付明林","丁彬/2022010838,包雅睿/2022010671,宋轶/2022010911,董佳锜/2023010651,朱洪泽/2023010659,赵佳谊/2023010647,谢书涵/2023010652,李卓钦/2023010696,王彦童/2023010699,王磊/2023010707,董一明/2020011004,王文超/2022210760,殷迪/2022210703","李健,鞠斌杰,高雪"]
[10,"科技助力乡村振兴，打造绿色能源小镇","新能源与材料学院","2022011360","陈锐","张虔嘉/2021011383,郭霁霄/2022012275,佟维泽/2022012299,姜轶超/2022011331,黄允恩/2022011342,任晴/2022011322,刘嘉豪/2022011405,王芳芸/2022010591,王昊桢/2023211149,付玉/2023215936,谭雪/2023011422,杨颜如/2023011527,翁汇铠/2023011483,徐润仪/2023011495","刘峰,李田放,赵艺"]

{"sheet":"十佳团队","index":6,"n_rows":11,"n_cols":7,"rows_kept":11}
["序号","项目名称","挂靠单位","学号","姓名","成员(学号姓名以,分割，如有多个请以/分割，例如：90000,李同学/90001,韩同学)","教师(工号姓名以,分割，如有多个请以/分割，例如：90000,李老师/90001,韩老师)"]
[1," “红绿融合”唱好乡村振兴征途上的长征组歌","团委","2022011943","李慧琳","雷宇乐/2022010713,潘盈伊/2022010996,崔文慧/2023011144,康岚婷/2022012177,李宇骞/2022011277,黄锐恒/2023010645,徐可欣/2023012244,郭柔伽/2022012176,褚雨欣/2023011587,夏小迪/2022011888,李梦莹/2022011421,焦智宽/2023216074,荆体瑞/2023210676","徐驰翀,赵浩钦,周学智"]
[2,"遍访边关英雄志，戍卫山河家国情","团委","2021010642","罗楚龙","王瑛璠/2023210654,蒲铭泽/2023010295,孙一铭/2021010090,张清爽/2021010711,戴昀珊/2021010130,孙润祺/2022010138,段雨杨/2022010039,巨博雅/2022011806,张润霞/2022010470,邹怀墨/2022011723,黄乐/2022011494,罗语涵/2022012194,于闿歌/2022010730,宋暑寒/2022010758,杨杭/2022011184,刘紫颖/2022012120","周学智,韩瑾,邵炜涛"]
[3,"共研山海经，同谋未来路","安全与海洋工程学院","2023211010","王志浩","李文琴/2023011294,郭黎巍/2023011215,梁雨轩/2023011314,韦思贤/2023011276,张文璐/2023011173,黎子琪/2023011296,陈弈真/2023011310,杨振铎/2023011200,刘金朋/2023011257,徐宁慧/2023011239,赵艺涵/2023011295","徐云飞"]
[4,"青“石”助湘行实践团","石油工程学院","2023010303","田玉婷","张春阳/2021010302,罗备/2023010294,喻程/2023012355,金嘉望/2023010291,李昭祎/2023012259,顾师文/2023010290,张通/2023010206,史安月/2023012204,蒲铭泽/2023010295,韩俊雄/2021011805,高露茜/2022010221,徐正强/2020011269,邓鑫/2022210310,华晓航/2022210217,刘胜/2023210303,任书衡/2022010215","刘衡升,周学智,刘东东"]
[5,"丝路青春行·疆海情缘","安全与海洋工程学院","2022011202","刘帅","郭雅贤/2022011181,张萱/2022011189,赵杨娟/2022011190,彭美林/2022011188,梁一宁/2022011187,张美旭/2022011204,张云起/2022011275,曹赞/2022011284,林才涵/2022011237","李茂粟,赵思源"]
[6," 弦歌不辍筑章汉模式，继往开来谱云贵新篇","机械与储运工程学院","2022010872","师海熙","庞金龙/2020010852,殷迪/2022210703,王文超/2022210760,陈佳璐/2022010879,林雪仪/2022010796,于秀洋/2022010846,陈腊梅/2022010706,杨睿/2022010932,祁家宝/2022010718,李炜/2022010712,龚佳星/2022010803,柳韵涵/2023010955,宗源/2023010746,张浩然/2023210729","刘晔,鞠斌杰"]
[7," “筑梦南华”萤火志愿服务队","化学工程与环境学院","2022010470","张润霞","彭莎莎/2022010406,张志彬/2022010491,曹炜曼/2022010499,孙琪桐/2022010454","倪鹏磊,李文倩"]
[8,"绿源探航-产教研融合的新能源未来","新能源与材料学院","2023011449","齐豪","张虔嘉/2021011383,杨颜如/2023011527,吴思玮/2023011434,余昀展/2023011450,徐诗月/2023011360,谭雪/2023011422,翟乘汉/2023011445,宫明辉/2023011446","刘峰,李田放"]
[9,"润疆筑梦，丝路悠扬","安全与海洋工程学院","2022011202","刘帅","郭雅贤/2022011181,张萱/2022011189,赵杨娟/2022011190,彭美林/2022011188,梁一宁/2022011187,张美旭/2022011204,张云起/2022011275,曹赞/2022011284,林才涵/2022011237","李茂粟,赵思源"]
[10,"迎豹回家——发挥生态廊道沿途资源禀赋优势助力京郊美丽乡村建设","团委","2022011260","刘佳铭","王江帆/2023012207,杜奕成/2022012159,李欣怡/2022010824,张建航/2023010712,苏珂璇/2022011392,李慧/2022010534","贾庆超"]

{"sheet":"十佳报告","index":7,"n_rows":11,"n_cols":7,"rows_kept":11}
["序号","项目名称","挂靠单位","学号","姓名","成员(学号姓名以,分割，如有多个请以/分割，例如：90000,李同学/90001,韩同学)","教师(工号姓名以,分割，如有多个请以/分割，例如：90000,李老师/90001,韩老师)"]
[1,"青“石”助湘行实践团","石油工程学院","2023010303","田玉婷","张春阳/2021010302,罗备/2023010294,喻程/2023012355,金嘉望/2023010291,李昭祎/2023012259,顾师文/2023010290,张通/2023010206,史安月/2023012204,蒲铭泽/2023010295,韩俊雄/2021011805,高露茜/2022010221,徐正强/2020011269,邓鑫/2022210310,华晓航/2022210217,刘胜/2023210303,任书衡/2022010215","刘衡升,周学智,刘东东"]
[2,"助还生态之清嘉 青访津冀为绿行","新能源与材料学院","2023011528","赵冰心","常胜凯/2023011477,杨颜如/2023011527,袁紫嫣/2023011456,任羿冰/2023011525,赵庆波/2023011533,楚赛赛/2023011532","李田放"]
[3," “兴文逐梦 石子担当”团队","人工智能学院","2023011753","霍嘉宇","赵一行/202311590131,杨韵晗/2023012265,薛盛文/2023010733,刘磊/2022012260,王磊/2023010707,马锴/2023010084,徐鸣格/2023011394,徐诗月/2023011360,徐宁慧/2023011239,郜淼/2023011387,陈芝胜/2023011764,马媛/2022010993,李睿杰/2022011005,伍雨倩/2023011452","刘思航,马亚秋,周嘉璇"]
[4,"读懂中国式现代化”实践团","理学院","2022211333","刘希","何洁玉/2022211338,曹可滢/2020011804,叶和樽/2023216112,张泽凯/2021211353,龚卓洋/2022011856,陈启伟/2021011842,蔡贤治/2021011776,范晓璐/2021011854,任泽鹏/2021011811,韩俊雄/2021011805,王娜娜/2021011760,尹畅/2021011798,巨博雅/2022011806,吴炅/2022011767,张书妍/2022011782","王天,张乐,吴双"]
[5," “红绿融合”唱好乡村振兴征途上的长征组歌","团委","2022011943","李慧琳","雷宇乐/2022010713,潘盈伊/2022010996,崔文慧/2023011144,康岚婷/2022012177,李宇骞/2022011277,黄锐恒/2023010645,徐可欣/2023012244,郭柔伽/2022012176,褚雨欣/2023011587,夏小迪/2022011888,李梦莹/2022011421,焦智宽/2023216074,荆体瑞/2023210676","徐驰翀,赵浩钦,周学智"]
[6,"“烽火青春 红梦引航”红色实践团","化学工程与环境学院","2023211430","胡浩然","全震/2022010601,尚文波/2023210568,吴芷璇/2022010461,马雪儿/2022010588,杨仁杰/2023010576,白智渊/2023010631,苏鑫亮/2020010586,陈龙/2023010583","梁硕,苏鑫亮"]
[7,"解锁“千万工程”密码，擘画南华振兴蓝图","地球物理学院","2022010997","徐滢滢","姚嘉乐/2022011128,骆雨珊/2022011029,李星原/2022011082,李秀澍/2022011074,谢佳欣/2022011056,舒希愉/2023011049,李炳初/2023011070,熊悦彤/2023011110,吕欣蔓/2023011084,任烨/2022011747,张曼若/2023011010,孙乙轩/2021011108,董佳锜/2023010651,马野/2022011071,张力/2022011062","陆杭波,付强,钟嘉雯"]
[8,"科技助力乡村振兴，打造绿色能源小镇","新能源与材料学院","2022011360","陈锐","张虔嘉/2021011383,郭霁霄/2022012275,佟维泽/2022012299,姜轶超/2022011331,黄允恩/2022011342,任晴/2022011322,刘嘉豪/2022011405,王芳芸/2022010591,王昊桢/2023211149,付玉/2023215936,谭雪/2023011422,杨颜如/2023011527,翁汇铠/2023011483,徐润仪/2023011495","刘峰,李田放,赵艺"]
[9,"共研山海经，同谋未来路","安全与海洋工程学院","2023211010","王志浩","李文琴/2023011294,郭黎巍/2023011215,梁雨轩/2023011314,韦思贤/2023011276,张文璐/2023011173,黎子琪/2023011296,陈弈真/2023011310,杨振铎/2023011200,刘金朋/2023011257,徐宁慧/2023011239,赵艺涵/2023011295","徐云飞"]
[10,"遍访边关英雄志，戍卫山河家国情","团委","2021010642","罗楚龙","王瑛璠/2023210654,蒲铭泽/2023010295,孙一铭/2021010090,张清爽/2021010711,戴昀珊/2021010130,孙润祺/2022010138,段雨杨/2022010039,巨博雅/2022011806,张润霞/2022010470,邹怀墨/2022011723,黄乐/2022011494,罗语涵/2022012194,于闿歌/2022010730,宋暑寒/2022010758,杨杭/2022011184,刘紫颖/2022012120","周学智,韩瑾,邵炜涛"]